Workbook

Sheet Hinweis
C4: Ein Tutorial der Fimovi GmbH
C5: www.fimovi.de
C10: Excel-Rechner: Finanzielle Reichweite
C11: Passives Einkommen & "Ewige Extra Rente"
C12: So lassen Sie ihr Vermögen für sich arbeiten
C15: Rechtlicher Hinweis
C39: Profil und Kontakt
C56: Ein Angebot der Fimovi GmbH
C57: Webseite: | D57: www.fimovi.de
C58: Email: | D58: support@fimovi.de
L60: Copyright by Fimovi GmbH

Sheet Reichweite
B1: Reichweite: Entnahme- & Vermögensmodell (monatliche Entnahme, monatliche Verzinsung)
A3: 1. | B3: Annahmen | G3: 4. | H3: Zielwert-Analysen
B4: Startkapital | C4: EUR | D4: 1000000 | H4: Gewünschte Auszahlungsdauer | I4: 25
B5: Monatliche Entnahme (Jahr 1) | C5: EUR | D5: 5000
B6: Inflationsrate | C6: % p.a. | D6: 0.02 | H6: 1. Wieviel kann ich maximal monatlich entnehmen?
B7: Rendite | C7: % p.a. | D7: 0.055 | E7: bzw. % p.m. | F7: =(1+$D$7)^(30/360)-1 -> 0.004471698917
B8: Ziel-Endwert (% von Startkapital) | C8: % | D8: 0.15
H9: Du kannst 25 Jahre lang monatlich 4.776 EUR entnehmen, ausgehend von einem Startkapital i.H.v. 1.000.000 EUR, einer IR von 2,00% und einer jährlichen Rendite von 5,50%. Am Ende dieses Zeitraumes beträgt dein Endkapital 150.000 EUR.
A10: 2. | B10: Ergebnisse
B11: Letzter Monat mit Endkapital > Ziel-Endwert | C11: # | D11: =IF(COUNT('RW-Monate'!$I$4:$I$1203)=0,-1,MAX('RW-Monate'!$I$4:$I$1203)) -> 276 | H11: 2. Wie hoch muss die jährliche Rendite sein?
B12: Erschöpfungsmonat | C12: # | D12: =D11+1 -> 277
B13: Jahr im Erschöpfungsmonat | C13: # | D13: =INT(D12/12)+1 -> 24
B14: Monatsanteil | C14: % | D14: =IF(D16=0,0,MIN(1,MAX(0,(D15-($D$4*$D$8))/D16))) -> 0.6518433189 | H14: Die jährliche Rendite muss 5,92% betragen, damit du 25 Jahre lang monatlich 5.000 EUR entnehmen kannst bis das Kapital i.H.v. 1.000.000 EUR am Ende nur noch 150.000 EUR beträgt.
B15: Kapital Monatsanfang im Zielmonat | C15: EUR | D15: =IFERROR(INDEX('RW-Monate'!$C$4:$C$1203,D12+1),0) -> 155139.4562
B16: Geplante Monatsentnahme im Zielmonat | C16: EUR | D16: =$D$5*(1+$D$6)^(D13-1) -> 7884.496321 | H16: 3. Wie hoch muss das Startkapital sein?
B17: Ziel- bzw. Endkapital | C17: EUR | D17: =$D$4*$D$8 -> 150000
B19: Reichweite | C19: Jahre | D19: =(D11+1+D14)/12 -> 23.13765361 | H19: Du benötigst 1.046.800 EUR Anfangskapital, damit du 25 Jahre lang bei einer IR von 2,00% und jährlichen Rendite von 5,50% monatlich 5.000 EUR entnehmen kannst und am Ende noch 15,00%, bzw. 157.020 EUR übrig behältst.
A21: 3. | B21: Grafik

Sheet RW-Monate
A1: Reichweite: Monatliche Simulation (Entnahme zuerst, dann Verzinsung auf Rest)
A3: Monat | B3: Jahr | C3: Kapital Monatsanfang | D3: Geplante Entnahme (infl.) | E3: Tatsächliche Entnahme | F3: Kapital nach Entnahme | G3: Zins/Rendite (auf Rest) | H3: Kapital Monatsende | I3: Hilfswert
A4: 0 | B4: =INT(A4/12)+1 -> 1 | C4: =Reichweite!$D$4 -> 1000000 | D4: =Reichweite!$D$5*(1+Reichweite!$D$6)^(B4-1) -> 5000 | E4: =MIN(D4,C4) -> 5000 | F4: =C4-E4 -> 995000 | G4: =F4*Reichweite!$F$7 -> 4449.340422 | H4: =MAX(0,F4+G4) -> 999449.3404 | I4: =IF(H4>Reichweite!$D$4*Reichweite!$D$8,A4,"") -> 0
A5: 1 | B5: 1 | C5: =H4 -> 999449.3404 | D5: =Reichweite!$D$5*(1+Reichweite!$D$6)^(B5-1) -> 5000 | E5: 5000 | F5: 994449.3404 | G5: =F5*Reichweite!$F$7 -> 4446.878039 | H5: 998896.2185 | I5: =IF(H5>Reichweite!$D$4*Reichweite!$D$8,A5,"") -> 1
A6: 2 | B6: 1 | C6: 998896.2185 | D6: =Reichweite!$D$5*(1+Reichweite!$D$6)^(B6-1) -> 5000 | E6: 5000 | F6: 993896.2185 | G6: =F6*Reichweite!$F$7 -> 4444.404644 | H6: 998340.6231 | I6: =IF(H6>Reichweite!$D$4*Reichweite!$D$8,A6,"") -> 2
A7: 3 | B7: 1 | C7: 998340.6231 | D7: =Reichweite!$D$5*(1+Reichweite!$D$6)^(B7-1) -> 5000 | E7: 5000 | F7: 993340.6231 | G7: =F7*Reichweite!$F$7 -> 4441.920189 | H7: 997782.5433 | I7: =IF(H7>Reichweite!$D$4*Reichweite!$D$8,A7,"") -> 3
A8: 4 | B8: 1 | C8: 997782.5433 | D8: =Reichweite!$D$5*(1+Reichweite!$D$6)^(B8-1) -> 5000 | E8: 5000 | F8: 992782.5433 | G8: =F8*Reichweite!$F$7 -> 4439.424624 | H8: 997221.9679 | I8: =IF(H8>Reichweite!$D$4*Reichweite!$D$8,A8,"") -> 4
A9: 5 | B9: 1 | C9: 997221.9679 | D9: =Reichweite!$D$5*(1+Reichweite!$D$6)^(B9-1) -> 5000 | E9: 5000 | F9: 992221.9679 | G9: =F9*Reichweite!$F$7 -> 4436.917899 | H9: 996658.8858 | I9: =IF(H9>Reichweite!$D$4*Reichweite!$D$8,A9,"") -> 5
A10: 6 | B10: 1 | C10: 996658.8858 | D10: =Reichweite!$D$5*(1+Reichweite!$D$6)^(B10-1) -> 5000 | E10: 5000 | F10: 991658.8858 | G10: =F10*Reichweite!$F$7 -> 4434.399966 | H10: 996093.2858 | I10: =IF(H10>Reichweite!$D$4*Reichweite!$D$8,A10,"") -> 6
A11: 7 | B11: 1 | C11: 996093.2858 | D11: =Reichweite!$D$5*(1+Reichweite!$D$6)^(B11-1) -> 5000 | E11: 5000 | F11: 991093.2858 | G11: =F11*Reichweite!$F$7 -> 4431.870773 | H11: 995525.1566 | I11: =IF(H11>Reichweite!$D$4*Reichweite!$D$8,A11,"") -> 7
A12: 8 | B12: 1 | C12: 995525.1566 | D12: =Reichweite!$D$5*(1+Reichweite!$D$6)^(B12-1) -> 5000 | E12: 5000 | F12: 990525.1566 | G12: =F12*Reichweite!$F$7 -> 4429.33027 | H12: 994954.4868 | I12: =IF(H12>Reichweite!$D$4*Reichweite!$D$8,A12,"") -> 8
A13: 9 | B13: 1 | C13: 994954.4868 | D13: =Reichweite!$D$5*(1+Reichweite!$D$6)^(B13-1) -> 5000 | E13: 5000 | F13: 989954.4868 | G13: =F13*Reichweite!$F$7 -> 4426.778407 | H13: 994381.2652 | I13: =IF(H13>Reichweite!$D$4*Reichweite!$D$8,A13,"") -> 9
A14: 10 | B14: 1 | C14: 994381.2652 | D14: =Reichweite!$D$5*(1+Reichweite!$D$6)^(B14-1) -> 5000 | E14: 5000 | F14: 989381.2652 | G14: =F14*Reichweite!$F$7 -> 4424.215132 | H14: 993805.4804 | I14: =IF(H14>Reichweite!$D$4*Reichweite!$D$8,A14,"") -> 10
A15: 11 | B15: 1 | C15: 993805.4804 | D15: =Reichweite!$D$5*(1+Reichweite!$D$6)^(B15-1) -> 5000 | E15: 5000 | F15: 988805.4804 | G15: =F15*Reichweite!$F$7 -> 4421.640396 | H15: 993227.1208 | I15: =IF(H15>Reichweite!$D$4*Reichweite!$D$8,A15,"") -> 11
A16: 12 | B16: 2 | C16: 993227.1208 | D16: =Reichweite!$D$5*(1+Reichweite!$D$6)^(B16-1) -> 5100 | E16: 5100 | F16: 988127.1208 | G16: =F16*Reichweite!$F$7 -> 4418.606976 | H16: 992545.7277 | I16: =IF(H16>Reichweite!$D$4*Reichweite!$D$8,A16,"") -> 12
A17: 13 | B17: 2 | C17: 992545.7277 | D17: =Reichweite!$D$5*(1+Reichweite!$D$6)^(B17-1) -> 5100 | E17: 5100 | F17: 987445.7277 | G17: =F17*Reichweite!$F$7 -> 4415.559991 | H17: 991861.2877 | I17: =IF(H17>Reichweite!$D$4*Reichweite!$D$8,A17,"") -> 13
A18: 14 | B18: 2 | C18: 991861.2877 | D18: =Reichweite!$D$5*(1+Reichweite!$D$6)^(B18-1) -> 5100 | E18: 5100 | F18: 986761.2877 | G18: =F18*Reichweite!$F$7 -> 4412.499382 | H18: 991173.7871 | I18: =IF(H18>Reichweite!$D$4*Reichweite!$D$8,A18,"") -> 14
A19: 15 | B19: 2 | C19: 991173.7871 | D19: =Reichweite!$D$5*(1+Reichweite!$D$6)^(B19-1) -> 5100 | E19: 5100 | F19: 986073.7871 | G19: =F19*Reichweite!$F$7 -> 4409.425086 | H19: 990483.2122 | I19: =IF(H19>Reichweite!$D$4*Reichweite!$D$8,A19,"") -> 15
A20: 16 | B20: 2 | C20: 990483.2122 | D20: =Reichweite!$D$5*(1+Reichweite!$D$6)^(B20-1) -> 5100 | E20: 5100 | F20: 985383.2122 | G20: =F20*Reichweite!$F$7 -> 4406.337043 | H20: 989789.5492 | I20: =IF(H20>Reichweite!$D$4*Reichweite!$D$8,A20,"") -> 16
A21: 17 | B21: 2 | C21: 989789.5492 | D21: =Reichweite!$D$5*(1+Reichweite!$D$6)^(B21-1) -> 5100 | E21: 5100 | F21: 984689.5492 | G21: =F21*Reichweite!$F$7 -> 4403.235191 | H21: 989092.7844 | I21: =IF(H21>Reichweite!$D$4*Reichweite!$D$8,A21,"") -> 17
A22: 18 | B22: 2 | C22: 989092.7844 | D22: =Reichweite!$D$5*(1+Reichweite!$D$6)^(B22-1) -> 5100 | E22: 5100 | F22: 983992.7844 | G22: =F22*Reichweite!$F$7 -> 4400.119469 | H22: 988392.9039 | I22: =IF(H22>Reichweite!$D$4*Reichweite!$D$8,A22,"") -> 18
A23: 19 | B23: 2 | C23: 988392.9039 | D23: =Reichweite!$D$5*(1+Reichweite!$D$6)^(B23-1) -> 5100 | E23: 5100 | F23: 983292.9039 | G23: =F23*Reichweite!$F$7 -> 4396.989813 | H23: 987689.8937 | I23: =IF(H23>Reichweite!$D$4*Reichweite!$D$8,A23,"") -> 19
A24: 20 | B24: 2 | C24: 987689.8937 | D24: =Reichweite!$D$5*(1+Reichweite!$D$6)^(B24-1) -> 5100 | E24: 5100 | F24: 982589.8937 | G24: =F24*Reichweite!$F$7 -> 4393.846164 | H24: 986983.7399 | I24: =IF(H24>Reichweite!$D$4*Reichweite!$D$8,A24,"") -> 20
A25: 21 | B25: 2 | C25: 986983.7399 | D25: =Reichweite!$D$5*(1+Reichweite!$D$6)^(B25-1) -> 5100 | E25: 5100 | F25: 981883.7399 | G25: =F25*Reichweite!$F$7 -> 4390.688456 | H25: 986274.4283 | I25: =IF(H25>Reichweite!$D$4*Reichweite!$D$8,A25,"") -> 21
A26: 22 | B26: 2 | C26: 986274.4283 | D26: =Reichweite!$D$5*(1+Reichweite!$D$6)^(B26-1) -> 5100 | E26: 5100 | F26: 981174.4283 | G26: =F26*Reichweite!$F$7 -> 4387.516629 | H26: 985561.945 | I26: =IF(H26>Reichweite!$D$4*Reichweite!$D$8,A26,"") -> 22
A27: 23 | B27: 2 | C27: 985561.945 | D27: =Reichweite!$D$5*(1+Reichweite!$D$6)^(B27-1) -> 5100 | E27: 5100 | F27: 980461.945 | G27: =F27*Reichweite!$F$7 -> 4384.330617 | H27: 984846.2756 | I27: =IF(H27>Reichweite!$D$4*Reichweite!$D$8,A27,"") -> 23
A28: 24 | B28: 3 | C28: 984846.2756 | D28: =Reichweite!$D$5*(1+Reichweite!$D$6)^(B28-1) -> 5202 | E28: 5202 | F28: 979644.2756 | G28: =F28*Reichweite!$F$7 -> 4380.674246 | H28: 984024.9498 | I28: =IF(H28>Reichweite!$D$4*Reichweite!$D$8,A28,"") -> 24
A29: 25 | B29: 3 | C29: 984024.9498 | D29: =Reichweite!$D$5*(1+Reichweite!$D$6)^(B29-1) -> 5202 | E29: 5202 | F29: 978822.9498 | G29: =F29*Reichweite!$F$7 -> 4377.001525 | H29: 983199.9513 | I29: =IF(H29>Reichweite!$D$4*Reichweite!$D$8,A29,"") -> 25
A30: 26 | B30: 3 | C30: 983199.9513 | D30: =Reichweite!$D$5*(1+Reichweite!$D$6)^(B30-1) -> 5202 | E30: 5202 | F30: 977997.9513 | G30: =F30*Reichweite!$F$7 -> 4373.31238 | H30: 982371.2637 | I30: =IF(H30>Reichweite!$D$4*Reichweite!$D$8,A30,"") -> 26
A31: 27 | B31: 3 | C31: 982371.2637 | D31: =Reichweite!$D$5*(1+Reichweite!$D$6)^(B31-1) -> 5202 | E31: 5202 | F31: 977169.2637 | G31: =F31*Reichweite!$F$7 -> 4369.606738 | H31: 981538.8705 | I31: =IF(H31>Reichweite!$D$4*Reichweite!$D$8,A31,"") -> 27
A32: 28 | B32: 3 | C32: 981538.8705 | D32: =Reichweite!$D$5*(1+Reichweite!$D$6)^(B32-1) -> 5202 | E32: 5202 | F32: 976336.8705 | G32: =F32*Reichweite!$F$7 -> 4365.884526 | H32: 980702.755 | I32: =IF(H32>Reichweite!$D$4*Reichweite!$D$8,A32,"") -> 28
A33: 29 | B33: 3 | C33: 980702.755 | D33: =Reichweite!$D$5*(1+Reichweite!$D$6)^(B33-1) -> 5202 | E33: 5202 | F33: 975500.755 | G33: =F33*Reichweite!$F$7 -> 4362.14567 | H33: 979862.9007 | I33: =IF(H33>Reichweite!$D$4*Reichweite!$D$8,A33,"") -> 29
A34: 30 | B34: 3 | C34: 979862.9007 | D34: =Reichweite!$D$5*(1+Reichweite!$D$6)^(B34-1) -> 5202 | E34: 5202 | F34: 974660.9007 | G34: =F34*Reichweite!$F$7 -> 4358.390094 | H34: 979019.2908 | I34: =IF(H34>Reichweite!$D$4*Reichweite!$D$8,A34,"") -> 30
A35: 31 | B35: 3 | C35: 979019.2908 | D35: =Reichweite!$D$5*(1+Reichweite!$D$6)^(B35-1) -> 5202 | E35: 5202 | F35: 973817.2908 | G35: =F35*Reichweite!$F$7 -> 4354.617724 | H35: 978171.9085 | I35: =IF(H35>Reichweite!$D$4*Reichweite!$D$8,A35,"") -> 31
A36: 32 | B36: 3 | C36: 978171.9085 | D36: =Reichweite!$D$5*(1+Reichweite!$D$6)^(B36-1) -> 5202 | E36: 5202 | F36: 972969.9085 | G36: =F36*Reichweite!$F$7 -> 4350.828486 | H36: 977320.737 | I36: =IF(H36>Reichweite!$D$4*Reichweite!$D$8,A36,"") -> 32
A37: 33 | B37: 3 | C37: 977320.737 | D37: =Reichweite!$D$5*(1+Reichweite!$D$6)^(B37-1) -> 5202 | E37: 5202 | F37: 972118.737 | G37: =F37*Reichweite!$F$7 -> 4347.022303 | H37: 976465.7593 | I37: =IF(H37>Reichweite!$D$4*Reichweite!$D$8,A37,"") -> 33
A38: 34 | B38: 3 | C38: 976465.7593 | D38: =Reichweite!$D$5*(1+Reichweite!$D$6)^(B38-1) -> 5202 | E38: 5202 | F38: 971263.7593 | G38: =F38*Reichweite!$F$7 -> 4343.1991 | H38: 975606.9584 | I38: =IF(H38>Reichweite!$D$4*Reichweite!$D$8,A38,"") -> 34
A39: 35 | B39: 3 | C39: 975606.9584 | D39: =Reichweite!$D$5*(1+Reichweite!$D$6)^(B39-1) -> 5202 | E39: 5202 | F39: 970404.9584 | G39: =F39*Reichweite!$F$7 -> 4339.358801 | H39: 974744.3172 | I39: =IF(H39>Reichweite!$D$4*Reichweite!$D$8,A39,"") -> 35
A40: 36 | B40: 4 | C40: 974744.3172 | D40: =Reichweite!$D$5*(1+Reichweite!$D$6)^(B40-1) -> 5306.04 | E40: 5306.04 | F40: 969438.2772 | G40: =F40*Reichweite!$F$7 -> 4335.036094 | H40: 973773.3133 | I40: =IF(H40>Reichweite!$D$4*Reichweite!$D$8,A40,"") -> 36
A41: 37 | B41: 4 | C41: 973773.3133 | D41: =Reichweite!$D$5*(1+Reichweite!$D$6)^(B41-1) -> 5306.04 | E41: 5306.04 | F41: 968467.2733 | G41: =F41*Reichweite!$F$7 -> 4330.694057 | H41: 972797.9673 | I41: =IF(H41>Reichweite!$D$4*Reichweite!$D$8,A41,"") -> 37
A42: 38 | B42: 4 | C42: 972797.9673 | D42: =Reichweite!$D$5*(1+Reichweite!$D$6)^(B42-1) -> 5306.04 | E42: 5306.04 | F42: 967491.9273 | G42: =F42*Reichweite!$F$7 -> 4326.332604 | H42: 971818.2599 | I42: =IF(H42>Reichweite!$D$4*Reichweite!$D$8,A42,"") -> 38
A43: 39 | B43: 4 | C43: 971818.2599 | D43: =Reichweite!$D$5*(1+Reichweite!$D$6)^(B43-1) -> 5306.04 | E43: 5306.04 | F43: 966512.2199 | G43: =F43*Reichweite!$F$7 -> 4321.951647 | H43: 970834.1716 | I43: =IF(H43>Reichweite!$D$4*Reichweite!$D$8,A43,"") -> 39
A44: 40 | B44: 4 | C44: 970834.1716 | D44: =Reichweite!$D$5*(1+Reichweite!$D$6)^(B44-1) -> 5306.04 | E44: 5306.04 | F44: 965528.1316 | G44: =F44*Reichweite!$F$7 -> 4317.5511 | H44: 969845.6827 | I44: =IF(H44>Reichweite!$D$4*Reichweite!$D$8,A44,"") -> 40
A45: 41 | B45: 4 | C45: 969845.6827 | D45: =Reichweite!$D$5*(1+Reichweite!$D$6)^(B45-1) -> 5306.04 | E45: 5306.04 | F45: 964539.6427 | G45: =F45*Reichweite!$F$7 -> 4313.130876 | H45: 968852.7735 | I45: =IF(H45>Reichweite!$D$4*Reichweite!$D$8,A45,"") -> 41
A46: 42 | B46: 4 | C46: 968852.7735 | D46: =Reichweite!$D$5*(1+Reichweite!$D$6)^(B46-1) -> 5306.04 | E46: 5306.04 | F46: 963546.7335 | G46: =F46*Reichweite!$F$7 -> 4308.690885 | H46: 967855.4244 | I46: =IF(H46>Reichweite!$D$4*Reichweite!$D$8,A46,"") -> 42
A47: 43 | B47: 4 | C47: 967855.4244 | D47: =Reichweite!$D$5*(1+Reichweite!$D$6)^(B47-1) -> 5306.04 | E47: 5306.04 | F47: 962549.3844 | G47: =F47*Reichweite!$F$7 -> 4304.23104 | H47: 966853.6155 | I47: =IF(H47>Reichweite!$D$4*Reichweite!$D$8,A47,"") -> 43
A48: 44 | B48: 4 | C48: 966853.6155 | D48: =Reichweite!$D$5*(1+Reichweite!$D$6)^(B48-1) -> 5306.04 | E48: 5306.04 | F48: 961547.5755 | G48: =F48*Reichweite!$F$7 -> 4299.751252 | H48: 965847.3267 | I48: =IF(H48>Reichweite!$D$4*Reichweite!$D$8,A48,"") -> 44
A49: 45 | B49: 4 | C49: 965847.3267 | D49: =Reichweite!$D$5*(1+Reichweite!$D$6)^(B49-1) -> 5306.04 | E49: 5306.04 | F49: 960541.2867 | G49: =F49*Reichweite!$F$7 -> 4295.251432 | H49: 964836.5382 | I49: =IF(H49>Reichweite!$D$4*Reichweite!$D$8,A49,"") -> 45
A50: 46 | B50: 4 | C50: 964836.5382 | D50: =Reichweite!$D$5*(1+Reichweite!$D$6)^(B50-1) -> 5306.04 | E50: 5306.04 | F50: 959530.4982 | G50: =F50*Reichweite!$F$7 -> 4290.731489 | H50: 963821.2296 | I50: =IF(H50>Reichweite!$D$4*Reichweite!$D$8,A50,"") -> 46
A51: 47 | B51: 4 | C51: 963821.2296 | D51: =Reichweite!$D$5*(1+Reichweite!$D$6)^(B51-1) -> 5306.04 | E51: 5306.04 | F51: 958515.1896 | G51: =F51*Reichweite!$F$7 -> 4286.191336 | H51: 962801.381 | I51: =IF(H51>Reichweite!$D$4*Reichweite!$D$8,A51,"") -> 47
A52: 48 | B52: 5 | C52: 962801.381 | D52: =Reichweite!$D$5*(1+Reichweite!$D$6)^(B52-1) -> 5412.1608 | E52: 5412.1608 | F52: 957389.2202 | G52: =F52*Reichweite!$F$7 -> 4281.156339 | H52: 961670.3765 | I52: =IF(H52>Reichweite!$D$4*Reichweite!$D$8,A52,"") -> 48
A53: 49 | B53: 5 | C53: 961670.3765 | D53: =Reichweite!$D$5*(1+Reichweite!$D$6)^(B53-1) -> 5412.1608 | E53: 5412.1608 | F53: 956258.2157 | G53: =F53*Reichweite!$F$7 -> 4276.098828 | H53: 960534.3145 | I53: =IF(H53>Reichweite!$D$4*Reichweite!$D$8,A53,"") -> 49
A54: 50 | B54: 5 | C54: 960534.3145 | D54: =Reichweite!$D$5*(1+Reichweite!$D$6)^(B54-1) -> 5412.1608 | E54: 5412.1608 | F54: 955122.1537 | G54: =F54*Reichweite!$F$7 -> 4271.018701 | H54: 959393.1724 | I54: =IF(H54>Reichweite!$D$4*Reichweite!$D$8,A54,"") -> 50
A55: 51 | B55: 5 | C55: 959393.1724 | D55: =Reichweite!$D$5*(1+Reichweite!$D$6)^(B55-1) -> 5412.1608 | E55: 5412.1608 | F55: 953981.0116 | G55: =F55*Reichweite!$F$7 -> 4265.915857 | H55: 958246.9275 | I55: =IF(H55>Reichweite!$D$4*Reichweite!$D$8,A55,"") -> 51
A56: 52 | B56: 5 | C56: 958246.9275 | D56: =Reichweite!$D$5*(1+Reichweite!$D$6)^(B56-1) -> 5412.1608 | E56: 5412.1608 | F56: 952834.7667 | G56: =F56*Reichweite!$F$7 -> 4260.790194 | H56: 957095.5569 | I56: =IF(H56>Reichweite!$D$4*Reichweite!$D$8,A56,"") -> 52
A57: 53 | B57: 5 | C57: 957095.5569 | D57: =Reichweite!$D$5*(1+Reichweite!$D$6)^(B57-1) -> 5412.1608 | E57: 5412.1608 | F57: 951683.3961 | G57: =F57*Reichweite!$F$7 -> 4255.641612 | H57: 955939.0377 | I57: =IF(H57>Reichweite!$D$4*Reichweite!$D$8,A57,"") -> 53
A58: 54 | B58: 5 | C58: 955939.0377 | D58: =Reichweite!$D$5*(1+Reichweite!$D$6)^(B58-1) -> 5412.1608 | E58: 5412.1608 | F58: 950526.8769 | G58: =F58*Reichweite!$F$7 -> 4250.470006 | H58: 954777.3469 | I58: =IF(H58>Reichweite!$D$4*Reichweite!$D$8,A58,"") -> 54
A59: 55 | B59: 5 | C59: 954777.3469 | D59: =Reichweite!$D$5*(1+Reichweite!$D$6)^(B59-1) -> 5412.1608 | E59: 5412.1608 | F59: 949365.1861 | G59: =F59*Reichweite!$F$7 -> 4245.275275 | H59: 953610.4614 | I59: =IF(H59>Reichweite!$D$4*Reichweite!$D$8,A59,"") -> 55
A60: 56 | B60: 5 | C60: 953610.4614 | D60: =Reichweite!$D$5*(1+Reichweite!$D$6)^(B60-1) -> 5412.1608 | E60: 5412.1608 | F60: 948198.3006 | G60: =F60*Reichweite!$F$7 -> 4240.057314 | H60: 952438.3579 | I60: =IF(H60>Reichweite!$D$4*Reichweite!$D$8,A60,"") -> 56
A61: 57 | B61: 5 | C61: 952438.3579 | D61: =Reichweite!$D$5*(1+Reichweite!$D$6)^(B61-1) -> 5412.1608 | E61: 5412.1608 | F61: 947026.1971 | G61: =F61*Reichweite!$F$7 -> 4234.81602 | H61: 951261.0131 | I61: =IF(H61>Reichweite!$D$4*Reichweite!$D$8,A61,"") -> 57
A62: 58 | B62: 5 | C62: 951261.0131 | D62: =Reichweite!$D$5*(1+Reichweite!$D$6)^(B62-1) -> 5412.1608 | E62: 5412.1608 | F62: 945848.8523 | G62: =F62*Reichweite!$F$7 -> 4229.551289 | H62: 950078.4036 | I62: =IF(H62>Reichweite!$D$4*Reichweite!$D$8,A62,"") -> 58
A63: 59 | B63: 5 | C63: 950078.4036 | D63: =Reichweite!$D$5*(1+Reichweite!$D$6)^(B63-1) -> 5412.1608 | E63: 5412.1608 | F63: 944666.2428 | G63: =F63*Reichweite!$F$7 -> 4224.263015 | H63: 948890.5058 | I63: =IF(H63>Reichweite!$D$4*Reichweite!$D$8,A63,"") -> 59
A64: 60 | B64: 6 | C64: 948890.5058 | D64: =Reichweite!$D$5*(1+Reichweite!$D$6)^(B64-1) -> 5520.404016 | E64: 5520.404016 | F64: 943370.1018 | G64: =F64*Reichweite!$F$7 -> 4218.467063 | H64: 947588.5689 | I64: =IF(H64>Reichweite!$D$4*Reichweite!$D$8,A64,"") -> 60
A65: 61 | B65: 6 | C65: 947588.5689 | D65: =Reichweite!$D$5*(1+Reichweite!$D$6)^(B65-1) -> 5520.404016 | E65: 5520.404016 | F65: 942068.1649 | G65: =F65*Reichweite!$F$7 -> 4212.645193 | H65: 946280.8101 | I65: =IF(H65>Reichweite!$D$4*Reichweite!$D$8,A65,"") -> 61
A66: 62 | B66: 6 | C66: 946280.8101 | D66: =Reichweite!$D$5*(1+Reichweite!$D$6)^(B66-1) -> 5520.404016 | E66: 5520.404016 | F66: 940760.406 | G66: =F66*Reichweite!$F$7 -> 4206.797289 | H66: 944967.2033 | I66: =IF(H66>Reichweite!$D$4*Reichweite!$D$8,A66,"") -> 62
A67: 63 | B67: 6 | C67: 944967.2033 | D67: =Reichweite!$D$5*(1+Reichweite!$D$6)^(B67-1) -> 5520.404016 | E67: 5520.404016 | F67: 939446.7993 | G67: =F67*Reichweite!$F$7 -> 4200.923235 | H67: 943647.7225 | I67: =IF(H67>Reichweite!$D$4*Reichweite!$D$8,A67,"") -> 63
A68: 64 | B68: =INT(A68/12)+1 -> 6 | C68: 943647.7225 | D68: =Reichweite!$D$5*(1+Reichweite!$D$6)^(B68-1) -> 5520.404016 | E68: =MIN(D68,C68) -> 5520.404016 | F68: =C68-E68 -> 938127.3185 | G68: =F68*Reichweite!$F$7 -> 4195.022914 | H68: =MAX(0,F68+G68) -> 942322.3414 | I68: =IF(H68>Reichweite!$D$4*Reichweite!$D$8,A68,"") -> 64
A69: 65 | B69: 6 | C69: =H68 -> 942322.3414 | D69: =Reichweite!$D$5*(1+Reichweite!$D$6)^(B69-1) -> 5520.404016 | E69: 5520.404016 | F69: 936801.9374 | G69: =F69*Reichweite!$F$7 -> 4189.096209 | H69: 940991.0336 | I69: =IF(H69>Reichweite!$D$4*Reichweite!$D$8,A69,"") -> 65
A70: 66 | B70: 6 | C70: 940991.0336 | D70: =Reichweite!$D$5*(1+Reichweite!$D$6)^(B70-1) -> 5520.404016 | E70: 5520.404016 | F70: 935470.6296 | G70: =F70*Reichweite!$F$7 -> 4183.143001 | H70: 939653.7726 | I70: =IF(H70>Reichweite!$D$4*Reichweite!$D$8,A70,"") -> 66
A71: 67 | B71: 6 | C71: 939653.7726 | D71: =Reichweite!$D$5*(1+Reichweite!$D$6)^(B71-1) -> 5520.404016 | E71: 5520.404016 | F71: 934133.3686 | G71: =F71*Reichweite!$F$7 -> 4177.163173 | H71: 938310.5318 | I71: =IF(H71>Reichweite!$D$4*Reichweite!$D$8,A71,"") -> 67
A72: 68 | B72: 6 | C72: 938310.5318 | D72: =Reichweite!$D$5*(1+Reichweite!$D$6)^(B72-1) -> 5520.404016 | E72: 5520.404016 | F72: 932790.1278 | G72: =F72*Reichweite!$F$7 -> 4171.156604 | H72: 936961.2844 | I72: =IF(H72>Reichweite!$D$4*Reichweite!$D$8,A72,"") -> 68
A73: 69 | B73: 6 | C73: 936961.2844 | D73: =Reichweite!$D$5*(1+Reichweite!$D$6)^(B73-1) -> 5520.404016 | E73: 5520.404016 | F73: 931440.8804 | G73: =F73*Reichweite!$F$7 -> 4165.123176 | H73: 935606.0035 | I73: =IF(H73>Reichweite!$D$4*Reichweite!$D$8,A73,"") -> 69
A74: 70 | B74: 6 | C74: 935606.0035 | D74: =Reichweite!$D$5*(1+Reichweite!$D$6)^(B74-1) -> 5520.404016 | E74: 5520.404016 | F74: 930085.5995 | G74: =F74*Reichweite!$F$7 -> 4159.062768 | H74: 934244.6623 | I74: =IF(H74>Reichweite!$D$4*Reichweite!$D$8,A74,"") -> 70
A75: 71 | B75: 6 | C75: 934244.6623 | D75: =Reichweite!$D$5*(1+Reichweite!$D$6)^(B75-1) -> 5520.404016 | E75: 5520.404016 | F75: 928724.2583 | G75: =F75*Reichweite!$F$7 -> 4152.97526 | H75: 932877.2335 | I75: =IF(H75>Reichweite!$D$4*Reichweite!$D$8,A75,"") -> 71
A76: 72 | B76: 7 | C76: 932877.2335 | D76: =Reichweite!$D$5*(1+Reichweite!$D$6)^(B76-1) -> 5630.812096 | E76: 5630.812096 | F76: 927246.4214 | G76: =F76*Reichweite!$F$7 -> 4146.366819 | H76: 931392.7882 | I76: =IF(H76>Reichweite!$D$4*Reichweite!$D$8,A76,"") -> 72
A77: 73 | B77: 7 | C77: 931392.7882 | D77: =Reichweite!$D$5*(1+Reichweite!$D$6)^(B77-1) -> 5630.812096 | E77: 5630.812096 | F77: 925761.9761 | G77: =F77*Reichweite!$F$7 -> 4139.728826 | H77: 929901.705 | I77: =IF(H77>Reichweite!$D$4*Reichweite!$D$8,A77,"") -> 73
A78: 74 | B78: 7 | C78: 929901.705 | D78: =Reichweite!$D$5*(1+Reichweite!$D$6)^(B78-1) -> 5630.812096 | E78: 5630.812096 | F78: 924270.8929 | G78: =F78*Reichweite!$F$7 -> 4133.061151 | H78: 928403.954 | I78: =IF(H78>Reichweite!$D$4*Reichweite!$D$8,A78,"") -> 74
A79: 75 | B79: 7 | C79: 928403.954 | D79: =Reichweite!$D$5*(1+Reichweite!$D$6)^(B79-1) -> 5630.812096 | E79: 5630.812096 | F79: 922773.1419 | G79: =F79*Reichweite!$F$7 -> 4126.363659 | H79: 926899.5056 | I79: =IF(H79>Reichweite!$D$4*Reichweite!$D$8,A79,"") -> 75
A80: 76 | B80: 7 | C80: 926899.5056 | D80: =Reichweite!$D$5*(1+Reichweite!$D$6)^(B80-1) -> 5630.812096 | E80: 5630.812096 | F80: 921268.6935 | G80: =F80*Reichweite!$F$7 -> 4119.636219 | H80: 925388.3297 | I80: =IF(H80>Reichweite!$D$4*Reichweite!$D$8,A80,"") -> 76
A81: 77 | B81: 7 | C81: 925388.3297 | D81: =Reichweite!$D$5*(1+Reichweite!$D$6)^(B81-1) -> 5630.812096 | E81: 5630.812096 | F81: 919757.5176 | G81: =F81*Reichweite!$F$7 -> 4112.878695 | H81: 923870.3963 | I81: =IF(H81>Reichweite!$D$4*Reichweite!$D$8,A81,"") -> 77
A82: 78 | B82: 7 | C82: 923870.3963 | D82: =Reichweite!$D$5*(1+Reichweite!$D$6)^(B82-1) -> 5630.812096 | E82: 5630.812096 | F82: 918239.5842 | G82: =F82*Reichweite!$F$7 -> 4106.090954 | H82: 922345.6752 | I82: =IF(H82>Reichweite!$D$4*Reichweite!$D$8,A82,"") -> 78
A83: 79 | B83: 7 | C83: 922345.6752 | D83: =Reichweite!$D$5*(1+Reichweite!$D$6)^(B83-1) -> 5630.812096 | E83: 5630.812096 | F83: 916714.8631 | G83: =F83*Reichweite!$F$7 -> 4099.27286 | H83: 920814.1359 | I83: =IF(H83>Reichweite!$D$4*Reichweite!$D$8,A83,"") -> 79
A84: 80 | B84: 7 | C84: 920814.1359 | D84: =Reichweite!$D$5*(1+Reichweite!$D$6)^(B84-1) -> 5630.812096 | E84: 5630.812096 | F84: 915183.3238 | G84: =F84*Reichweite!$F$7 -> 4092.424278 | H84: 919275.7481 | I84: =IF(H84>Reichweite!$D$4*Reichweite!$D$8,A84,"") -> 80
A85: 81 | B85: 7 | C85: 919275.7481 | D85: =Reichweite!$D$5*(1+Reichweite!$D$6)^(B85-1) -> 5630.812096 | E85: 5630.812096 | F85: 913644.936 | G85: =F85*Reichweite!$F$7 -> 4085.545071 | H85: 917730.4811 | I85: =IF(H85>Reichweite!$D$4*Reichweite!$D$8,A85,"") -> 81
A86: 82 | B86: 7 | C86: 917730.4811 | D86: =Reichweite!$D$5*(1+Reichweite!$D$6)^(B86-1) -> 5630.812096 | E86: 5630.812096 | F86: 912099.669 | G86: =F86*Reichweite!$F$7 -> 4078.635102 | H86: 916178.3041 | I86: =IF(H86>Reichweite!$D$4*Reichweite!$D$8,A86,"") -> 82
A87: 83 | B87: 7 | C87: 916178.3041 | D87: =Reichweite!$D$5*(1+Reichweite!$D$6)^(B87-1) -> 5630.812096 | E87: 5630.812096 | F87: 910547.492 | G87: =F87*Reichweite!$F$7 -> 4071.694234 | H87: 914619.1862 | I87: =IF(H87>Reichweite!$D$4*Reichweite!$D$8,A87,"") -> 83
A88: 84 | B88: 8 | C88: 914619.1862 | D88: =Reichweite!$D$5*(1+Reichweite!$D$6)^(B88-1) -> 5743.428338 | E88: 5743.428338 | F88: 908875.7579 | G88: =F88*Reichweite!$F$7 -> 4064.218742 | H88: 912939.9766 | I88: =IF(H88>Reichweite!$D$4*Reichweite!$D$8,A88,"") -> 84
A89: 85 | B89: 8 | C89: 912939.9766 | D89: =Reichweite!$D$5*(1+Reichweite!$D$6)^(B89-1) -> 5743.428338 | E89: 5743.428338 | F89: 907196.5483 | G89: =F89*Reichweite!$F$7 -> 4056.709823 | H89: 911253.2581 | I89: =IF(H89>Reichweite!$D$4*Reichweite!$D$8,A89,"") -> 85
A90: 86 | B90: 8 | C90: 911253.2581 | D90: =Reichweite!$D$5*(1+Reichweite!$D$6)^(B90-1) -> 5743.428338 | E90: 5743.428338 | F90: 905509.8298 | G90: =F90*Reichweite!$F$7 -> 4049.167325 | H90: 909558.9971 | I90: =IF(H90>Reichweite!$D$4*Reichweite!$D$8,A90,"") -> 86
A91: 87 | B91: 8 | C91: 909558.9971 | D91: =Reichweite!$D$5*(1+Reichweite!$D$6)^(B91-1) -> 5743.428338 | E91: 5743.428338 | F91: 903815.5688 | G91: =F91*Reichweite!$F$7 -> 4041.5911 | H91: 907857.1599 | I91: =IF(H91>Reichweite!$D$4*Reichweite!$D$8,A91,"") -> 87
A92: 88 | B92: 8 | C92: 907857.1599 | D92: =Reichweite!$D$5*(1+Reichweite!$D$6)^(B92-1) -> 5743.428338 | E92: 5743.428338 | F92: 902113.7315 | G92: =F92*Reichweite!$F$7 -> 4033.980996 | H92: 906147.7125 | I92: =IF(H92>Reichweite!$D$4*Reichweite!$D$8,A92,"") -> 88
A93: 89 | B93: 8 | C93: 906147.7125 | D93: =Reichweite!$D$5*(1+Reichweite!$D$6)^(B93-1) -> 5743.428338 | E93: 5743.428338 | F93: 900404.2842 | G93: =F93*Reichweite!$F$7 -> 4026.336863 | H93: 904430.6211 | I93: =IF(H93>Reichweite!$D$4*Reichweite!$D$8,A93,"") -> 89
A94: 90 | B94: 8 | C94: 904430.6211 | D94: =Reichweite!$D$5*(1+Reichweite!$D$6)^(B94-1) -> 5743.428338 | E94: 5743.428338 | F94: 898687.1927 | G94: =F94*Reichweite!$F$7 -> 4018.658546 | H94: 902705.8513 | I94: =IF(H94>Reichweite!$D$4*Reichweite!$D$8,A94,"") -> 90
A95: 91 | B95: 8 | C95: 902705.8513 | D95: =Reichweite!$D$5*(1+Reichweite!$D$6)^(B95-1) -> 5743.428338 | E95: 5743.428338 | F95: 896962.4229 | G95: =F95*Reichweite!$F$7 -> 4010.945895 | H95: 900973.3688 | I95: =IF(H95>Reichweite!$D$4*Reichweite!$D$8,A95,"") -> 91
A96: 92 | B96: 8 | C96: 900973.3688 | D96: =Reichweite!$D$5*(1+Reichweite!$D$6)^(B96-1) -> 5743.428338 | E96: 5743.428338 | F96: 895229.9405 | G96: =F96*Reichweite!$F$7 -> 4003.198755 | H96: 899233.1392 | I96: =IF(H96>Reichweite!$D$4*Reichweite!$D$8,A96,"") -> 92
A97: 93 | B97: 8 | C97: 899233.1392 | D97: =Reichweite!$D$5*(1+Reichweite!$D$6)^(B97-1) -> 5743.428338 | E97: 5743.428338 | F97: 893489.7109 | G97: =F97*Reichweite!$F$7 -> 3995.416973 | H97: 897485.1279 | I97: =IF(H97>Reichweite!$D$4*Reichweite!$D$8,A97,"") -> 93
A98: 94 | B98: 8 | C98: 897485.1279 | D98: =Reichweite!$D$5*(1+Reichweite!$D$6)^(B98-1) -> 5743.428338 | E98: 5743.428338 | F98: 891741.6995 | G98: =F98*Reichweite!$F$7 -> 3987.600392 | H98: 895729.2999 | I98: =IF(H98>Reichweite!$D$4*Reichweite!$D$8,A98,"") -> 94
A99: 95 | B99: 8 | C99: 895729.2999 | D99: =Reichweite!$D$5*(1+Reichweite!$D$6)^(B99-1) -> 5743.428338 | E99: 5743.428338 | F99: 889985.8716 | G99: =F99*Reichweite!$F$7 -> 3979.748858 | H99: 893965.6204 | I99: =IF(H99>Reichweite!$D$4*Reichweite!$D$8,A99,"") -> 95
A100: 96 | B100: 9 | C100: 893965.6204 | D100: =Reichweite!$D$5*(1+Reichweite!$D$6)^(B100-1) -> 5858.296905 | E100: 5858.296905 | F100: 888107.3235 | G100: =F100*Reichweite!$F$7 -> 3971.348557 | H100: 892078.6721 | I100: =IF(H100>Reichweite!$D$4*Reichweite!$D$8,A100,"") -> 96
A101: 97 | B101: 9 | C101: 892078.6721 | D101: =Reichweite!$D$5*(1+Reichweite!$D$6)^(B101-1) -> 5858.296905 | E101: 5858.296905 | F101: 886220.3752 | G101: =F101*Reichweite!$F$7 -> 3962.910692 | H101: 890183.2859 | I101: =IF(H101>Reichweite!$D$4*Reichweite!$D$8,A101,"") -> 97
A102: 98 | B102: 9 | C102: 890183.2859 | D102: =Reichweite!$D$5*(1+Reichweite!$D$6)^(B102-1) -> 5858.296905 | E102: 5858.296905 | F102: 884324.989 | G102: =F102*Reichweite!$F$7 -> 3954.435096 | H102: 888279.4241 | I102: =IF(H102>Reichweite!$D$4*Reichweite!$D$8,A102,"") -> 98
A103: 99 | B103: 9 | C103: 888279.4241 | D103: =Reichweite!$D$5*(1+Reichweite!$D$6)^(B103-1) -> 5858.296905 | E103: 5858.296905 | F103: 882421.1272 | G103: =F103*Reichweite!$F$7 -> 3945.921599 | H103: 886367.0488 | I103: =IF(H103>Reichweite!$D$4*Reichweite!$D$8,A103,"") -> 99
A104: 100 | B104: 9 | C104: 886367.0488 | D104: =Reichweite!$D$5*(1+Reichweite!$D$6)^(B104-1) -> 5858.296905 | E104: 5858.296905 | F104: 880508.7519 | G104: =F104*Reichweite!$F$7 -> 3937.370032 | H104: 884446.1219 | I104: =IF(H104>Reichweite!$D$4*Reichweite!$D$8,A104,"") -> 100
A105: 101 | B105: 9 | C105: 884446.1219 | D105: =Reichweite!$D$5*(1+Reichweite!$D$6)^(B105-1) -> 5858.296905 | E105: 5858.296905 | F105: 878587.825 | G105: =F105*Reichweite!$F$7 -> 3928.780226 | H105: 882516.6052 | I105: =IF(H105>Reichweite!$D$4*Reichweite!$D$8,A105,"") -> 101
A106: 102 | B106: 9 | C106: 882516.6052 | D106: =Reichweite!$D$5*(1+Reichweite!$D$6)^(B106-1) -> 5858.296905 | E106: 5858.296905 | F106: 876658.3083 | G106: =F106*Reichweite!$F$7 -> 3920.152008 | H106: 880578.4603 | I106: =IF(H106>Reichweite!$D$4*Reichweite!$D$8,A106,"") -> 102
A107: 103 | B107: 9 | C107: 880578.4603 | D107: =Reichweite!$D$5*(1+Reichweite!$D$6)^(B107-1) -> 5858.296905 | E107: 5858.296905 | F107: 874720.1634 | G107: =F107*Reichweite!$F$7 -> 3911.485207 | H107: 878631.6486 | I107: =IF(H107>Reichweite!$D$4*Reichweite!$D$8,A107,"") -> 103
A108: 104 | B108: 9 | C108: 878631.6486 | D108: =Reichweite!$D$5*(1+Reichweite!$D$6)^(B108-1) -> 5858.296905 | E108: 5858.296905 | F108: 872773.3517 | G108: =F108*Reichweite!$F$7 -> 3902.779652 | H108: 876676.1314 | I108: =IF(H108>Reichweite!$D$4*Reichweite!$D$8,A108,"") -> 104
A109: 105 | B109: 9 | C109: 876676.1314 | D109: =Reichweite!$D$5*(1+Reichweite!$D$6)^(B109-1) -> 5858.296905 | E109: 5858.296905 | F109: 870817.8345 | G109: =F109*Reichweite!$F$7 -> 3894.035167 | H109: 874711.8696 | I109: =IF(H109>Reichweite!$D$4*Reichweite!$D$8,A109,"") -> 105
A110: 106 | B110: 9 | C110: 874711.8696 | D110: =Reichweite!$D$5*(1+Reichweite!$D$6)^(B110-1) -> 5858.296905 | E110: 5858.296905 | F110: 868853.5727 | G110: =F110*Reichweite!$F$7 -> 3885.25158 | H110: 872738.8243 | I110: =IF(H110>Reichweite!$D$4*Reichweite!$D$8,A110,"") -> 106
A111: 107 | B111: 9 | C111: 872738.8243 | D111: =Reichweite!$D$5*(1+Reichweite!$D$6)^(B111-1) -> 5858.296905 | E111: 5858.296905 | F111: 866880.5274 | G111: =F111*Reichweite!$F$7 -> 3876.428716 | H111: 870756.9561 | I111: =IF(H111>Reichweite!$D$4*Reichweite!$D$8,A111,"") -> 107
A112: 108 | B112: 10 | C112: 870756.9561 | D112: =Reichweite!$D$5*(1+Reichweite!$D$6)^(B112-1) -> 5975.462843 | E112: 5975.462843 | F112: 864781.4933 | G112: =F112*Reichweite!$F$7 -> 3867.042467 | H112: 868648.5357 | I112: =IF(H112>Reichweite!$D$4*Reichweite!$D$8,A112,"") -> 108
A113: 109 | B113: 10 | C113: 868648.5357 | D113: =Reichweite!$D$5*(1+Reichweite!$D$6)^(B113-1) -> 5975.462843 | E113: 5975.462843 | F113: 862673.0729 | G113: =F113*Reichweite!$F$7 -> 3857.614246 | H113: 866530.6871 | I113: =IF(H113>Reichweite!$D$4*Reichweite!$D$8,A113,"") -> 109
A114: 110 | B114: 10 | C114: 866530.6871 | D114: =Reichweite!$D$5*(1+Reichweite!$D$6)^(B114-1) -> 5975.462843 | E114: 5975.462843 | F114: 860555.2243 | G114: =F114*Reichweite!$F$7 -> 3848.143865 | H114: 864403.3682 | I114: =IF(H114>Reichweite!$D$4*Reichweite!$D$8,A114,"") -> 110
A115: 111 | B115: 10 | C115: 864403.3682 | D115: =Reichweite!$D$5*(1+Reichweite!$D$6)^(B115-1) -> 5975.462843 | E115: 5975.462843 | F115: 858427.9053 | G115: =F115*Reichweite!$F$7 -> 3838.631135 | H115: 862266.5365 | I115: =IF(H115>Reichweite!$D$4*Reichweite!$D$8,A115,"") -> 111
A116: 112 | B116: 10 | C116: 862266.5365 | D116: =Reichweite!$D$5*(1+Reichweite!$D$6)^(B116-1) -> 5975.462843 | E116: 5975.462843 | F116: 856291.0736 | G116: =F116*Reichweite!$F$7 -> 3829.075867 | H116: 860120.1495 | I116: =IF(H116>Reichweite!$D$4*Reichweite!$D$8,A116,"") -> 112
A117: 113 | B117: 10 | C117: 860120.1495 | D117: =Reichweite!$D$5*(1+Reichweite!$D$6)^(B117-1) -> 5975.462843 | E117: 5975.462843 | F117: 854144.6866 | G117: =F117*Reichweite!$F$7 -> 3819.47787 | H117: 857964.1645 | I117: =IF(H117>Reichweite!$D$4*Reichweite!$D$8,A117,"") -> 113
A118: 114 | B118: 10 | C118: 857964.1645 | D118: =Reichweite!$D$5*(1+Reichweite!$D$6)^(B118-1) -> 5975.462843 | E118: 5975.462843 | F118: 851988.7017 | G118: =F118*Reichweite!$F$7 -> 3809.836955 | H118: 855798.5386 | I118: =IF(H118>Reichweite!$D$4*Reichweite!$D$8,A118,"") -> 114
A119: 115 | B119: 10 | C119: 855798.5386 | D119: =Reichweite!$D$5*(1+Reichweite!$D$6)^(B119-1) -> 5975.462843 | E119: 5975.462843 | F119: 849823.0758 | G119: =F119*Reichweite!$F$7 -> 3800.152928 | H119: 853623.2287 | I119: =IF(H119>Reichweite!$D$4*Reichweite!$D$8,A119,"") -> 115
A120: 116 | B120: 10 | C120: 853623.2287 | D120: =Reichweite!$D$5*(1+Reichweite!$D$6)^(B120-1) -> 5975.462843 | E120: 5975.462843 | F120: 847647.7659 | G120: =F120*Reichweite!$F$7 -> 3790.425597 | H120: 851438.1915 | I120: =IF(H120>Reichweite!$D$4*Reichweite!$D$8,A120,"") -> 116
A121: 117 | B121: 10 | C121: 851438.1915 | D121: =Reichweite!$D$5*(1+Reichweite!$D$6)^(B121-1) -> 5975.462843 | E121: 5975.462843 | F121: 845462.7286 | G121: =F121*Reichweite!$F$7 -> 3780.654768 | H121: 849243.3834 | I121: =IF(H121>Reichweite!$D$4*Reichweite!$D$8,A121,"") -> 117
A122: 118 | B122: 10 | C122: 849243.3834 | D122: =Reichweite!$D$5*(1+Reichweite!$D$6)^(B122-1) -> 5975.462843 | E122: 5975.462843 | F122: 843267.9205 | G122: =F122*Reichweite!$F$7 -> 3770.840247 | H122: 847038.7608 | I122: =IF(H122>Reichweite!$D$4*Reichweite!$D$8,A122,"") -> 118
A123: 119 | B123: 10 | C123: 847038.7608 | D123: =Reichweite!$D$5*(1+Reichweite!$D$6)^(B123-1) -> 5975.462843 | E123: 5975.462843 | F123: 841063.2979 | G123: =F123*Reichweite!$F$7 -> 3760.981839 | H123: 844824.2798 | I123: =IF(H123>Reichweite!$D$4*Reichweite!$D$8,A123,"") -> 119
A124: 120 | B124: 11 | C124: 844824.2798 | D124: =Reichweite!$D$5*(1+Reichweite!$D$6)^(B124-1) -> 6094.9721 | E124: 6094.9721 | F124: 838729.3077 | G124: =F124*Reichweite!$F$7 -> 3750.544937 | H124: 842479.8526 | I124: =IF(H124>Reichweite!$D$4*Reichweite!$D$8,A124,"") -> 120
A125: 121 | B125: 11 | C125: 842479.8526 | D125: =Reichweite!$D$5*(1+Reichweite!$D$6)^(B125-1) -> 6094.9721 | E125: 6094.9721 | F125: 836384.8805 | G125: =F125*Reichweite!$F$7 -> 3740.061364 | H125: 840124.9419 | I125: =IF(H125>Reichweite!$D$4*Reichweite!$D$8,A125,"") -> 121
A126: 122 | B126: 11 | C126: 840124.9419 | D126: =Reichweite!$D$5*(1+Reichweite!$D$6)^(B126-1) -> 6094.9721 | E126: 6094.9721 | F126: 834029.9698 | G126: =F126*Reichweite!$F$7 -> 3729.530913 | H126: 837759.5007 | I126: =IF(H126>Reichweite!$D$4*Reichweite!$D$8,A126,"") -> 122
A127: 123 | B127: 11 | C127: 837759.5007 | D127: =Reichweite!$D$5*(1+Reichweite!$D$6)^(B127-1) -> 6094.9721 | E127: 6094.9721 | F127: 831664.5286 | G127: =F127*Reichweite!$F$7 -> 3718.953372 | H127: 835383.482 | I127: =IF(H127>Reichweite!$D$4*Reichweite!$D$8,A127,"") -> 123
A128: 124 | B128: 11 | C128: 835383.482 | D128: =Reichweite!$D$5*(1+Reichweite!$D$6)^(B128-1) -> 6094.9721 | E128: 6094.9721 | F128: 829288.5099 | G128: =F128*Reichweite!$F$7 -> 3708.328531 | H128: 832996.8384 | I128: =IF(H128>Reichweite!$D$4*Reichweite!$D$8,A128,"") -> 124
A129: 125 | B129: 11 | C129: 832996.8384 | D129: =Reichweite!$D$5*(1+Reichweite!$D$6)^(B129-1) -> 6094.9721 | E129: 6094.9721 | F129: 826901.8663 | G129: =F129*Reichweite!$F$7 -> 3697.65618 | H129: 830599.5225 | I129: =IF(H129>Reichweite!$D$4*Reichweite!$D$8,A129,"") -> 125
A130: 126 | B130: 11 | C130: 830599.5225 | D130: =Reichweite!$D$5*(1+Reichweite!$D$6)^(B130-1) -> 6094.9721 | E130: 6094.9721 | F130: 824504.5504 | G130: =F130*Reichweite!$F$7 -> 3686.936105 | H130: 828191.4865 | I130: =IF(H130>Reichweite!$D$4*Reichweite!$D$8,A130,"") -> 126
A131: 127 | B131: 11 | C131: 828191.4865 | D131: =Reichweite!$D$5*(1+Reichweite!$D$6)^(B131-1) -> 6094.9721 | E131: 6094.9721 | F131: 822096.5144 | G131: =F131*Reichweite!$F$7 -> 3676.168093 | H131: 825772.6825 | I131: =IF(H131>Reichweite!$D$4*Reichweite!$D$8,A131,"") -> 127
A132: 128 | B132: =INT(A132/12)+1 -> 11 | C132: 825772.6825 | D132: =Reichweite!$D$5*(1+Reichweite!$D$6)^(B132-1) -> 6094.9721 | E132: =MIN(D132,C132) -> 6094.9721 | F132: =C132-E132 -> 819677.7104 | G132: =F132*Reichweite!$F$7 -> 3665.35193 | H132: =MAX(0,F132+G132) -> 823343.0623 | I132: =IF(H132>Reichweite!$D$4*Reichweite!$D$8,A132,"") -> 128
A133: 129 | B133: 11 | C133: =H132 -> 823343.0623 | D133: =Reichweite!$D$5*(1+Reichweite!$D$6)^(B133-1) -> 6094.9721 | E133: 6094.9721 | F133: 817248.0902 | G133: =F133*Reichweite!$F$7 -> 3654.4874 | H133: 820902.5776 | I133: =IF(H133>Reichweite!$D$4*Reichweite!$D$8,A133,"") -> 129
A134: 130 | B134: 11 | C134: 820902.5776 | D134: =Reichweite!$D$5*(1+Reichweite!$D$6)^(B134-1) -> 6094.9721 | E134: 6094.9721 | F134: 814807.6055 | G134: =F134*Reichweite!$F$7 -> 3643.574287 | H134: 818451.1798 | I134: =IF(H134>Reichweite!$D$4*Reichweite!$D$8,A134,"") -> 130
A135: 131 | B135: 11 | C135: 818451.1798 | D135: =Reichweite!$D$5*(1+Reichweite!$D$6)^(B135-1) -> 6094.9721 | E135: 6094.9721 | F135: 812356.2077 | G135: =F135*Reichweite!$F$7 -> 3632.612374 | H135: 815988.8201 | I135: =IF(H135>Reichweite!$D$4*Reichweite!$D$8,A135,"") -> 131
A136: 132 | B136: 12 | C136: 815988.8201 | D136: =Reichweite!$D$5*(1+Reichweite!$D$6)^(B136-1) -> 6216.871542 | E136: 6216.871542 | F136: 809771.9485 | G136: =F136*Reichweite!$F$7 -> 3621.056345 | H136: 813393.0049 | I136: =IF(H136>Reichweite!$D$4*Reichweite!$D$8,A136,"") -> 132
A137: 133 | B137: 12 | C137: 813393.0049 | D137: =Reichweite!$D$5*(1+Reichweite!$D$6)^(B137-1) -> 6216.871542 | E137: 6216.871542 | F137: 807176.1333 | G137: =F137*Reichweite!$F$7 -> 3609.448641 | H137: 810785.582 | I137: =IF(H137>Reichweite!$D$4*Reichweite!$D$8,A137,"") -> 133
A138: 134 | B138: 12 | C138: 810785.582 | D138: =Reichweite!$D$5*(1+Reichweite!$D$6)^(B138-1) -> 6216.871542 | E138: 6216.871542 | F138: 804568.7104 | G138: =F138*Reichweite!$F$7 -> 3597.789031 | H138: 808166.4995 | I138: =IF(H138>Reichweite!$D$4*Reichweite!$D$8,A138,"") -> 134
A139: 135 | B139: 12 | C139: 808166.4995 | D139: =Reichweite!$D$5*(1+Reichweite!$D$6)^(B139-1) -> 6216.871542 | E139: 6216.871542 | F139: 801949.6279 | G139: =F139*Reichweite!$F$7 -> 3586.077283 | H139: 805535.7052 | I139: =IF(H139>Reichweite!$D$4*Reichweite!$D$8,A139,"") -> 135
A140: 136 | B140: 12 | C140: 805535.7052 | D140: =Reichweite!$D$5*(1+Reichweite!$D$6)^(B140-1) -> 6216.871542 | E140: 6216.871542 | F140: 799318.8337 | G140: =F140*Reichweite!$F$7 -> 3574.313163 | H140: 802893.1468 | I140: =IF(H140>Reichweite!$D$4*Reichweite!$D$8,A140,"") -> 136
A141: 137 | B141: 12 | C141: 802893.1468 | D141: =Reichweite!$D$5*(1+Reichweite!$D$6)^(B141-1) -> 6216.871542 | E141: 6216.871542 | F141: 796676.2753 | G141: =F141*Reichweite!$F$7 -> 3562.496437 | H141: 800238.7717 | I141: =IF(H141>Reichweite!$D$4*Reichweite!$D$8,A141,"") -> 137
A142: 138 | B142: 12 | C142: 800238.7717 | D142: =Reichweite!$D$5*(1+Reichweite!$D$6)^(B142-1) -> 6216.871542 | E142: 6216.871542 | F142: 794021.9002 | G142: =F142*Reichweite!$F$7 -> 3550.626871 | H142: 797572.527 | I142: =IF(H142>Reichweite!$D$4*Reichweite!$D$8,A142,"") -> 138
A143: 139 | B143: 12 | C143: 797572.527 | D143: =Reichweite!$D$5*(1+Reichweite!$D$6)^(B143-1) -> 6216.871542 | E143: 6216.871542 | F143: 791355.6555 | G143: =F143*Reichweite!$F$7 -> 3538.704228 | H143: 794894.3597 | I143: =IF(H143>Reichweite!$D$4*Reichweite!$D$8,A143,"") -> 139
A144: 140 | B144: 12 | C144: 794894.3597 | D144: =Reichweite!$D$5*(1+Reichweite!$D$6)^(B144-1) -> 6216.871542 | E144: 6216.871542 | F144: 788677.4882 | G144: =F144*Reichweite!$F$7 -> 3526.72827 | H144: 792204.2165 | I144: =IF(H144>Reichweite!$D$4*Reichweite!$D$8,A144,"") -> 140
A145: 141 | B145: 12 | C145: 792204.2165 | D145: =Reichweite!$D$5*(1+Reichweite!$D$6)^(B145-1) -> 6216.871542 | E145: 6216.871542 | F145: 785987.3449 | G145: =F145*Reichweite!$F$7 -> 3514.698759 | H145: 789502.0437 | I145: =IF(H145>Reichweite!$D$4*Reichweite!$D$8,A145,"") -> 141
A146: 142 | B146: 12 | C146: 789502.0437 | D146: =Reichweite!$D$5*(1+Reichweite!$D$6)^(B146-1) -> 6216.871542 | E146: 6216.871542 | F146: 783285.1721 | G146: =F146*Reichweite!$F$7 -> 3502.615456 | H146: 786787.7876 | I146: =IF(H146>Reichweite!$D$4*Reichweite!$D$8,A146,"") -> 142
A147: 143 | B147: 12 | C147: 786787.7876 | D147: =Reichweite!$D$5*(1+Reichweite!$D$6)^(B147-1) -> 6216.871542 | E147: 6216.871542 | F147: 780570.916 | G147: =F147*Reichweite!$F$7 -> 3490.47812 | H147: 784061.3942 | I147: =IF(H147>Reichweite!$D$4*Reichweite!$D$8,A147,"") -> 143
A148: 144 | B148: 13 | C148: 784061.3942 | D148: =Reichweite!$D$5*(1+Reichweite!$D$6)^(B148-1) -> 6341.208973 | E148: 6341.208973 | F148: 777720.1852 | G148: =F148*Reichweite!$F$7 -> 3477.73051 | H148: 781197.9157 | I148: =IF(H148>Reichweite!$D$4*Reichweite!$D$8,A148,"") -> 144
A149: 145 | B149: 13 | C149: 781197.9157 | D149: =Reichweite!$D$5*(1+Reichweite!$D$6)^(B149-1) -> 6341.208973 | E149: 6341.208973 | F149: 774856.7067 | G149: =F149*Reichweite!$F$7 -> 3464.925896 | H149: 778321.6326 | I149: =IF(H149>Reichweite!$D$4*Reichweite!$D$8,A149,"") -> 145
A150: 146 | B150: 13 | C150: 778321.6326 | D150: =Reichweite!$D$5*(1+Reichweite!$D$6)^(B150-1) -> 6341.208973 | E150: 6341.208973 | F150: 771980.4237 | G150: =F150*Reichweite!$F$7 -> 3452.064024 | H150: 775432.4877 | I150: =IF(H150>Reichweite!$D$4*Reichweite!$D$8,A150,"") -> 146
A151: 147 | B151: 13 | C151: 775432.4877 | D151: =Reichweite!$D$5*(1+Reichweite!$D$6)^(B151-1) -> 6341.208973 | E151: 6341.208973 | F151: 769091.2787 | G151: =F151*Reichweite!$F$7 -> 3439.144638 | H151: 772530.4233 | I151: =IF(H151>Reichweite!$D$4*Reichweite!$D$8,A151,"") -> 147
A152: 148 | B152: 13 | C152: 772530.4233 | D152: =Reichweite!$D$5*(1+Reichweite!$D$6)^(B152-1) -> 6341.208973 | E152: 6341.208973 | F152: 766189.2144 | G152: =F152*Reichweite!$F$7 -> 3426.16748 | H152: 769615.3819 | I152: =IF(H152>Reichweite!$D$4*Reichweite!$D$8,A152,"") -> 148
A153: 149 | B153: 13 | C153: 769615.3819 | D153: =Reichweite!$D$5*(1+Reichweite!$D$6)^(B153-1) -> 6341.208973 | E153: 6341.208973 | F153: 763274.1729 | G153: =F153*Reichweite!$F$7 -> 3413.132292 | H153: 766687.3052 | I153: =IF(H153>Reichweite!$D$4*Reichweite!$D$8,A153,"") -> 149
A154: 150 | B154: 13 | C154: 766687.3052 | D154: =Reichweite!$D$5*(1+Reichweite!$D$6)^(B154-1) -> 6341.208973 | E154: 6341.208973 | F154: 760346.0962 | G154: =F154*Reichweite!$F$7 -> 3400.038815 | H154: 763746.135 | I154: =IF(H154>Reichweite!$D$4*Reichweite!$D$8,A154,"") -> 150
A155: 151 | B155: 13 | C155: 763746.135 | D155: =Reichweite!$D$5*(1+Reichweite!$D$6)^(B155-1) -> 6341.208973 | E155: 6341.208973 | F155: 757404.926 | G155: =F155*Reichweite!$F$7 -> 3386.886788 | H155: 760791.8128 | I155: =IF(H155>Reichweite!$D$4*Reichweite!$D$8,A155,"") -> 151
A156: 152 | B156: 13 | C156: 760791.8128 | D156: =Reichweite!$D$5*(1+Reichweite!$D$6)^(B156-1) -> 6341.208973 | E156: 6341.208973 | F156: 754450.6039 | G156: =F156*Reichweite!$F$7 -> 3373.675948 | H156: 757824.2798 | I156: =IF(H156>Reichweite!$D$4*Reichweite!$D$8,A156,"") -> 152
A157: 153 | B157: 13 | C157: 757824.2798 | D157: =Reichweite!$D$5*(1+Reichweite!$D$6)^(B157-1) -> 6341.208973 | E157: 6341.208973 | F157: 751483.0708 | G157: =F157*Reichweite!$F$7 -> 3360.406034 | H157: 754843.4769 | I157: =IF(H157>Reichweite!$D$4*Reichweite!$D$8,A157,"") -> 153
A158: 154 | B158: 13 | C158: 754843.4769 | D158: =Reichweite!$D$5*(1+Reichweite!$D$6)^(B158-1) -> 6341.208973 | E158: 6341.208973 | F158: 748502.2679 | G158: =F158*Reichweite!$F$7 -> 3347.076781 | H158: 751849.3447 | I158: =IF(H158>Reichweite!$D$4*Reichweite!$D$8,A158,"") -> 154
A159: 155 | B159: 13 | C159: 751849.3447 | D159: =Reichweite!$D$5*(1+Reichweite!$D$6)^(B159-1) -> 6341.208973 | E159: 6341.208973 | F159: 745508.1357 | G159: =F159*Reichweite!$F$7 -> 3333.687923 | H159: 748841.8236 | I159: =IF(H159>Reichweite!$D$4*Reichweite!$D$8,A159,"") -> 155
A160: 156 | B160: 14 | C160: 748841.8236 | D160: =Reichweite!$D$5*(1+Reichweite!$D$6)^(B160-1) -> 6468.033152 | E160: 6468.033152 | F160: 742373.7905 | G160: =F160*Reichweite!$F$7 -> 3319.672075 | H160: 745693.4625 | I160: =IF(H160>Reichweite!$D$4*Reichweite!$D$8,A160,"") -> 156
A161: 157 | B161: 14 | C161: 745693.4625 | D161: =Reichweite!$D$5*(1+Reichweite!$D$6)^(B161-1) -> 6468.033152 | E161: 6468.033152 | F161: 739225.4294 | G161: =F161*Reichweite!$F$7 -> 3305.593552 | H161: 742531.0229 | I161: =IF(H161>Reichweite!$D$4*Reichweite!$D$8,A161,"") -> 157
A162: 158 | B162: 14 | C162: 742531.0229 | D162: =Reichweite!$D$5*(1+Reichweite!$D$6)^(B162-1) -> 6468.033152 | E162: 6468.033152 | F162: 736062.9898 | G162: =F162*Reichweite!$F$7 -> 3291.452074 | H162: 739354.4419 | I162: =IF(H162>Reichweite!$D$4*Reichweite!$D$8,A162,"") -> 158
A163: 159 | B163: 14 | C163: 739354.4419 | D163: =Reichweite!$D$5*(1+Reichweite!$D$6)^(B163-1) -> 6468.033152 | E163: 6468.033152 | F163: 732886.4087 | G163: =F163*Reichweite!$F$7 -> 3277.24736 | H163: 736163.6561 | I163: =IF(H163>Reichweite!$D$4*Reichweite!$D$8,A163,"") -> 159
A164: 160 | B164: 14 | C164: 736163.6561 | D164: =Reichweite!$D$5*(1+Reichweite!$D$6)^(B164-1) -> 6468.033152 | E164: 6468.033152 | F164: 729695.6229 | G164: =F164*Reichweite!$F$7 -> 3262.979127 | H164: 732958.6021 | I164: =IF(H164>Reichweite!$D$4*Reichweite!$D$8,A164,"") -> 160
A165: 161 | B165: 14 | C165: 732958.6021 | D165: =Reichweite!$D$5*(1+Reichweite!$D$6)^(B165-1) -> 6468.033152 | E165: 6468.033152 | F165: 726490.5689 | G165: =F165*Reichweite!$F$7 -> 3248.64709 | H165: 729739.216 | I165: =IF(H165>Reichweite!$D$4*Reichweite!$D$8,A165,"") -> 161
A166: 162 | B166: 14 | C166: 729739.216 | D166: =Reichweite!$D$5*(1+Reichweite!$D$6)^(B166-1) -> 6468.033152 | E166: 6468.033152 | F166: 723271.1828 | G166: =F166*Reichweite!$F$7 -> 3234.250965 | H166: 726505.4338 | I166: =IF(H166>Reichweite!$D$4*Reichweite!$D$8,A166,"") -> 162
A167: 163 | B167: 14 | C167: 726505.4338 | D167: =Reichweite!$D$5*(1+Reichweite!$D$6)^(B167-1) -> 6468.033152 | E167: 6468.033152 | F167: 720037.4007 | G167: =F167*Reichweite!$F$7 -> 3219.790465 | H167: 723257.1911 | I167: =IF(H167>Reichweite!$D$4*Reichweite!$D$8,A167,"") -> 163
A168: 164 | B168: 14 | C168: 723257.1911 | D168: =Reichweite!$D$5*(1+Reichweite!$D$6)^(B168-1) -> 6468.033152 | E168: 6468.033152 | F168: 716789.158 | G168: =F168*Reichweite!$F$7 -> 3205.265301 | H168: 719994.4233 | I168: =IF(H168>Reichweite!$D$4*Reichweite!$D$8,A168,"") -> 164
A169: 165 | B169: 14 | C169: 719994.4233 | D169: =Reichweite!$D$5*(1+Reichweite!$D$6)^(B169-1) -> 6468.033152 | E169: 6468.033152 | F169: 713526.3901 | G169: =F169*Reichweite!$F$7 -> 3190.675186 | H169: 716717.0653 | I169: =IF(H169>Reichweite!$D$4*Reichweite!$D$8,A169,"") -> 165
A170: 166 | B170: 14 | C170: 716717.0653 | D170: =Reichweite!$D$5*(1+Reichweite!$D$6)^(B170-1) -> 6468.033152 | E170: 6468.033152 | F170: 710249.0321 | G170: =F170*Reichweite!$F$7 -> 3176.019828 | H170: 713425.052 | I170: =IF(H170>Reichweite!$D$4*Reichweite!$D$8,A170,"") -> 166
A171: 167 | B171: 14 | C171: 713425.052 | D171: =Reichweite!$D$5*(1+Reichweite!$D$6)^(B171-1) -> 6468.033152 | E171: 6468.033152 | F171: 706957.0188 | G171: =F171*Reichweite!$F$7 -> 3161.298935 | H171: 710118.3178 | I171: =IF(H171>Reichweite!$D$4*Reichweite!$D$8,A171,"") -> 167
A172: 168 | B172: 15 | C172: 710118.3178 | D172: =Reichweite!$D$5*(1+Reichweite!$D$6)^(B172-1) -> 6597.393815 | E172: 6597.393815 | F172: 703520.9239 | G172: =F172*Reichweite!$F$7 -> 3145.933754 | H172: 706666.8577 | I172: =IF(H172>Reichweite!$D$4*Reichweite!$D$8,A172,"") -> 168
A173: 169 | B173: 15 | C173: 706666.8577 | D173: =Reichweite!$D$5*(1+Reichweite!$D$6)^(B173-1) -> 6597.393815 | E173: 6597.393815 | F173: 700069.4639 | G173: =F173*Reichweite!$F$7 -> 3130.499863 | H173: 703199.9637 | I173: =IF(H173>Reichweite!$D$4*Reichweite!$D$8,A173,"") -> 169
A174: 170 | B174: 15 | C174: 703199.9637 | D174: =Reichweite!$D$5*(1+Reichweite!$D$6)^(B174-1) -> 6597.393815 | E174: 6597.393815 | F174: 696602.5699 | G174: =F174*Reichweite!$F$7 -> 3114.996958 | H174: 699717.5669 | I174: =IF(H174>Reichweite!$D$4*Reichweite!$D$8,A174,"") -> 170
A175: 171 | B175: 15 | C175: 699717.5669 | D175: =Reichweite!$D$5*(1+Reichweite!$D$6)^(B175-1) -> 6597.393815 | E175: 6597.393815 | F175: 693120.1731 | G175: =F175*Reichweite!$F$7 -> 3099.424727 | H175: 696219.5978 | I175: =IF(H175>Reichweite!$D$4*Reichweite!$D$8,A175,"") -> 171
A176: 172 | B176: 15 | C176: 696219.5978 | D176: =Reichweite!$D$5*(1+Reichweite!$D$6)^(B176-1) -> 6597.393815 | E176: 6597.393815 | F176: 689622.204 | G176: =F176*Reichweite!$F$7 -> 3083.782863 | H176: 692705.9868 | I176: =IF(H176>Reichweite!$D$4*Reichweite!$D$8,A176,"") -> 172
A177: 173 | B177: 15 | C177: 692705.9868 | D177: =Reichweite!$D$5*(1+Reichweite!$D$6)^(B177-1) -> 6597.393815 | E177: 6597.393815 | F177: 686108.593 | G177: =F177*Reichweite!$F$7 -> 3068.071052 | H177: 689176.6641 | I177: =IF(H177>Reichweite!$D$4*Reichweite!$D$8,A177,"") -> 173
A178: 174 | B178: 15 | C178: 689176.6641 | D178: =Reichweite!$D$5*(1+Reichweite!$D$6)^(B178-1) -> 6597.393815 | E178: 6597.393815 | F178: 682579.2703 | G178: =F178*Reichweite!$F$7 -> 3052.288984 | H178: 685631.5593 | I178: =IF(H178>Reichweite!$D$4*Reichweite!$D$8,A178,"") -> 174
A179: 175 | B179: 15 | C179: 685631.5593 | D179: =Reichweite!$D$5*(1+Reichweite!$D$6)^(B179-1) -> 6597.393815 | E179: 6597.393815 | F179: 679034.1654 | G179: =F179*Reichweite!$F$7 -> 3036.436342 | H179: 682070.6018 | I179: =IF(H179>Reichweite!$D$4*Reichweite!$D$8,A179,"") -> 175
A180: 176 | B180: 15 | C180: 682070.6018 | D180: =Reichweite!$D$5*(1+Reichweite!$D$6)^(B180-1) -> 6597.393815 | E180: 6597.393815 | F180: 675473.208 | G180: =F180*Reichweite!$F$7 -> 3020.512813 | H180: 678493.7208 | I180: =IF(H180>Reichweite!$D$4*Reichweite!$D$8,A180,"") -> 176
A181: 177 | B181: 15 | C181: 678493.7208 | D181: =Reichweite!$D$5*(1+Reichweite!$D$6)^(B181-1) -> 6597.393815 | E181: 6597.393815 | F181: 671896.327 | G181: =F181*Reichweite!$F$7 -> 3004.518078 | H181: 674900.845 | I181: =IF(H181>Reichweite!$D$4*Reichweite!$D$8,A181,"") -> 177
A182: 178 | B182: 15 | C182: 674900.845 | D182: =Reichweite!$D$5*(1+Reichweite!$D$6)^(B182-1) -> 6597.393815 | E182: 6597.393815 | F182: 668303.4512 | G182: =F182*Reichweite!$F$7 -> 2988.451819 | H182: 671291.903 | I182: =IF(H182>Reichweite!$D$4*Reichweite!$D$8,A182,"") -> 178
A183: 179 | B183: 15 | C183: 671291.903 | D183: =Reichweite!$D$5*(1+Reichweite!$D$6)^(B183-1) -> 6597.393815 | E183: 6597.393815 | F183: 664694.5092 | G183: =F183*Reichweite!$F$7 -> 2972.313717 | H183: 667666.8229 | I183: =IF(H183>Reichweite!$D$4*Reichweite!$D$8,A183,"") -> 179
A184: 180 | B184: 16 | C184: 667666.8229 | D184: =Reichweite!$D$5*(1+Reichweite!$D$6)^(B184-1) -> 6729.341692 | E184: 6729.341692 | F184: 660937.4813 | G184: =F184*Reichweite!$F$7 -> 2955.513419 | H184: 663892.9947 | I184: =IF(H184>Reichweite!$D$4*Reichweite!$D$8,A184,"") -> 180
A185: 181 | B185: 16 | C185: 663892.9947 | D185: =Reichweite!$D$5*(1+Reichweite!$D$6)^(B185-1) -> 6729.341692 | E185: 6729.341692 | F185: 657163.653 | G185: =F185*Reichweite!$F$7 -> 2938.637995 | H185: 660102.291 | I185: =IF(H185>Reichweite!$D$4*Reichweite!$D$8,A185,"") -> 181
A186: 182 | B186: 16 | C186: 660102.291 | D186: =Reichweite!$D$5*(1+Reichweite!$D$6)^(B186-1) -> 6729.341692 | E186: 6729.341692 | F186: 653372.9493 | G186: =F186*Reichweite!$F$7 -> 2921.68711 | H186: 656294.6364 | I186: =IF(H186>Reichweite!$D$4*Reichweite!$D$8,A186,"") -> 182
A187: 183 | B187: 16 | C187: 656294.6364 | D187: =Reichweite!$D$5*(1+Reichweite!$D$6)^(B187-1) -> 6729.341692 | E187: 6729.341692 | F187: 649565.2947 | G187: =F187*Reichweite!$F$7 -> 2904.660425 | H187: 652469.9551 | I187: =IF(H187>Reichweite!$D$4*Reichweite!$D$8,A187,"") -> 183
A188: 184 | B188: 16 | C188: 652469.9551 | D188: =Reichweite!$D$5*(1+Reichweite!$D$6)^(B188-1) -> 6729.341692 | E188: 6729.341692 | F188: 645740.6134 | G188: =F188*Reichweite!$F$7 -> 2887.557602 | H188: 648628.171 | I188: =IF(H188>Reichweite!$D$4*Reichweite!$D$8,A188,"") -> 184
A189: 185 | B189: 16 | C189: 648628.171 | D189: =Reichweite!$D$5*(1+Reichweite!$D$6)^(B189-1) -> 6729.341692 | E189: 6729.341692 | F189: 641898.8293 | G189: =F189*Reichweite!$F$7 -> 2870.3783 | H189: 644769.2076 | I189: =IF(H189>Reichweite!$D$4*Reichweite!$D$8,A189,"") -> 185
A190: 186 | B190: 16 | C190: 644769.2076 | D190: =Reichweite!$D$5*(1+Reichweite!$D$6)^(B190-1) -> 6729.341692 | E190: 6729.341692 | F190: 638039.866 | G190: =F190*Reichweite!$F$7 -> 2853.122178 | H190: 640892.9881 | I190: =IF(H190>Reichweite!$D$4*Reichweite!$D$8,A190,"") -> 186
A191: 187 | B191: 16 | C191: 640892.9881 | D191: =Reichweite!$D$5*(1+Reichweite!$D$6)^(B191-1) -> 6729.341692 | E191: 6729.341692 | F191: 634163.6464 | G191: =F191*Reichweite!$F$7 -> 2835.788891 | H191: 636999.4353 | I191: =IF(H191>Reichweite!$D$4*Reichweite!$D$8,A191,"") -> 187
A192: 188 | B192: 16 | C192: 636999.4353 | D192: =Reichweite!$D$5*(1+Reichweite!$D$6)^(B192-1) -> 6729.341692 | E192: 6729.341692 | F192: 630270.0936 | G192: =F192*Reichweite!$F$7 -> 2818.378095 | H192: 633088.4717 | I192: =IF(H192>Reichweite!$D$4*Reichweite!$D$8,A192,"") -> 188
A193: 189 | B193: 16 | C193: 633088.4717 | D193: =Reichweite!$D$5*(1+Reichweite!$D$6)^(B193-1) -> 6729.341692 | E193: 6729.341692 | F193: 626359.13 | G193: =F193*Reichweite!$F$7 -> 2800.889443 | H193: 629160.0195 | I193: =IF(H193>Reichweite!$D$4*Reichweite!$D$8,A193,"") -> 189
A194: 190 | B194: 16 | C194: 629160.0195 | D194: =Reichweite!$D$5*(1+Reichweite!$D$6)^(B194-1) -> 6729.341692 | E194: 6729.341692 | F194: 622430.6778 | G194: =F194*Reichweite!$F$7 -> 2783.322588 | H194: 625214.0004 | I194: =IF(H194>Reichweite!$D$4*Reichweite!$D$8,A194,"") -> 190
A195: 191 | B195: 16 | C195: 625214.0004 | D195: =Reichweite!$D$5*(1+Reichweite!$D$6)^(B195-1) -> 6729.341692 | E195: 6729.341692 | F195: 618484.6587 | G195: =F195*Reichweite!$F$7 -> 2765.677178 | H195: 621250.3359 | I195: =IF(H195>Reichweite!$D$4*Reichweite!$D$8,A195,"") -> 191
A196: 192 | B196: =INT(A196/12)+1 -> 17 | C196: 621250.3359 | D196: =Reichweite!$D$5*(1+Reichweite!$D$6)^(B196-1) -> 6863.928525 | E196: =MIN(D196,C196) -> 6863.928525 | F196: =C196-E196 -> 614386.4073 | G196: =F196*Reichweite!$F$7 -> 2747.351032 | H196: =MAX(0,F196+G196) -> 617133.7584 | I196: =IF(H196>Reichweite!$D$4*Reichweite!$D$8,A196,"") -> 192
A197: 193 | B197: 17 | C197: =H196 -> 617133.7584 | D197: =Reichweite!$D$5*(1+Reichweite!$D$6)^(B197-1) -> 6863.928525 | E197: 6863.928525 | F197: 610269.8298 | G197: =F197*Reichweite!$F$7 -> 2728.942937 | H197: 612998.7728 | I197: =IF(H197>Reichweite!$D$4*Reichweite!$D$8,A197,"") -> 193
A198: 194 | B198: 17 | C198: 612998.7728 | D198: =Reichweite!$D$5*(1+Reichweite!$D$6)^(B198-1) -> 6863.928525 | E198: 6863.928525 | F198: 606134.8443 | G198: =F198*Reichweite!$F$7 -> 2710.452527 | H198: 608845.2968 | I198: =IF(H198>Reichweite!$D$4*Reichweite!$D$8,A198,"") -> 194
A199: 195 | B199: 17 | C199: 608845.2968 | D199: =Reichweite!$D$5*(1+Reichweite!$D$6)^(B199-1) -> 6863.928525 | E199: 6863.928525 | F199: 601981.3683 | G199: =F199*Reichweite!$F$7 -> 2691.879433 | H199: 604673.2477 | I199: =IF(H199>Reichweite!$D$4*Reichweite!$D$8,A199,"") -> 195
A200: 196 | B200: 17 | C200: 604673.2477 | D200: =Reichweite!$D$5*(1+Reichweite!$D$6)^(B200-1) -> 6863.928525 | E200: 6863.928525 | F200: 597809.3192 | G200: =F200*Reichweite!$F$7 -> 2673.223285 | H200: 600482.5425 | I200: =IF(H200>Reichweite!$D$4*Reichweite!$D$8,A200,"") -> 196
A201: 197 | B201: 17 | C201: 600482.5425 | D201: =Reichweite!$D$5*(1+Reichweite!$D$6)^(B201-1) -> 6863.928525 | E201: 6863.928525 | F201: 593618.6139 | G201: =F201*Reichweite!$F$7 -> 2654.483713 | H201: 596273.0976 | I201: =IF(H201>Reichweite!$D$4*Reichweite!$D$8,A201,"") -> 197
... 1003 more rows

Sheet RW-Jahre (hidden)
A1: Reichweite: Jahreswerte (aus Monatssimulation abgeleitet) | L1: Dynamische Rohdaten für Grafik
A3: ="Das Ausgangskapital reicht " &TEXT(RW_RW_yrs,"0,0") &" Jahre bis zum Zielwert i.H.v. " &TEXT(RW_E_Kap,"#.##0") &" EUR" -> Das Ausgangskapital reicht 23,1 Jahre bis zum Zielwert i.H.v. 150.000 EUR | L3: Jahr | M3: Kap. rel. | N3: Endwert
A4: Jahr | B4: Kapital Jahresende | C4: Kapital relativ (Start=1) | D4: Jahresentnahme (nominal, infl.) | E4: Beschr. | K4: Namen => | L4: RW_Jahre | M4: RW_Kap_rel | N4: RW_Wert
A5: 0 | B5: =Reichweite!$D$4 -> 1000000 | C5: =IF(Reichweite!$D$4=0,0,B5/Reichweite!$D$4) -> 1 | D5: =12*Reichweite!$D$5 -> 60000 | E5: =IF(A5=1,$B$5,IF(A5=ROUNDUP(RW_RW_yrs,0),RW_E_Kap,0)) -> 0 | L5: =_xlfn.SEQUENCE(RW_RW_yrs+1) -> 1 | M5: =_xlfn._xlws.FILTER($C$6:$C$105,NOT(ISERROR($C$6:$C$105))) -> 0.9932271208 | N5: =_xlfn._xlws.FILTER($E$6:$E$105,NOT(ISERROR($B$6:$B$105))) -> 1000000
A6: 1 | B6: =IF(A6>RW_RW_yrs+1,NA(),IFERROR(INDEX('RW-Monate'!$H$4:$H$1203, A6*12),0)) -> 993227.1208 | C6: =IF(Reichweite!$D$4=0,0,B6/Reichweite!$D$4) -> 0.9932271208 | D6: =IF(ISERROR(B6),0,12*Reichweite!$D$5*(1+Reichweite!$D$6)^(A6-1)) -> 60000 | E6: 1000000 | L6: 2 | M6: 0.9848462756 | N6: 0
A7: 2 | B7: =IF(A7>RW_RW_yrs+1,NA(),IFERROR(INDEX('RW-Monate'!$H$4:$H$1203, A7*12),0)) -> 984846.2756 | C7: =IF(Reichweite!$D$4=0,0,B7/Reichweite!$D$4) -> 0.9848462756 | D7: =IF(ISERROR(B7),0,12*Reichweite!$D$5*(1+Reichweite!$D$6)^(A7-1)) -> 61200 | E7: 0 | L7: 3 | M7: 0.9747443172 | N7: 0
A8: 3 | B8: =IF(A8>RW_RW_yrs+1,NA(),IFERROR(INDEX('RW-Monate'!$H$4:$H$1203, A8*12),0)) -> 974744.3172 | C8: =IF(Reichweite!$D$4=0,0,B8/Reichweite!$D$4) -> 0.9747443172 | D8: =IF(ISERROR(B8),0,12*Reichweite!$D$5*(1+Reichweite!$D$6)^(A8-1)) -> 62424 | E8: 0 | L8: 4 | M8: 0.962801381 | N8: 0
A9: 4 | B9: =IF(A9>RW_RW_yrs+1,NA(),IFERROR(INDEX('RW-Monate'!$H$4:$H$1203, A9*12),0)) -> 962801.381 | C9: =IF(Reichweite!$D$4=0,0,B9/Reichweite!$D$4) -> 0.962801381 | D9: =IF(ISERROR(B9),0,12*Reichweite!$D$5*(1+Reichweite!$D$6)^(A9-1)) -> 63672.48 | E9: 0 | L9: 5 | M9: 0.9488905058 | N9: 0
A10: 5 | B10: =IF(A10>RW_RW_yrs+1,NA(),IFERROR(INDEX('RW-Monate'!$H$4:$H$1203, A10*12),0)) -> 948890.5058 | C10: =IF(Reichweite!$D$4=0,0,B10/Reichweite!$D$4) -> 0.9488905058 | D10: =IF(ISERROR(B10),0,12*Reichweite!$D$5*(1+Reichweite!$D$6)^(A10-1)) -> 64945.9296 | E10: 0 | L10: 6 | M10: 0.9328772335 | N10: 0
A11: 6 | B11: =IF(A11>RW_RW_yrs+1,NA(),IFERROR(INDEX('RW-Monate'!$H$4:$H$1203, A11*12),0)) -> 932877.2335 | C11: =IF(Reichweite!$D$4=0,0,B11/Reichweite!$D$4) -> 0.9328772335 | D11: =IF(ISERROR(B11),0,12*Reichweite!$D$5*(1+Reichweite!$D$6)^(A11-1)) -> 66244.84819 | E11: 0 | L11: 7 | M11: 0.9146191862 | N11: 0
A12: 7 | B12: =IF(A12>RW_RW_yrs+1,NA(),IFERROR(INDEX('RW-Monate'!$H$4:$H$1203, A12*12),0)) -> 914619.1862 | C12: =IF(Reichweite!$D$4=0,0,B12/Reichweite!$D$4) -> 0.9146191862 | D12: =IF(ISERROR(B12),0,12*Reichweite!$D$5*(1+Reichweite!$D$6)^(A12-1)) -> 67569.74516 | E12: 0 | L12: 8 | M12: 0.8939656204 | N12: 0
A13: 8 | B13: =IF(A13>RW_RW_yrs+1,NA(),IFERROR(INDEX('RW-Monate'!$H$4:$H$1203, A13*12),0)) -> 893965.6204 | C13: =IF(Reichweite!$D$4=0,0,B13/Reichweite!$D$4) -> 0.8939656204 | D13: =IF(ISERROR(B13),0,12*Reichweite!$D$5*(1+Reichweite!$D$6)^(A13-1)) -> 68921.14006 | E13: 0 | L13: 9 | M13: 0.8707569561 | N13: 0
A14: 9 | B14: =IF(A14>RW_RW_yrs+1,NA(),IFERROR(INDEX('RW-Monate'!$H$4:$H$1203, A14*12),0)) -> 870756.9561 | C14: =IF(Reichweite!$D$4=0,0,B14/Reichweite!$D$4) -> 0.8707569561 | D14: =IF(ISERROR(B14),0,12*Reichweite!$D$5*(1+Reichweite!$D$6)^(A14-1)) -> 70299.56286 | E14: 0 | L14: 10 | M14: 0.8448242798 | N14: 0
A15: 10 | B15: =IF(A15>RW_RW_yrs+1,NA(),IFERROR(INDEX('RW-Monate'!$H$4:$H$1203, A15*12),0)) -> 844824.2798 | C15: =IF(Reichweite!$D$4=0,0,B15/Reichweite!$D$4) -> 0.8448242798 | D15: =IF(ISERROR(B15),0,12*Reichweite!$D$5*(1+Reichweite!$D$6)^(A15-1)) -> 71705.55412 | E15: 0 | L15: 11 | M15: 0.8159888201 | N15: 0
A16: 11 | B16: =IF(A16>RW_RW_yrs+1,NA(),IFERROR(INDEX('RW-Monate'!$H$4:$H$1203, A16*12),0)) -> 815988.8201 | C16: =IF(Reichweite!$D$4=0,0,B16/Reichweite!$D$4) -> 0.8159888201 | D16: =IF(ISERROR(B16),0,12*Reichweite!$D$5*(1+Reichweite!$D$6)^(A16-1)) -> 73139.6652 | E16: 0 | L16: 12 | M16: 0.7840613942 | N16: 0
A17: 12 | B17: =IF(A17>RW_RW_yrs+1,NA(),IFERROR(INDEX('RW-Monate'!$H$4:$H$1203, A17*12),0)) -> 784061.3942 | C17: =IF(Reichweite!$D$4=0,0,B17/Reichweite!$D$4) -> 0.7840613942 | D17: =IF(ISERROR(B17),0,12*Reichweite!$D$5*(1+Reichweite!$D$6)^(A17-1)) -> 74602.4585 | E17: 0 | L17: 13 | M17: 0.7488418236 | N17: 0
A18: 13 | B18: =IF(A18>RW_RW_yrs+1,NA(),IFERROR(INDEX('RW-Monate'!$H$4:$H$1203, A18*12),0)) -> 748841.8236 | C18: =IF(Reichweite!$D$4=0,0,B18/Reichweite!$D$4) -> 0.7488418236 | D18: =IF(ISERROR(B18),0,12*Reichweite!$D$5*(1+Reichweite!$D$6)^(A18-1)) -> 76094.50767 | E18: 0 | L18: 14 | M18: 0.7101183178 | N18: 0
A19: 14 | B19: =IF(A19>RW_RW_yrs+1,NA(),IFERROR(INDEX('RW-Monate'!$H$4:$H$1203, A19*12),0)) -> 710118.3178 | C19: =IF(Reichweite!$D$4=0,0,B19/Reichweite!$D$4) -> 0.7101183178 | D19: =IF(ISERROR(B19),0,12*Reichweite!$D$5*(1+Reichweite!$D$6)^(A19-1)) -> 77616.39783 | E19: 0 | L19: 15 | M19: 0.6676668229 | N19: 0
A20: 15 | B20: =IF(A20>RW_RW_yrs+1,NA(),IFERROR(INDEX('RW-Monate'!$H$4:$H$1203, A20*12),0)) -> 667666.8229 | C20: =IF(Reichweite!$D$4=0,0,B20/Reichweite!$D$4) -> 0.6676668229 | D20: =IF(ISERROR(B20),0,12*Reichweite!$D$5*(1+Reichweite!$D$6)^(A20-1)) -> 79168.72578 | E20: 0 | L20: 16 | M20: 0.6212503359 | N20: 0
A21: 16 | B21: =IF(A21>RW_RW_yrs+1,NA(),IFERROR(INDEX('RW-Monate'!$H$4:$H$1203, A21*12),0)) -> 621250.3359 | C21: =IF(Reichweite!$D$4=0,0,B21/Reichweite!$D$4) -> 0.6212503359 | D21: =IF(ISERROR(B21),0,12*Reichweite!$D$5*(1+Reichweite!$D$6)^(A21-1)) -> 80752.1003 | E21: 0 | L21: 17 | M21: 0.5706181788 | N21: 0
A22: 17 | B22: =IF(A22>RW_RW_yrs+1,NA(),IFERROR(INDEX('RW-Monate'!$H$4:$H$1203, A22*12),0)) -> 570618.1788 | C22: =IF(Reichweite!$D$4=0,0,B22/Reichweite!$D$4) -> 0.5706181788 | D22: =IF(ISERROR(B22),0,12*Reichweite!$D$5*(1+Reichweite!$D$6)^(A22-1)) -> 82367.14231 | E22: 0 | L22: 18 | M22: 0.5155052345 | N22: 0
A23: 18 | B23: =IF(A23>RW_RW_yrs+1,NA(),IFERROR(INDEX('RW-Monate'!$H$4:$H$1203, A23*12),0)) -> 515505.2345 | C23: =IF(Reichweite!$D$4=0,0,B23/Reichweite!$D$4) -> 0.5155052345 | D23: =IF(ISERROR(B23),0,12*Reichweite!$D$5*(1+Reichweite!$D$6)^(A23-1)) -> 84014.48515 | E23: 0 | L23: 19 | M23: 0.4556311394 | N23: 0
A24: 19 | B24: =IF(A24>RW_RW_yrs+1,NA(),IFERROR(INDEX('RW-Monate'!$H$4:$H$1203, A24*12),0)) -> 455631.1394 | C24: =IF(Reichweite!$D$4=0,0,B24/Reichweite!$D$4) -> 0.4556311394 | D24: =IF(ISERROR(B24),0,12*Reichweite!$D$5*(1+Reichweite!$D$6)^(A24-1)) -> 85694.77485 | E24: 0 | L24: 20 | M24: 0.3906994314 | N24: 0
A25: 20 | B25: =IF(A25>RW_RW_yrs+1,NA(),IFERROR(INDEX('RW-Monate'!$H$4:$H$1203, A25*12),0)) -> 390699.4314 | C25: =IF(Reichweite!$D$4=0,0,B25/Reichweite!$D$4) -> 0.3906994314 | D25: =IF(ISERROR(B25),0,12*Reichweite!$D$5*(1+Reichweite!$D$6)^(A25-1)) -> 87408.67035 | E25: 0 | L25: 21 | M25: 0.3203966511 | N25: 0
A26: 21 | B26: =IF(A26>RW_RW_yrs+1,NA(),IFERROR(INDEX('RW-Monate'!$H$4:$H$1203, A26*12),0)) -> 320396.6511 | C26: =IF(Reichweite!$D$4=0,0,B26/Reichweite!$D$4) -> 0.3203966511 | D26: =IF(ISERROR(B26),0,12*Reichweite!$D$5*(1+Reichweite!$D$6)^(A26-1)) -> 89156.84376 | E26: 0 | L26: 22 | M26: 0.2443913929 | N26: 0
A27: 22 | B27: =IF(A27>RW_RW_yrs+1,NA(),IFERROR(INDEX('RW-Monate'!$H$4:$H$1203, A27*12),0)) -> 244391.3929 | C27: =IF(Reichweite!$D$4=0,0,B27/Reichweite!$D$4) -> 0.2443913929 | D27: =IF(ISERROR(B27),0,12*Reichweite!$D$5*(1+Reichweite!$D$6)^(A27-1)) -> 90939.98063 | E27: 0 | L27: 23 | M27: 0.162333304 | N27: 0
A28: 23 | B28: =IF(A28>RW_RW_yrs+1,NA(),IFERROR(INDEX('RW-Monate'!$H$4:$H$1203, A28*12),0)) -> 162333.304 | C28: =IF(Reichweite!$D$4=0,0,B28/Reichweite!$D$4) -> 0.162333304 | D28: =IF(ISERROR(B28),0,12*Reichweite!$D$5*(1+Reichweite!$D$6)^(A28-1)) -> 92758.78025 | E28: 0 | L28: 24 | M28: 0.0738520279 | N28: 150000
A29: 24 | B29: =IF(A29>RW_RW_yrs+1,NA(),IFERROR(INDEX('RW-Monate'!$H$4:$H$1203, A29*12),0)) -> 73852.0279 | C29: =IF(Reichweite!$D$4=0,0,B29/Reichweite!$D$4) -> 0.0738520279 | D29: =IF(ISERROR(B29),0,12*Reichweite!$D$5*(1+Reichweite!$D$6)^(A29-1)) -> 94613.95585 | E29: 150000
A30: 25 | B30: =IF(A30>RW_RW_yrs+1,NA(),IFERROR(INDEX('RW-Monate'!$H$4:$H$1203, A30*12),0)) ->  | C30: =IF(Reichweite!$D$4=0,0,B30/Reichweite!$D$4) ->  | D30: =IF(ISERROR(B30),0,12*Reichweite!$D$5*(1+Reichweite!$D$6)^(A30-1)) -> 0 | E30: 0
A31: 26 | B31: =IF(A31>RW_RW_yrs+1,NA(),IFERROR(INDEX('RW-Monate'!$H$4:$H$1203, A31*12),0)) ->  | C31: =IF(Reichweite!$D$4=0,0,B31/Reichweite!$D$4) ->  | D31: =IF(ISERROR(B31),0,12*Reichweite!$D$5*(1+Reichweite!$D$6)^(A31-1)) -> 0 | E31: 0
A32: 27 | B32: =IF(A32>RW_RW_yrs+1,NA(),IFERROR(INDEX('RW-Monate'!$H$4:$H$1203, A32*12),0)) ->  | C32: =IF(Reichweite!$D$4=0,0,B32/Reichweite!$D$4) ->  | D32: =IF(ISERROR(B32),0,12*Reichweite!$D$5*(1+Reichweite!$D$6)^(A32-1)) -> 0 | E32: 0
A33: 28 | B33: =IF(A33>RW_RW_yrs+1,NA(),IFERROR(INDEX('RW-Monate'!$H$4:$H$1203, A33*12),0)) ->  | C33: =IF(Reichweite!$D$4=0,0,B33/Reichweite!$D$4) ->  | D33: =IF(ISERROR(B33),0,12*Reichweite!$D$5*(1+Reichweite!$D$6)^(A33-1)) -> 0 | E33: 0
A34: 29 | B34: =IF(A34>RW_RW_yrs+1,NA(),IFERROR(INDEX('RW-Monate'!$H$4:$H$1203, A34*12),0)) ->  | C34: =IF(Reichweite!$D$4=0,0,B34/Reichweite!$D$4) ->  | D34: =IF(ISERROR(B34),0,12*Reichweite!$D$5*(1+Reichweite!$D$6)^(A34-1)) -> 0 | E34: 0
A35: 30 | B35: =IF(A35>RW_RW_yrs+1,NA(),IFERROR(INDEX('RW-Monate'!$H$4:$H$1203, A35*12),0)) ->  | C35: =IF(Reichweite!$D$4=0,0,B35/Reichweite!$D$4) ->  | D35: =IF(ISERROR(B35),0,12*Reichweite!$D$5*(1+Reichweite!$D$6)^(A35-1)) -> 0 | E35: 0
A36: 31 | B36: =IF(A36>RW_RW_yrs+1,NA(),IFERROR(INDEX('RW-Monate'!$H$4:$H$1203, A36*12),0)) ->  | C36: =IF(Reichweite!$D$4=0,0,B36/Reichweite!$D$4) ->  | D36: =IF(ISERROR(B36),0,12*Reichweite!$D$5*(1+Reichweite!$D$6)^(A36-1)) -> 0 | E36: 0
A37: 32 | B37: =IF(A37>RW_RW_yrs+1,NA(),IFERROR(INDEX('RW-Monate'!$H$4:$H$1203, A37*12),0)) ->  | C37: =IF(Reichweite!$D$4=0,0,B37/Reichweite!$D$4) ->  | D37: =IF(ISERROR(B37),0,12*Reichweite!$D$5*(1+Reichweite!$D$6)^(A37-1)) -> 0 | E37: =IF(A37=1,$B$5,IF(A37=ROUNDUP(RW_RW_yrs,0),RW_E_Kap,0)) -> 0
A38: 33 | B38: =IF(A38>RW_RW_yrs+1,NA(),IFERROR(INDEX('RW-Monate'!$H$4:$H$1203, A38*12),0)) ->  | C38: =IF(Reichweite!$D$4=0,0,B38/Reichweite!$D$4) ->  | D38: =IF(ISERROR(B38),0,12*Reichweite!$D$5*(1+Reichweite!$D$6)^(A38-1)) -> 0 | E38: 0
A39: 34 | B39: =IF(A39>RW_RW_yrs+1,NA(),IFERROR(INDEX('RW-Monate'!$H$4:$H$1203, A39*12),0)) ->  | C39: =IF(Reichweite!$D$4=0,0,B39/Reichweite!$D$4) ->  | D39: =IF(ISERROR(B39),0,12*Reichweite!$D$5*(1+Reichweite!$D$6)^(A39-1)) -> 0 | E39: 0
A40: 35 | B40: =IF(A40>RW_RW_yrs+1,NA(),IFERROR(INDEX('RW-Monate'!$H$4:$H$1203, A40*12),0)) ->  | C40: =IF(Reichweite!$D$4=0,0,B40/Reichweite!$D$4) ->  | D40: =IF(ISERROR(B40),0,12*Reichweite!$D$5*(1+Reichweite!$D$6)^(A40-1)) -> 0 | E40: 0
A41: 36 | B41: =IF(A41>RW_RW_yrs+1,NA(),IFERROR(INDEX('RW-Monate'!$H$4:$H$1203, A41*12),0)) ->  | C41: =IF(Reichweite!$D$4=0,0,B41/Reichweite!$D$4) ->  | D41: =IF(ISERROR(B41),0,12*Reichweite!$D$5*(1+Reichweite!$D$6)^(A41-1)) -> 0 | E41: 0
A42: 37 | B42: =IF(A42>RW_RW_yrs+1,NA(),IFERROR(INDEX('RW-Monate'!$H$4:$H$1203, A42*12),0)) ->  | C42: =IF(Reichweite!$D$4=0,0,B42/Reichweite!$D$4) ->  | D42: =IF(ISERROR(B42),0,12*Reichweite!$D$5*(1+Reichweite!$D$6)^(A42-1)) -> 0 | E42: 0
A43: 38 | B43: =IF(A43>RW_RW_yrs+1,NA(),IFERROR(INDEX('RW-Monate'!$H$4:$H$1203, A43*12),0)) ->  | C43: =IF(Reichweite!$D$4=0,0,B43/Reichweite!$D$4) ->  | D43: =IF(ISERROR(B43),0,12*Reichweite!$D$5*(1+Reichweite!$D$6)^(A43-1)) -> 0 | E43: 0
A44: 39 | B44: =IF(A44>RW_RW_yrs+1,NA(),IFERROR(INDEX('RW-Monate'!$H$4:$H$1203, A44*12),0)) ->  | C44: =IF(Reichweite!$D$4=0,0,B44/Reichweite!$D$4) ->  | D44: =IF(ISERROR(B44),0,12*Reichweite!$D$5*(1+Reichweite!$D$6)^(A44-1)) -> 0 | E44: 0
A45: 40 | B45: =IF(A45>RW_RW_yrs+1,NA(),IFERROR(INDEX('RW-Monate'!$H$4:$H$1203, A45*12),0)) ->  | C45: =IF(Reichweite!$D$4=0,0,B45/Reichweite!$D$4) ->  | D45: =IF(ISERROR(B45),0,12*Reichweite!$D$5*(1+Reichweite!$D$6)^(A45-1)) -> 0 | E45: 0
A46: 41 | B46: =IF(A46>RW_RW_yrs+1,NA(),IFERROR(INDEX('RW-Monate'!$H$4:$H$1203, A46*12),0)) ->  | C46: =IF(Reichweite!$D$4=0,0,B46/Reichweite!$D$4) ->  | D46: =IF(ISERROR(B46),0,12*Reichweite!$D$5*(1+Reichweite!$D$6)^(A46-1)) -> 0 | E46: 0
A47: 42 | B47: =IF(A47>RW_RW_yrs+1,NA(),IFERROR(INDEX('RW-Monate'!$H$4:$H$1203, A47*12),0)) ->  | C47: =IF(Reichweite!$D$4=0,0,B47/Reichweite!$D$4) ->  | D47: =IF(ISERROR(B47),0,12*Reichweite!$D$5*(1+Reichweite!$D$6)^(A47-1)) -> 0 | E47: 0
A48: 43 | B48: =IF(A48>RW_RW_yrs+1,NA(),IFERROR(INDEX('RW-Monate'!$H$4:$H$1203, A48*12),0)) ->  | C48: =IF(Reichweite!$D$4=0,0,B48/Reichweite!$D$4) ->  | D48: =IF(ISERROR(B48),0,12*Reichweite!$D$5*(1+Reichweite!$D$6)^(A48-1)) -> 0 | E48: 0
A49: 44 | B49: =IF(A49>RW_RW_yrs+1,NA(),IFERROR(INDEX('RW-Monate'!$H$4:$H$1203, A49*12),0)) ->  | C49: =IF(Reichweite!$D$4=0,0,B49/Reichweite!$D$4) ->  | D49: =IF(ISERROR(B49),0,12*Reichweite!$D$5*(1+Reichweite!$D$6)^(A49-1)) -> 0 | E49: 0
A50: 45 | B50: =IF(A50>RW_RW_yrs+1,NA(),IFERROR(INDEX('RW-Monate'!$H$4:$H$1203, A50*12),0)) ->  | C50: =IF(Reichweite!$D$4=0,0,B50/Reichweite!$D$4) ->  | D50: =IF(ISERROR(B50),0,12*Reichweite!$D$5*(1+Reichweite!$D$6)^(A50-1)) -> 0 | E50: 0
A51: 46 | B51: =IF(A51>RW_RW_yrs+1,NA(),IFERROR(INDEX('RW-Monate'!$H$4:$H$1203, A51*12),0)) ->  | C51: =IF(Reichweite!$D$4=0,0,B51/Reichweite!$D$4) ->  | D51: =IF(ISERROR(B51),0,12*Reichweite!$D$5*(1+Reichweite!$D$6)^(A51-1)) -> 0 | E51: 0
A52: 47 | B52: =IF(A52>RW_RW_yrs+1,NA(),IFERROR(INDEX('RW-Monate'!$H$4:$H$1203, A52*12),0)) ->  | C52: =IF(Reichweite!$D$4=0,0,B52/Reichweite!$D$4) ->  | D52: =IF(ISERROR(B52),0,12*Reichweite!$D$5*(1+Reichweite!$D$6)^(A52-1)) -> 0 | E52: 0
A53: 48 | B53: =IF(A53>RW_RW_yrs+1,NA(),IFERROR(INDEX('RW-Monate'!$H$4:$H$1203, A53*12),0)) ->  | C53: =IF(Reichweite!$D$4=0,0,B53/Reichweite!$D$4) ->  | D53: =IF(ISERROR(B53),0,12*Reichweite!$D$5*(1+Reichweite!$D$6)^(A53-1)) -> 0 | E53: 0
A54: 49 | B54: =IF(A54>RW_RW_yrs+1,NA(),IFERROR(INDEX('RW-Monate'!$H$4:$H$1203, A54*12),0)) ->  | C54: =IF(Reichweite!$D$4=0,0,B54/Reichweite!$D$4) ->  | D54: =IF(ISERROR(B54),0,12*Reichweite!$D$5*(1+Reichweite!$D$6)^(A54-1)) -> 0 | E54: 0
A55: 50 | B55: =IF(A55>RW_RW_yrs+1,NA(),IFERROR(INDEX('RW-Monate'!$H$4:$H$1203, A55*12),0)) ->  | C55: =IF(Reichweite!$D$4=0,0,B55/Reichweite!$D$4) ->  | D55: =IF(ISERROR(B55),0,12*Reichweite!$D$5*(1+Reichweite!$D$6)^(A55-1)) -> 0 | E55: 0
A56: 51 | B56: =IF(A56>RW_RW_yrs+1,NA(),IFERROR(INDEX('RW-Monate'!$H$4:$H$1203, A56*12),0)) ->  | C56: =IF(Reichweite!$D$4=0,0,B56/Reichweite!$D$4) ->  | D56: =IF(ISERROR(B56),0,12*Reichweite!$D$5*(1+Reichweite!$D$6)^(A56-1)) -> 0 | E56: 0
A57: 52 | B57: =IF(A57>RW_RW_yrs+1,NA(),IFERROR(INDEX('RW-Monate'!$H$4:$H$1203, A57*12),0)) ->  | C57: =IF(Reichweite!$D$4=0,0,B57/Reichweite!$D$4) ->  | D57: =IF(ISERROR(B57),0,12*Reichweite!$D$5*(1+Reichweite!$D$6)^(A57-1)) -> 0 | E57: 0
A58: 53 | B58: =IF(A58>RW_RW_yrs+1,NA(),IFERROR(INDEX('RW-Monate'!$H$4:$H$1203, A58*12),0)) ->  | C58: =IF(Reichweite!$D$4=0,0,B58/Reichweite!$D$4) ->  | D58: =IF(ISERROR(B58),0,12*Reichweite!$D$5*(1+Reichweite!$D$6)^(A58-1)) -> 0 | E58: 0
A59: 54 | B59: =IF(A59>RW_RW_yrs+1,NA(),IFERROR(INDEX('RW-Monate'!$H$4:$H$1203, A59*12),0)) ->  | C59: =IF(Reichweite!$D$4=0,0,B59/Reichweite!$D$4) ->  | D59: =IF(ISERROR(B59),0,12*Reichweite!$D$5*(1+Reichweite!$D$6)^(A59-1)) -> 0 | E59: 0
A60: 55 | B60: =IF(A60>RW_RW_yrs+1,NA(),IFERROR(INDEX('RW-Monate'!$H$4:$H$1203, A60*12),0)) ->  | C60: =IF(Reichweite!$D$4=0,0,B60/Reichweite!$D$4) ->  | D60: =IF(ISERROR(B60),0,12*Reichweite!$D$5*(1+Reichweite!$D$6)^(A60-1)) -> 0 | E60: 0
A61: 56 | B61: =IF(A61>RW_RW_yrs+1,NA(),IFERROR(INDEX('RW-Monate'!$H$4:$H$1203, A61*12),0)) ->  | C61: =IF(Reichweite!$D$4=0,0,B61/Reichweite!$D$4) ->  | D61: =IF(ISERROR(B61),0,12*Reichweite!$D$5*(1+Reichweite!$D$6)^(A61-1)) -> 0 | E61: 0
A62: 57 | B62: =IF(A62>RW_RW_yrs+1,NA(),IFERROR(INDEX('RW-Monate'!$H$4:$H$1203, A62*12),0)) ->  | C62: =IF(Reichweite!$D$4=0,0,B62/Reichweite!$D$4) ->  | D62: =IF(ISERROR(B62),0,12*Reichweite!$D$5*(1+Reichweite!$D$6)^(A62-1)) -> 0 | E62: 0
A63: 58 | B63: =IF(A63>RW_RW_yrs+1,NA(),IFERROR(INDEX('RW-Monate'!$H$4:$H$1203, A63*12),0)) ->  | C63: =IF(Reichweite!$D$4=0,0,B63/Reichweite!$D$4) ->  | D63: =IF(ISERROR(B63),0,12*Reichweite!$D$5*(1+Reichweite!$D$6)^(A63-1)) -> 0 | E63: 0
A64: 59 | B64: =IF(A64>RW_RW_yrs+1,NA(),IFERROR(INDEX('RW-Monate'!$H$4:$H$1203, A64*12),0)) ->  | C64: =IF(Reichweite!$D$4=0,0,B64/Reichweite!$D$4) ->  | D64: =IF(ISERROR(B64),0,12*Reichweite!$D$5*(1+Reichweite!$D$6)^(A64-1)) -> 0 | E64: 0
A65: 60 | B65: =IF(A65>RW_RW_yrs+1,NA(),IFERROR(INDEX('RW-Monate'!$H$4:$H$1203, A65*12),0)) ->  | C65: =IF(Reichweite!$D$4=0,0,B65/Reichweite!$D$4) ->  | D65: =IF(ISERROR(B65),0,12*Reichweite!$D$5*(1+Reichweite!$D$6)^(A65-1)) -> 0 | E65: 0
A66: 61 | B66: =IF(A66>RW_RW_yrs+1,NA(),IFERROR(INDEX('RW-Monate'!$H$4:$H$1203, A66*12),0)) ->  | C66: =IF(Reichweite!$D$4=0,0,B66/Reichweite!$D$4) ->  | D66: =IF(ISERROR(B66),0,12*Reichweite!$D$5*(1+Reichweite!$D$6)^(A66-1)) -> 0 | E66: 0
A67: 62 | B67: =IF(A67>RW_RW_yrs+1,NA(),IFERROR(INDEX('RW-Monate'!$H$4:$H$1203, A67*12),0)) ->  | C67: =IF(Reichweite!$D$4=0,0,B67/Reichweite!$D$4) ->  | D67: =IF(ISERROR(B67),0,12*Reichweite!$D$5*(1+Reichweite!$D$6)^(A67-1)) -> 0 | E67: 0
A68: 63 | B68: =IF(A68>RW_RW_yrs+1,NA(),IFERROR(INDEX('RW-Monate'!$H$4:$H$1203, A68*12),0)) ->  | C68: =IF(Reichweite!$D$4=0,0,B68/Reichweite!$D$4) ->  | D68: =IF(ISERROR(B68),0,12*Reichweite!$D$5*(1+Reichweite!$D$6)^(A68-1)) -> 0 | E68: 0
A69: 64 | B69: =IF(A69>RW_RW_yrs+1,NA(),IFERROR(INDEX('RW-Monate'!$H$4:$H$1203, A69*12),0)) ->  | C69: =IF(Reichweite!$D$4=0,0,B69/Reichweite!$D$4) ->  | D69: =IF(ISERROR(B69),0,12*Reichweite!$D$5*(1+Reichweite!$D$6)^(A69-1)) -> 0 | E69: =IF(A69=1,$B$5,IF(A69=ROUNDUP(RW_RW_yrs,0),RW_E_Kap,0)) -> 0
A70: 65 | B70: =IF(A70>RW_RW_yrs+1,NA(),IFERROR(INDEX('RW-Monate'!$H$4:$H$1203, A70*12),0)) ->  | C70: =IF(Reichweite!$D$4=0,0,B70/Reichweite!$D$4) ->  | D70: =IF(ISERROR(B70),0,12*Reichweite!$D$5*(1+Reichweite!$D$6)^(A70-1)) -> 0 | E70: 0
A71: 66 | B71: =IF(A71>RW_RW_yrs+1,NA(),IFERROR(INDEX('RW-Monate'!$H$4:$H$1203, A71*12),0)) ->  | C71: =IF(Reichweite!$D$4=0,0,B71/Reichweite!$D$4) ->  | D71: =IF(ISERROR(B71),0,12*Reichweite!$D$5*(1+Reichweite!$D$6)^(A71-1)) -> 0 | E71: 0
A72: 67 | B72: =IF(A72>RW_RW_yrs+1,NA(),IFERROR(INDEX('RW-Monate'!$H$4:$H$1203, A72*12),0)) ->  | C72: =IF(Reichweite!$D$4=0,0,B72/Reichweite!$D$4) ->  | D72: =IF(ISERROR(B72),0,12*Reichweite!$D$5*(1+Reichweite!$D$6)^(A72-1)) -> 0 | E72: 0
A73: 68 | B73: =IF(A73>RW_RW_yrs+1,NA(),IFERROR(INDEX('RW-Monate'!$H$4:$H$1203, A73*12),0)) ->  | C73: =IF(Reichweite!$D$4=0,0,B73/Reichweite!$D$4) ->  | D73: =IF(ISERROR(B73),0,12*Reichweite!$D$5*(1+Reichweite!$D$6)^(A73-1)) -> 0 | E73: 0
A74: 69 | B74: =IF(A74>RW_RW_yrs+1,NA(),IFERROR(INDEX('RW-Monate'!$H$4:$H$1203, A74*12),0)) ->  | C74: =IF(Reichweite!$D$4=0,0,B74/Reichweite!$D$4) ->  | D74: =IF(ISERROR(B74),0,12*Reichweite!$D$5*(1+Reichweite!$D$6)^(A74-1)) -> 0 | E74: 0
A75: 70 | B75: =IF(A75>RW_RW_yrs+1,NA(),IFERROR(INDEX('RW-Monate'!$H$4:$H$1203, A75*12),0)) ->  | C75: =IF(Reichweite!$D$4=0,0,B75/Reichweite!$D$4) ->  | D75: =IF(ISERROR(B75),0,12*Reichweite!$D$5*(1+Reichweite!$D$6)^(A75-1)) -> 0 | E75: 0
A76: 71 | B76: =IF(A76>RW_RW_yrs+1,NA(),IFERROR(INDEX('RW-Monate'!$H$4:$H$1203, A76*12),0)) ->  | C76: =IF(Reichweite!$D$4=0,0,B76/Reichweite!$D$4) ->  | D76: =IF(ISERROR(B76),0,12*Reichweite!$D$5*(1+Reichweite!$D$6)^(A76-1)) -> 0 | E76: 0
A77: 72 | B77: =IF(A77>RW_RW_yrs+1,NA(),IFERROR(INDEX('RW-Monate'!$H$4:$H$1203, A77*12),0)) ->  | C77: =IF(Reichweite!$D$4=0,0,B77/Reichweite!$D$4) ->  | D77: =IF(ISERROR(B77),0,12*Reichweite!$D$5*(1+Reichweite!$D$6)^(A77-1)) -> 0 | E77: 0
A78: 73 | B78: =IF(A78>RW_RW_yrs+1,NA(),IFERROR(INDEX('RW-Monate'!$H$4:$H$1203, A78*12),0)) ->  | C78: =IF(Reichweite!$D$4=0,0,B78/Reichweite!$D$4) ->  | D78: =IF(ISERROR(B78),0,12*Reichweite!$D$5*(1+Reichweite!$D$6)^(A78-1)) -> 0 | E78: 0
A79: 74 | B79: =IF(A79>RW_RW_yrs+1,NA(),IFERROR(INDEX('RW-Monate'!$H$4:$H$1203, A79*12),0)) ->  | C79: =IF(Reichweite!$D$4=0,0,B79/Reichweite!$D$4) ->  | D79: =IF(ISERROR(B79),0,12*Reichweite!$D$5*(1+Reichweite!$D$6)^(A79-1)) -> 0 | E79: 0
A80: 75 | B80: =IF(A80>RW_RW_yrs+1,NA(),IFERROR(INDEX('RW-Monate'!$H$4:$H$1203, A80*12),0)) ->  | C80: =IF(Reichweite!$D$4=0,0,B80/Reichweite!$D$4) ->  | D80: =IF(ISERROR(B80),0,12*Reichweite!$D$5*(1+Reichweite!$D$6)^(A80-1)) -> 0 | E80: 0
A81: 76 | B81: =IF(A81>RW_RW_yrs+1,NA(),IFERROR(INDEX('RW-Monate'!$H$4:$H$1203, A81*12),0)) ->  | C81: =IF(Reichweite!$D$4=0,0,B81/Reichweite!$D$4) ->  | D81: =IF(ISERROR(B81),0,12*Reichweite!$D$5*(1+Reichweite!$D$6)^(A81-1)) -> 0 | E81: 0
A82: 77 | B82: =IF(A82>RW_RW_yrs+1,NA(),IFERROR(INDEX('RW-Monate'!$H$4:$H$1203, A82*12),0)) ->  | C82: =IF(Reichweite!$D$4=0,0,B82/Reichweite!$D$4) ->  | D82: =IF(ISERROR(B82),0,12*Reichweite!$D$5*(1+Reichweite!$D$6)^(A82-1)) -> 0 | E82: 0
A83: 78 | B83: =IF(A83>RW_RW_yrs+1,NA(),IFERROR(INDEX('RW-Monate'!$H$4:$H$1203, A83*12),0)) ->  | C83: =IF(Reichweite!$D$4=0,0,B83/Reichweite!$D$4) ->  | D83: =IF(ISERROR(B83),0,12*Reichweite!$D$5*(1+Reichweite!$D$6)^(A83-1)) -> 0 | E83: 0
A84: 79 | B84: =IF(A84>RW_RW_yrs+1,NA(),IFERROR(INDEX('RW-Monate'!$H$4:$H$1203, A84*12),0)) ->  | C84: =IF(Reichweite!$D$4=0,0,B84/Reichweite!$D$4) ->  | D84: =IF(ISERROR(B84),0,12*Reichweite!$D$5*(1+Reichweite!$D$6)^(A84-1)) -> 0 | E84: 0
A85: 80 | B85: =IF(A85>RW_RW_yrs+1,NA(),IFERROR(INDEX('RW-Monate'!$H$4:$H$1203, A85*12),0)) ->  | C85: =IF(Reichweite!$D$4=0,0,B85/Reichweite!$D$4) ->  | D85: =IF(ISERROR(B85),0,12*Reichweite!$D$5*(1+Reichweite!$D$6)^(A85-1)) -> 0 | E85: 0
A86: 81 | B86: =IF(A86>RW_RW_yrs+1,NA(),IFERROR(INDEX('RW-Monate'!$H$4:$H$1203, A86*12),0)) ->  | C86: =IF(Reichweite!$D$4=0,0,B86/Reichweite!$D$4) ->  | D86: =IF(ISERROR(B86),0,12*Reichweite!$D$5*(1+Reichweite!$D$6)^(A86-1)) -> 0 | E86: 0
A87: 82 | B87: =IF(A87>RW_RW_yrs+1,NA(),IFERROR(INDEX('RW-Monate'!$H$4:$H$1203, A87*12),0)) ->  | C87: =IF(Reichweite!$D$4=0,0,B87/Reichweite!$D$4) ->  | D87: =IF(ISERROR(B87),0,12*Reichweite!$D$5*(1+Reichweite!$D$6)^(A87-1)) -> 0 | E87: 0
A88: 83 | B88: =IF(A88>RW_RW_yrs+1,NA(),IFERROR(INDEX('RW-Monate'!$H$4:$H$1203, A88*12),0)) ->  | C88: =IF(Reichweite!$D$4=0,0,B88/Reichweite!$D$4) ->  | D88: =IF(ISERROR(B88),0,12*Reichweite!$D$5*(1+Reichweite!$D$6)^(A88-1)) -> 0 | E88: 0
A89: 84 | B89: =IF(A89>RW_RW_yrs+1,NA(),IFERROR(INDEX('RW-Monate'!$H$4:$H$1203, A89*12),0)) ->  | C89: =IF(Reichweite!$D$4=0,0,B89/Reichweite!$D$4) ->  | D89: =IF(ISERROR(B89),0,12*Reichweite!$D$5*(1+Reichweite!$D$6)^(A89-1)) -> 0 | E89: 0
A90: 85 | B90: =IF(A90>RW_RW_yrs+1,NA(),IFERROR(INDEX('RW-Monate'!$H$4:$H$1203, A90*12),0)) ->  | C90: =IF(Reichweite!$D$4=0,0,B90/Reichweite!$D$4) ->  | D90: =IF(ISERROR(B90),0,12*Reichweite!$D$5*(1+Reichweite!$D$6)^(A90-1)) -> 0 | E90: 0
A91: 86 | B91: =IF(A91>RW_RW_yrs+1,NA(),IFERROR(INDEX('RW-Monate'!$H$4:$H$1203, A91*12),0)) ->  | C91: =IF(Reichweite!$D$4=0,0,B91/Reichweite!$D$4) ->  | D91: =IF(ISERROR(B91),0,12*Reichweite!$D$5*(1+Reichweite!$D$6)^(A91-1)) -> 0 | E91: 0
A92: 87 | B92: =IF(A92>RW_RW_yrs+1,NA(),IFERROR(INDEX('RW-Monate'!$H$4:$H$1203, A92*12),0)) ->  | C92: =IF(Reichweite!$D$4=0,0,B92/Reichweite!$D$4) ->  | D92: =IF(ISERROR(B92),0,12*Reichweite!$D$5*(1+Reichweite!$D$6)^(A92-1)) -> 0 | E92: 0
A93: 88 | B93: =IF(A93>RW_RW_yrs+1,NA(),IFERROR(INDEX('RW-Monate'!$H$4:$H$1203, A93*12),0)) ->  | C93: =IF(Reichweite!$D$4=0,0,B93/Reichweite!$D$4) ->  | D93: =IF(ISERROR(B93),0,12*Reichweite!$D$5*(1+Reichweite!$D$6)^(A93-1)) -> 0 | E93: 0
A94: 89 | B94: =IF(A94>RW_RW_yrs+1,NA(),IFERROR(INDEX('RW-Monate'!$H$4:$H$1203, A94*12),0)) ->  | C94: =IF(Reichweite!$D$4=0,0,B94/Reichweite!$D$4) ->  | D94: =IF(ISERROR(B94),0,12*Reichweite!$D$5*(1+Reichweite!$D$6)^(A94-1)) -> 0 | E94: 0
A95: 90 | B95: =IF(A95>RW_RW_yrs+1,NA(),IFERROR(INDEX('RW-Monate'!$H$4:$H$1203, A95*12),0)) ->  | C95: =IF(Reichweite!$D$4=0,0,B95/Reichweite!$D$4) ->  | D95: =IF(ISERROR(B95),0,12*Reichweite!$D$5*(1+Reichweite!$D$6)^(A95-1)) -> 0 | E95: 0
A96: 91 | B96: =IF(A96>RW_RW_yrs+1,NA(),IFERROR(INDEX('RW-Monate'!$H$4:$H$1203, A96*12),0)) ->  | C96: =IF(Reichweite!$D$4=0,0,B96/Reichweite!$D$4) ->  | D96: =IF(ISERROR(B96),0,12*Reichweite!$D$5*(1+Reichweite!$D$6)^(A96-1)) -> 0 | E96: 0
A97: 92 | B97: =IF(A97>RW_RW_yrs+1,NA(),IFERROR(INDEX('RW-Monate'!$H$4:$H$1203, A97*12),0)) ->  | C97: =IF(Reichweite!$D$4=0,0,B97/Reichweite!$D$4) ->  | D97: =IF(ISERROR(B97),0,12*Reichweite!$D$5*(1+Reichweite!$D$6)^(A97-1)) -> 0 | E97: 0
A98: 93 | B98: =IF(A98>RW_RW_yrs+1,NA(),IFERROR(INDEX('RW-Monate'!$H$4:$H$1203, A98*12),0)) ->  | C98: =IF(Reichweite!$D$4=0,0,B98/Reichweite!$D$4) ->  | D98: =IF(ISERROR(B98),0,12*Reichweite!$D$5*(1+Reichweite!$D$6)^(A98-1)) -> 0 | E98: 0
A99: 94 | B99: =IF(A99>RW_RW_yrs+1,NA(),IFERROR(INDEX('RW-Monate'!$H$4:$H$1203, A99*12),0)) ->  | C99: =IF(Reichweite!$D$4=0,0,B99/Reichweite!$D$4) ->  | D99: =IF(ISERROR(B99),0,12*Reichweite!$D$5*(1+Reichweite!$D$6)^(A99-1)) -> 0 | E99: 0
A100: 95 | B100: =IF(A100>RW_RW_yrs+1,NA(),IFERROR(INDEX('RW-Monate'!$H$4:$H$1203, A100*12),0)) ->  | C100: =IF(Reichweite!$D$4=0,0,B100/Reichweite!$D$4) ->  | D100: =IF(ISERROR(B100),0,12*Reichweite!$D$5*(1+Reichweite!$D$6)^(A100-1)) -> 0 | E100: 0
A101: 96 | B101: =IF(A101>RW_RW_yrs+1,NA(),IFERROR(INDEX('RW-Monate'!$H$4:$H$1203, A101*12),0)) ->  | C101: =IF(Reichweite!$D$4=0,0,B101/Reichweite!$D$4) ->  | D101: =IF(ISERROR(B101),0,12*Reichweite!$D$5*(1+Reichweite!$D$6)^(A101-1)) -> 0 | E101: 0
A102: 97 | B102: =IF(A102>RW_RW_yrs+1,NA(),IFERROR(INDEX('RW-Monate'!$H$4:$H$1203, A102*12),0)) ->  | C102: =IF(Reichweite!$D$4=0,0,B102/Reichweite!$D$4) ->  | D102: =IF(ISERROR(B102),0,12*Reichweite!$D$5*(1+Reichweite!$D$6)^(A102-1)) -> 0 | E102: 0
A103: 98 | B103: =IF(A103>RW_RW_yrs+1,NA(),IFERROR(INDEX('RW-Monate'!$H$4:$H$1203, A103*12),0)) ->  | C103: =IF(Reichweite!$D$4=0,0,B103/Reichweite!$D$4) ->  | D103: =IF(ISERROR(B103),0,12*Reichweite!$D$5*(1+Reichweite!$D$6)^(A103-1)) -> 0 | E103: 0
A104: 99 | B104: =IF(A104>RW_RW_yrs+1,NA(),IFERROR(INDEX('RW-Monate'!$H$4:$H$1203, A104*12),0)) ->  | C104: =IF(Reichweite!$D$4=0,0,B104/Reichweite!$D$4) ->  | D104: =IF(ISERROR(B104),0,12*Reichweite!$D$5*(1+Reichweite!$D$6)^(A104-1)) -> 0 | E104: 0
A105: 100 | B105: =IF(A105>RW_RW_yrs+1,NA(),IFERROR(INDEX('RW-Monate'!$H$4:$H$1203, A105*12),0)) ->  | C105: =IF(Reichweite!$D$4=0,0,B105/Reichweite!$D$4) ->  | D105: =IF(ISERROR(B105),0,12*Reichweite!$D$5*(1+Reichweite!$D$6)^(A105-1)) -> 0 | E105: 0

Sheet Endbetrag
B1: Endbetrag: Entnahme- & Vermögensmodell (monatliche Entnahme, monatliche Verzinsung)
A3: 1. | B3: Annahmen | G3: 4. | H3: Zielwert-Analysen
B4: Startkapital | C4: EUR | D4: 750000 | H4: 1. Wieviel kann ich maximal monatlich entnehmen?
B5: Monatliche Entnahme (Jahr 1) | C5: EUR | D5: 4000
B6: Inflationsrate | C6: % p.a. | D6: 0.02
B7: Rendite | C7: % p.a. | D7: 0.035 | E7: bzw. % p.m. | F7: =(1+$D$7)^(30/360)-1 -> 0.002870898719 | H7: Du kannst 20 Jahre lang monatlich 2.665 EUR entnehmen, ausgehend von einem Startkapital i.H.v. 550.000 EUR, einer IR von 2,00% und einer jährlichen Rendite von 3,50%.
B8: Auszahlungszeitraum | C8: Jahre | D8: 15
H9: 2. Wie hoch muss die jährliche Rendite sein?
A10: 2. | B10: Ergebnisse
B11: Bezogen auf Ende Auszahlungszeitraum
B12: ="Kapital nach " &EB_Zeitr &" Jahren mit monatl. Auszahlungen" -> Kapital nach 15 Jahren mit monatl. Auszahlungen | C12: EUR | D12: =IF($D$8<=0,$D$4,IFERROR(INDEX('EB-Monate'!$H$4:$H$1203,$D$8*12),0)) -> 182290.6169 | H12: Die jährliche Rendite muss 10,11% betragen, damit du 20 Jahre lang monatlich 4.500 EUR entnehmen kannst bis das Kapital i.H.v. 550.000 EUR aufgebraucht ist.
B14: Bezogen auf vollständigen Kapitalverzehr | H14: 3. Wie hoch muss das Startkapital sein?
B15: Letzter Monat mit Endkapital > 0 | C15: # | D15: =IF(COUNT('EB-Monate'!$I$4:$I$1203)=0,-1,MAX('EB-Monate'!$I$4:$I$1203)) -> 213
B16: Erschöpfungsmonat | C16: # | D16: =IF(D15>=1199,"> 100 Jahre",D15+1) -> 214
B17: Kapital Monatsanfang im Erschöpfungsmonat | C17: EUR | D17: =IFERROR(INDEX('EB-Monate'!$C$4:$C$1203,D16+1),0) -> 4857.869886 | H17: Du benötigst 887.664 EUR Kapital, damit du 20 Jahre lang bei einer IR von 2,00% und jährlichen Rendite von 4,00% monatlich 4.500 EUR entnehmen kannst.
B18: Jahr im Erschöpfungsmonat | C18: # | D18: =IFERROR(INT(D16/12)+1,0) -> 18
B19: Monatsanteil | C19: % | D19: =IF(D20=0,0,MIN(1,D17/D20)) -> 0.8673272016
B20: Geplante Monatsentnahme im Erschöpfungsmonat | C20: EUR | D20: =IF(D15>=1199,0,$D$5*(1+$D$6)^(D18-1)) -> 5600.965677
B21: Laufzeit | C21: Jahre | D21: =IF(D15>=1199,"> 100 Jahre",(D15+1+D19)/12) -> 17.9056106
A23: 3. | B23: Grafik

Sheet EB-Monate
A1: Endwert: Monatliche Simulation (Entnahme zuerst, dann Verzinsung auf Rest)
A3: Monat | B3: Jahr | C3: Kapital Monatsanfang | D3: Geplante Entnahme (infl.) | E3: Tatsächliche Entnahme | F3: Kapital nach Entnahme | G3: Zins/Rendite (auf Rest) | H3: Kapital Monatsende | I3: Hilfswert
A4: 0 | B4: =INT(A4/12)+1 -> 1 | C4: =Endbetrag!$D$4 -> 750000 | D4: =Endbetrag!$D$5*(1+Endbetrag!$D$6)^(B4-1) -> 4000 | E4: =MIN(D4,C4) -> 4000 | F4: =C4-E4 -> 746000 | G4: =F4*Endbetrag!$F$7 -> 2141.690444 | H4: =MAX(0,F4+G4) -> 748141.6904 | I4: =IF(H4>0,A4,"") -> 0
A5: 1 | B5: 1 | C5: =H4 -> 748141.6904 | D5: =Endbetrag!$D$5*(1+Endbetrag!$D$6)^(B5-1) -> 4000 | E5: 4000 | F5: 744141.6904 | G5: =F5*Endbetrag!$F$7 -> 2136.355426 | H5: 746278.0459 | I5: 1
A6: 2 | B6: 1 | C6: 746278.0459 | D6: =Endbetrag!$D$5*(1+Endbetrag!$D$6)^(B6-1) -> 4000 | E6: 4000 | F6: 742278.0459 | G6: =F6*Endbetrag!$F$7 -> 2131.005091 | H6: 744409.051 | I6: 2
A7: 3 | B7: 1 | C7: 744409.051 | D7: =Endbetrag!$D$5*(1+Endbetrag!$D$6)^(B7-1) -> 4000 | E7: 4000 | F7: 740409.051 | G7: =F7*Endbetrag!$F$7 -> 2125.639396 | H7: 742534.6904 | I7: 3
A8: 4 | B8: 1 | C8: 742534.6904 | D8: =Endbetrag!$D$5*(1+Endbetrag!$D$6)^(B8-1) -> 4000 | E8: 4000 | F8: 738534.6904 | G8: =F8*Endbetrag!$F$7 -> 2120.258297 | H8: 740654.9487 | I8: 4
A9: 5 | B9: 1 | C9: 740654.9487 | D9: =Endbetrag!$D$5*(1+Endbetrag!$D$6)^(B9-1) -> 4000 | E9: 4000 | F9: 736654.9487 | G9: =F9*Endbetrag!$F$7 -> 2114.861748 | H9: 738769.8104 | I9: 5
A10: 6 | B10: 1 | C10: 738769.8104 | D10: =Endbetrag!$D$5*(1+Endbetrag!$D$6)^(B10-1) -> 4000 | E10: 4000 | F10: 734769.8104 | G10: =F10*Endbetrag!$F$7 -> 2109.449708 | H10: 736879.2601 | I10: 6
A11: 7 | B11: 1 | C11: 736879.2601 | D11: =Endbetrag!$D$5*(1+Endbetrag!$D$6)^(B11-1) -> 4000 | E11: 4000 | F11: 732879.2601 | G11: =F11*Endbetrag!$F$7 -> 2104.022129 | H11: 734983.2822 | I11: 7
A12: 8 | B12: 1 | C12: 734983.2822 | D12: =Endbetrag!$D$5*(1+Endbetrag!$D$6)^(B12-1) -> 4000 | E12: 4000 | F12: 730983.2822 | G12: =F12*Endbetrag!$F$7 -> 2098.578969 | H12: 733081.8612 | I12: 8
A13: 9 | B13: 1 | C13: 733081.8612 | D13: =Endbetrag!$D$5*(1+Endbetrag!$D$6)^(B13-1) -> 4000 | E13: 4000 | F13: 729081.8612 | G13: =F13*Endbetrag!$F$7 -> 2093.120181 | H13: 731174.9814 | I13: 9
A14: 10 | B14: 1 | C14: 731174.9814 | D14: =Endbetrag!$D$5*(1+Endbetrag!$D$6)^(B14-1) -> 4000 | E14: 4000 | F14: 727174.9814 | G14: =F14*Endbetrag!$F$7 -> 2087.645723 | H14: 729262.6271 | I14: 10
A15: 11 | B15: 1 | C15: 729262.6271 | D15: =Endbetrag!$D$5*(1+Endbetrag!$D$6)^(B15-1) -> 4000 | E15: 4000 | F15: 725262.6271 | G15: =F15*Endbetrag!$F$7 -> 2082.155547 | H15: 727344.7827 | I15: 11
A16: 12 | B16: 2 | C16: 727344.7827 | D16: =Endbetrag!$D$5*(1+Endbetrag!$D$6)^(B16-1) -> 4080 | E16: 4080 | F16: 723264.7827 | G16: =F16*Endbetrag!$F$7 -> 2076.419938 | H16: 725341.2026 | I16: 12
A17: 13 | B17: 2 | C17: 725341.2026 | D17: =Endbetrag!$D$5*(1+Endbetrag!$D$6)^(B17-1) -> 4080 | E17: 4080 | F17: 721261.2026 | G17: =F17*Endbetrag!$F$7 -> 2070.667863 | H17: 723331.8705 | I17: 13
A18: 14 | B18: 2 | C18: 723331.8705 | D18: =Endbetrag!$D$5*(1+Endbetrag!$D$6)^(B18-1) -> 4080 | E18: 4080 | F18: 719251.8705 | G18: =F18*Endbetrag!$F$7 -> 2064.899274 | H18: 721316.7697 | I18: 14
A19: 15 | B19: 2 | C19: 721316.7697 | D19: =Endbetrag!$D$5*(1+Endbetrag!$D$6)^(B19-1) -> 4080 | E19: 4080 | F19: 717236.7697 | G19: =F19*Endbetrag!$F$7 -> 2059.114124 | H19: 719295.8839 | I19: 15
A20: 16 | B20: 2 | C20: 719295.8839 | D20: =Endbetrag!$D$5*(1+Endbetrag!$D$6)^(B20-1) -> 4080 | E20: 4080 | F20: 715215.8839 | G20: =F20*Endbetrag!$F$7 -> 2053.312365 | H20: 717269.1962 | I20: 16
A21: 17 | B21: 2 | C21: 717269.1962 | D21: =Endbetrag!$D$5*(1+Endbetrag!$D$6)^(B21-1) -> 4080 | E21: 4080 | F21: 713189.1962 | G21: =F21*Endbetrag!$F$7 -> 2047.49395 | H21: 715236.6902 | I21: 17
A22: 18 | B22: 2 | C22: 715236.6902 | D22: =Endbetrag!$D$5*(1+Endbetrag!$D$6)^(B22-1) -> 4080 | E22: 4080 | F22: 711156.6902 | G22: =F22*Endbetrag!$F$7 -> 2041.658831 | H22: 713198.349 | I22: 18
A23: 19 | B23: 2 | C23: 713198.349 | D23: =Endbetrag!$D$5*(1+Endbetrag!$D$6)^(B23-1) -> 4080 | E23: 4080 | F23: 709118.349 | G23: =F23*Endbetrag!$F$7 -> 2035.80696 | H23: 711154.156 | I23: 19
A24: 20 | B24: 2 | C24: 711154.156 | D24: =Endbetrag!$D$5*(1+Endbetrag!$D$6)^(B24-1) -> 4080 | E24: 4080 | F24: 707074.156 | G24: =F24*Endbetrag!$F$7 -> 2029.938289 | H24: 709104.0943 | I24: 20
A25: 21 | B25: 2 | C25: 709104.0943 | D25: =Endbetrag!$D$5*(1+Endbetrag!$D$6)^(B25-1) -> 4080 | E25: 4080 | F25: 705024.0943 | G25: =F25*Endbetrag!$F$7 -> 2024.052769 | H25: 707048.147 | I25: 21
A26: 22 | B26: 2 | C26: 707048.147 | D26: =Endbetrag!$D$5*(1+Endbetrag!$D$6)^(B26-1) -> 4080 | E26: 4080 | F26: 702968.147 | G26: =F26*Endbetrag!$F$7 -> 2018.150353 | H26: 704986.2974 | I26: 22
A27: 23 | B27: 2 | C27: 704986.2974 | D27: =Endbetrag!$D$5*(1+Endbetrag!$D$6)^(B27-1) -> 4080 | E27: 4080 | F27: 700906.2974 | G27: =F27*Endbetrag!$F$7 -> 2012.230991 | H27: 702918.5284 | I27: 23
A28: 24 | B28: 3 | C28: 702918.5284 | D28: =Endbetrag!$D$5*(1+Endbetrag!$D$6)^(B28-1) -> 4161.6 | E28: 4161.6 | F28: 698756.9284 | G28: =F28*Endbetrag!$F$7 -> 2006.060371 | H28: 700762.9887 | I28: 24
A29: 25 | B29: 3 | C29: 700762.9887 | D29: =Endbetrag!$D$5*(1+Endbetrag!$D$6)^(B29-1) -> 4161.6 | E29: 4161.6 | F29: 696601.3887 | G29: =F29*Endbetrag!$F$7 -> 1999.872035 | H29: 698601.2608 | I29: 25
A30: 26 | B30: 3 | C30: 698601.2608 | D30: =Endbetrag!$D$5*(1+Endbetrag!$D$6)^(B30-1) -> 4161.6 | E30: 4161.6 | F30: 694439.6608 | G30: =F30*Endbetrag!$F$7 -> 1993.665933 | H30: 696433.3267 | I30: 26
A31: 27 | B31: 3 | C31: 696433.3267 | D31: =Endbetrag!$D$5*(1+Endbetrag!$D$6)^(B31-1) -> 4161.6 | E31: 4161.6 | F31: 692271.7267 | G31: =F31*Endbetrag!$F$7 -> 1987.442013 | H31: 694259.1687 | I31: 27
A32: 28 | B32: 3 | C32: 694259.1687 | D32: =Endbetrag!$D$5*(1+Endbetrag!$D$6)^(B32-1) -> 4161.6 | E32: 4161.6 | F32: 690097.5687 | G32: =F32*Endbetrag!$F$7 -> 1981.200226 | H32: 692078.7689 | I32: 28
A33: 29 | B33: 3 | C33: 692078.7689 | D33: =Endbetrag!$D$5*(1+Endbetrag!$D$6)^(B33-1) -> 4161.6 | E33: 4161.6 | F33: 687917.1689 | G33: =F33*Endbetrag!$F$7 -> 1974.940519 | H33: 689892.1095 | I33: 29
A34: 30 | B34: 3 | C34: 689892.1095 | D34: =Endbetrag!$D$5*(1+Endbetrag!$D$6)^(B34-1) -> 4161.6 | E34: 4161.6 | F34: 685730.5095 | G34: =F34*Endbetrag!$F$7 -> 1968.662841 | H34: 687699.1723 | I34: 30
A35: 31 | B35: 3 | C35: 687699.1723 | D35: =Endbetrag!$D$5*(1+Endbetrag!$D$6)^(B35-1) -> 4161.6 | E35: 4161.6 | F35: 683537.5723 | G35: =F35*Endbetrag!$F$7 -> 1962.367141 | H35: 685499.9394 | I35: 31
A36: 32 | B36: 3 | C36: 685499.9394 | D36: =Endbetrag!$D$5*(1+Endbetrag!$D$6)^(B36-1) -> 4161.6 | E36: 4161.6 | F36: 681338.3394 | G36: =F36*Endbetrag!$F$7 -> 1956.053366 | H36: 683294.3928 | I36: 32
A37: 33 | B37: 3 | C37: 683294.3928 | D37: =Endbetrag!$D$5*(1+Endbetrag!$D$6)^(B37-1) -> 4161.6 | E37: 4161.6 | F37: 679132.7928 | G37: =F37*Endbetrag!$F$7 -> 1949.721465 | H37: 681082.5143 | I37: 33
A38: 34 | B38: 3 | C38: 681082.5143 | D38: =Endbetrag!$D$5*(1+Endbetrag!$D$6)^(B38-1) -> 4161.6 | E38: 4161.6 | F38: 676920.9143 | G38: =F38*Endbetrag!$F$7 -> 1943.371386 | H38: 678864.2857 | I38: 34
A39: 35 | B39: 3 | C39: 678864.2857 | D39: =Endbetrag!$D$5*(1+Endbetrag!$D$6)^(B39-1) -> 4161.6 | E39: 4161.6 | F39: 674702.6857 | G39: =F39*Endbetrag!$F$7 -> 1937.003076 | H39: 676639.6887 | I39: 35
A40: 36 | B40: 4 | C40: 676639.6887 | D40: =Endbetrag!$D$5*(1+Endbetrag!$D$6)^(B40-1) -> 4244.832 | E40: 4244.832 | F40: 672394.8567 | G40: =F40*Endbetrag!$F$7 -> 1930.377533 | H40: 674325.2343 | I40: 36
A41: 37 | B41: 4 | C41: 674325.2343 | D41: =Endbetrag!$D$5*(1+Endbetrag!$D$6)^(B41-1) -> 4244.832 | E41: 4244.832 | F41: 670080.4023 | G41: =F41*Endbetrag!$F$7 -> 1923.732969 | H41: 672004.1352 | I41: 37
A42: 38 | B42: 4 | C42: 672004.1352 | D42: =Endbetrag!$D$5*(1+Endbetrag!$D$6)^(B42-1) -> 4244.832 | E42: 4244.832 | F42: 667759.3032 | G42: =F42*Endbetrag!$F$7 -> 1917.069328 | H42: 669676.3726 | I42: 38
A43: 39 | B43: 4 | C43: 669676.3726 | D43: =Endbetrag!$D$5*(1+Endbetrag!$D$6)^(B43-1) -> 4244.832 | E43: 4244.832 | F43: 665431.5406 | G43: =F43*Endbetrag!$F$7 -> 1910.386557 | H43: 667341.9271 | I43: 39
A44: 40 | B44: 4 | C44: 667341.9271 | D44: =Endbetrag!$D$5*(1+Endbetrag!$D$6)^(B44-1) -> 4244.832 | E44: 4244.832 | F44: 663097.0951 | G44: =F44*Endbetrag!$F$7 -> 1903.684601 | H44: 665000.7797 | I44: 40
A45: 41 | B45: 4 | C45: 665000.7797 | D45: =Endbetrag!$D$5*(1+Endbetrag!$D$6)^(B45-1) -> 4244.832 | E45: 4244.832 | F45: 660755.9477 | G45: =F45*Endbetrag!$F$7 -> 1896.963404 | H45: 662652.9111 | I45: 41
A46: 42 | B46: 4 | C46: 662652.9111 | D46: =Endbetrag!$D$5*(1+Endbetrag!$D$6)^(B46-1) -> 4244.832 | E46: 4244.832 | F46: 658408.0791 | G46: =F46*Endbetrag!$F$7 -> 1890.222911 | H46: 660298.302 | I46: 42
A47: 43 | B47: 4 | C47: 660298.302 | D47: =Endbetrag!$D$5*(1+Endbetrag!$D$6)^(B47-1) -> 4244.832 | E47: 4244.832 | F47: 656053.47 | G47: =F47*Endbetrag!$F$7 -> 1883.463067 | H47: 657936.9331 | I47: 43
A48: 44 | B48: 4 | C48: 657936.9331 | D48: =Endbetrag!$D$5*(1+Endbetrag!$D$6)^(B48-1) -> 4244.832 | E48: 4244.832 | F48: 653692.1011 | G48: =F48*Endbetrag!$F$7 -> 1876.683816 | H48: 655568.7849 | I48: 44
A49: 45 | B49: 4 | C49: 655568.7849 | D49: =Endbetrag!$D$5*(1+Endbetrag!$D$6)^(B49-1) -> 4244.832 | E49: 4244.832 | F49: 651323.9529 | G49: =F49*Endbetrag!$F$7 -> 1869.885102 | H49: 653193.838 | I49: 45
A50: 46 | B50: 4 | C50: 653193.838 | D50: =Endbetrag!$D$5*(1+Endbetrag!$D$6)^(B50-1) -> 4244.832 | E50: 4244.832 | F50: 648949.006 | G50: =F50*Endbetrag!$F$7 -> 1863.06687 | H50: 650812.0729 | I50: 46
A51: 47 | B51: 4 | C51: 650812.0729 | D51: =Endbetrag!$D$5*(1+Endbetrag!$D$6)^(B51-1) -> 4244.832 | E51: 4244.832 | F51: 646567.2409 | G51: =F51*Endbetrag!$F$7 -> 1856.229064 | H51: 648423.47 | I51: 47
A52: 48 | B52: 5 | C52: 648423.47 | D52: =Endbetrag!$D$5*(1+Endbetrag!$D$6)^(B52-1) -> 4329.72864 | E52: 4329.72864 | F52: 644093.7413 | G52: =F52*Endbetrag!$F$7 -> 1849.127897 | H52: 645942.8692 | I52: 48
A53: 49 | B53: 5 | C53: 645942.8692 | D53: =Endbetrag!$D$5*(1+Endbetrag!$D$6)^(B53-1) -> 4329.72864 | E53: 4329.72864 | F53: 641613.1406 | G53: =F53*Endbetrag!$F$7 -> 1842.006343 | H53: 643455.1469 | I53: 49
A54: 50 | B54: 5 | C54: 643455.1469 | D54: =Endbetrag!$D$5*(1+Endbetrag!$D$6)^(B54-1) -> 4329.72864 | E54: 4329.72864 | F54: 639125.4183 | G54: =F54*Endbetrag!$F$7 -> 1834.864345 | H54: 640960.2826 | I54: 50
A55: 51 | B55: 5 | C55: 640960.2826 | D55: =Endbetrag!$D$5*(1+Endbetrag!$D$6)^(B55-1) -> 4329.72864 | E55: 4329.72864 | F55: 636630.554 | G55: =F55*Endbetrag!$F$7 -> 1827.701842 | H55: 638458.2558 | I55: 51
A56: 52 | B56: 5 | C56: 638458.2558 | D56: =Endbetrag!$D$5*(1+Endbetrag!$D$6)^(B56-1) -> 4329.72864 | E56: 4329.72864 | F56: 634128.5272 | G56: =F56*Endbetrag!$F$7 -> 1820.518776 | H56: 635949.046 | I56: 52
A57: 53 | B57: 5 | C57: 635949.046 | D57: =Endbetrag!$D$5*(1+Endbetrag!$D$6)^(B57-1) -> 4329.72864 | E57: 4329.72864 | F57: 631619.3173 | G57: =F57*Endbetrag!$F$7 -> 1813.315089 | H57: 633432.6324 | I57: 53
A58: 54 | B58: 5 | C58: 633432.6324 | D58: =Endbetrag!$D$5*(1+Endbetrag!$D$6)^(B58-1) -> 4329.72864 | E58: 4329.72864 | F58: 629102.9038 | G58: =F58*Endbetrag!$F$7 -> 1806.090721 | H58: 630908.9945 | I58: 54
A59: 55 | B59: 5 | C59: 630908.9945 | D59: =Endbetrag!$D$5*(1+Endbetrag!$D$6)^(B59-1) -> 4329.72864 | E59: 4329.72864 | F59: 626579.2658 | G59: =F59*Endbetrag!$F$7 -> 1798.845612 | H59: 628378.1115 | I59: 55
A60: 56 | B60: 5 | C60: 628378.1115 | D60: =Endbetrag!$D$5*(1+Endbetrag!$D$6)^(B60-1) -> 4329.72864 | E60: 4329.72864 | F60: 624048.3828 | G60: =F60*Endbetrag!$F$7 -> 1791.579703 | H60: 625839.9625 | I60: 56
A61: 57 | B61: 5 | C61: 625839.9625 | D61: =Endbetrag!$D$5*(1+Endbetrag!$D$6)^(B61-1) -> 4329.72864 | E61: 4329.72864 | F61: 621510.2339 | G61: =F61*Endbetrag!$F$7 -> 1784.292934 | H61: 623294.5268 | I61: 57
A62: 58 | B62: 5 | C62: 623294.5268 | D62: =Endbetrag!$D$5*(1+Endbetrag!$D$6)^(B62-1) -> 4329.72864 | E62: 4329.72864 | F62: 618964.7982 | G62: =F62*Endbetrag!$F$7 -> 1776.985246 | H62: 620741.7834 | I62: 58
A63: 59 | B63: 5 | C63: 620741.7834 | D63: =Endbetrag!$D$5*(1+Endbetrag!$D$6)^(B63-1) -> 4329.72864 | E63: 4329.72864 | F63: 616412.0548 | G63: =F63*Endbetrag!$F$7 -> 1769.656579 | H63: 618181.7114 | I63: 59
A64: 60 | B64: 6 | C64: 618181.7114 | D64: =Endbetrag!$D$5*(1+Endbetrag!$D$6)^(B64-1) -> 4416.323213 | E64: 4416.323213 | F64: 613765.3882 | G64: =F64*Endbetrag!$F$7 -> 1762.058267 | H64: 615527.4464 | I64: 60
A65: 61 | B65: 6 | C65: 615527.4464 | D65: =Endbetrag!$D$5*(1+Endbetrag!$D$6)^(B65-1) -> 4416.323213 | E65: 4416.323213 | F65: 611111.1232 | G65: =F65*Endbetrag!$F$7 -> 1754.438141 | H65: 612865.5613 | I65: 61
A66: 62 | B66: 6 | C66: 612865.5613 | D66: =Endbetrag!$D$5*(1+Endbetrag!$D$6)^(B66-1) -> 4416.323213 | E66: 4416.323213 | F66: 608449.2381 | G66: =F66*Endbetrag!$F$7 -> 1746.796138 | H66: 610196.0343 | I66: 62
A67: 63 | B67: 6 | C67: 610196.0343 | D67: =Endbetrag!$D$5*(1+Endbetrag!$D$6)^(B67-1) -> 4416.323213 | E67: 4416.323213 | F67: 605779.7111 | G67: =F67*Endbetrag!$F$7 -> 1739.132197 | H67: 607518.8433 | I67: 63
A68: 64 | B68: =INT(A68/12)+1 -> 6 | C68: 607518.8433 | D68: =Endbetrag!$D$5*(1+Endbetrag!$D$6)^(B68-1) -> 4416.323213 | E68: =MIN(D68,C68) -> 4416.323213 | F68: =C68-E68 -> 603102.52 | G68: =F68*Endbetrag!$F$7 -> 1731.446252 | H68: =MAX(0,F68+G68) -> 604833.9663 | I68: =IF(H68>0,A68,"") -> 64
A69: 65 | B69: 6 | C69: =H68 -> 604833.9663 | D69: =Endbetrag!$D$5*(1+Endbetrag!$D$6)^(B69-1) -> 4416.323213 | E69: 4416.323213 | F69: 600417.6431 | G69: =F69*Endbetrag!$F$7 -> 1723.738242 | H69: 602141.3813 | I69: 65
A70: 66 | B70: 6 | C70: 602141.3813 | D70: =Endbetrag!$D$5*(1+Endbetrag!$D$6)^(B70-1) -> 4416.323213 | E70: 4416.323213 | F70: 597725.0581 | G70: =F70*Endbetrag!$F$7 -> 1716.008104 | H70: 599441.0662 | I70: 66
A71: 67 | B71: 6 | C71: 599441.0662 | D71: =Endbetrag!$D$5*(1+Endbetrag!$D$6)^(B71-1) -> 4416.323213 | E71: 4416.323213 | F71: 595024.743 | G71: =F71*Endbetrag!$F$7 -> 1708.255773 | H71: 596732.9988 | I71: 67
A72: 68 | B72: 6 | C72: 596732.9988 | D72: =Endbetrag!$D$5*(1+Endbetrag!$D$6)^(B72-1) -> 4416.323213 | E72: 4416.323213 | F72: 592316.6756 | G72: =F72*Endbetrag!$F$7 -> 1700.481185 | H72: 594017.1567 | I72: 68
A73: 69 | B73: 6 | C73: 594017.1567 | D73: =Endbetrag!$D$5*(1+Endbetrag!$D$6)^(B73-1) -> 4416.323213 | E73: 4416.323213 | F73: 589600.8335 | G73: =F73*Endbetrag!$F$7 -> 1692.684278 | H73: 591293.5178 | I73: 69
A74: 70 | B74: 6 | C74: 591293.5178 | D74: =Endbetrag!$D$5*(1+Endbetrag!$D$6)^(B74-1) -> 4416.323213 | E74: 4416.323213 | F74: 586877.1946 | G74: =F74*Endbetrag!$F$7 -> 1684.864986 | H74: 588562.0596 | I74: 70
A75: 71 | B75: 6 | C75: 588562.0596 | D75: =Endbetrag!$D$5*(1+Endbetrag!$D$6)^(B75-1) -> 4416.323213 | E75: 4416.323213 | F75: 584145.7364 | G75: =F75*Endbetrag!$F$7 -> 1677.023246 | H75: 585822.7596 | I75: 71
A76: 72 | B76: 7 | C76: 585822.7596 | D76: =Endbetrag!$D$5*(1+Endbetrag!$D$6)^(B76-1) -> 4504.649677 | E76: 4504.649677 | F76: 581318.1099 | G76: =F76*Endbetrag!$F$7 -> 1668.905417 | H76: 582987.0154 | I76: 72
A77: 73 | B77: 7 | C77: 582987.0154 | D77: =Endbetrag!$D$5*(1+Endbetrag!$D$6)^(B77-1) -> 4504.649677 | E77: 4504.649677 | F77: 578482.3657 | G77: =F77*Endbetrag!$F$7 -> 1660.764283 | H77: 580143.13 | I77: 73
A78: 74 | B78: 7 | C78: 580143.13 | D78: =Endbetrag!$D$5*(1+Endbetrag!$D$6)^(B78-1) -> 4504.649677 | E78: 4504.649677 | F78: 575638.4803 | G78: =F78*Endbetrag!$F$7 -> 1652.599776 | H78: 577291.0801 | I78: 74
A79: 75 | B79: 7 | C79: 577291.0801 | D79: =Endbetrag!$D$5*(1+Endbetrag!$D$6)^(B79-1) -> 4504.649677 | E79: 4504.649677 | F79: 572786.4304 | G79: =F79*Endbetrag!$F$7 -> 1644.411829 | H79: 574430.8422 | I79: 75
A80: 76 | B80: 7 | C80: 574430.8422 | D80: =Endbetrag!$D$5*(1+Endbetrag!$D$6)^(B80-1) -> 4504.649677 | E80: 4504.649677 | F80: 569926.1925 | G80: =F80*Endbetrag!$F$7 -> 1636.200376 | H80: 571562.3929 | I80: 76
A81: 77 | B81: 7 | C81: 571562.3929 | D81: =Endbetrag!$D$5*(1+Endbetrag!$D$6)^(B81-1) -> 4504.649677 | E81: 4504.649677 | F81: 567057.7432 | G81: =F81*Endbetrag!$F$7 -> 1627.965349 | H81: 568685.7086 | I81: 77
A82: 78 | B82: 7 | C82: 568685.7086 | D82: =Endbetrag!$D$5*(1+Endbetrag!$D$6)^(B82-1) -> 4504.649677 | E82: 4504.649677 | F82: 564181.0589 | G82: =F82*Endbetrag!$F$7 -> 1619.706679 | H82: 565800.7656 | I82: 78
A83: 79 | B83: 7 | C83: 565800.7656 | D83: =Endbetrag!$D$5*(1+Endbetrag!$D$6)^(B83-1) -> 4504.649677 | E83: 4504.649677 | F83: 561296.1159 | G83: =F83*Endbetrag!$F$7 -> 1611.4243 | H83: 562907.5402 | I83: 79
A84: 80 | B84: 7 | C84: 562907.5402 | D84: =Endbetrag!$D$5*(1+Endbetrag!$D$6)^(B84-1) -> 4504.649677 | E84: 4504.649677 | F84: 558402.8905 | G84: =F84*Endbetrag!$F$7 -> 1603.118143 | H84: 560006.0087 | I84: 80
A85: 81 | B85: 7 | C85: 560006.0087 | D85: =Endbetrag!$D$5*(1+Endbetrag!$D$6)^(B85-1) -> 4504.649677 | E85: 4504.649677 | F85: 555501.359 | G85: =F85*Endbetrag!$F$7 -> 1594.78814 | H85: 557096.1471 | I85: 81
A86: 82 | B86: 7 | C86: 557096.1471 | D86: =Endbetrag!$D$5*(1+Endbetrag!$D$6)^(B86-1) -> 4504.649677 | E86: 4504.649677 | F86: 552591.4975 | G86: =F86*Endbetrag!$F$7 -> 1586.434222 | H86: 554177.9317 | I86: 82
A87: 83 | B87: 7 | C87: 554177.9317 | D87: =Endbetrag!$D$5*(1+Endbetrag!$D$6)^(B87-1) -> 4504.649677 | E87: 4504.649677 | F87: 549673.282 | G87: =F87*Endbetrag!$F$7 -> 1578.056321 | H87: 551251.3383 | I87: 83
A88: 84 | B88: 8 | C88: 551251.3383 | D88: =Endbetrag!$D$5*(1+Endbetrag!$D$6)^(B88-1) -> 4594.742671 | E88: 4594.742671 | F88: 546656.5957 | G88: =F88*Endbetrag!$F$7 -> 1569.39572 | H88: 548225.9914 | I88: 84
A89: 85 | B89: 8 | C89: 548225.9914 | D89: =Endbetrag!$D$5*(1+Endbetrag!$D$6)^(B89-1) -> 4594.742671 | E89: 4594.742671 | F89: 543631.2487 | G89: =F89*Endbetrag!$F$7 -> 1560.710256 | H89: 545191.959 | I89: 85
A90: 86 | B90: 8 | C90: 545191.959 | D90: =Endbetrag!$D$5*(1+Endbetrag!$D$6)^(B90-1) -> 4594.742671 | E90: 4594.742671 | F90: 540597.2163 | G90: =F90*Endbetrag!$F$7 -> 1551.999856 | H90: 542149.2161 | I90: 86
A91: 87 | B91: 8 | C91: 542149.2161 | D91: =Endbetrag!$D$5*(1+Endbetrag!$D$6)^(B91-1) -> 4594.742671 | E91: 4594.742671 | F91: 537554.4735 | G91: =F91*Endbetrag!$F$7 -> 1543.264449 | H91: 539097.7379 | I91: 87
A92: 88 | B92: 8 | C92: 539097.7379 | D92: =Endbetrag!$D$5*(1+Endbetrag!$D$6)^(B92-1) -> 4594.742671 | E92: 4594.742671 | F92: 534502.9953 | G92: =F92*Endbetrag!$F$7 -> 1534.503964 | H92: 536037.4992 | I92: 88
A93: 89 | B93: 8 | C93: 536037.4992 | D93: =Endbetrag!$D$5*(1+Endbetrag!$D$6)^(B93-1) -> 4594.742671 | E93: 4594.742671 | F93: 531442.7566 | G93: =F93*Endbetrag!$F$7 -> 1525.718329 | H93: 532968.4749 | I93: 89
A94: 90 | B94: 8 | C94: 532968.4749 | D94: =Endbetrag!$D$5*(1+Endbetrag!$D$6)^(B94-1) -> 4594.742671 | E94: 4594.742671 | F94: 528373.7322 | G94: =F94*Endbetrag!$F$7 -> 1516.907471 | H94: 529890.6397 | I94: 90
A95: 91 | B95: 8 | C95: 529890.6397 | D95: =Endbetrag!$D$5*(1+Endbetrag!$D$6)^(B95-1) -> 4594.742671 | E95: 4594.742671 | F95: 525295.897 | G95: =F95*Endbetrag!$F$7 -> 1508.071318 | H95: 526803.9683 | I95: 91
A96: 92 | B96: 8 | C96: 526803.9683 | D96: =Endbetrag!$D$5*(1+Endbetrag!$D$6)^(B96-1) -> 4594.742671 | E96: 4594.742671 | F96: 522209.2257 | G96: =F96*Endbetrag!$F$7 -> 1499.209797 | H96: 523708.4355 | I96: 92
A97: 93 | B97: 8 | C97: 523708.4355 | D97: =Endbetrag!$D$5*(1+Endbetrag!$D$6)^(B97-1) -> 4594.742671 | E97: 4594.742671 | F97: 519113.6928 | G97: =F97*Endbetrag!$F$7 -> 1490.322836 | H97: 520604.0156 | I97: 93
A98: 94 | B98: 8 | C98: 520604.0156 | D98: =Endbetrag!$D$5*(1+Endbetrag!$D$6)^(B98-1) -> 4594.742671 | E98: 4594.742671 | F98: 516009.2729 | G98: =F98*Endbetrag!$F$7 -> 1481.410361 | H98: 517490.6833 | I98: 94
A99: 95 | B99: 8 | C99: 517490.6833 | D99: =Endbetrag!$D$5*(1+Endbetrag!$D$6)^(B99-1) -> 4594.742671 | E99: 4594.742671 | F99: 512895.9406 | G99: =F99*Endbetrag!$F$7 -> 1472.472299 | H99: 514368.4129 | I99: 95
A100: 96 | B100: 9 | C100: 514368.4129 | D100: =Endbetrag!$D$5*(1+Endbetrag!$D$6)^(B100-1) -> 4686.637524 | E100: 4686.637524 | F100: 509681.7754 | G100: =F100*Endbetrag!$F$7 -> 1463.244756 | H100: 511145.0202 | I100: 96
A101: 97 | B101: 9 | C101: 511145.0202 | D101: =Endbetrag!$D$5*(1+Endbetrag!$D$6)^(B101-1) -> 4686.637524 | E101: 4686.637524 | F101: 506458.3826 | G101: =F101*Endbetrag!$F$7 -> 1453.990722 | H101: 507912.3734 | I101: 97
A102: 98 | B102: 9 | C102: 507912.3734 | D102: =Endbetrag!$D$5*(1+Endbetrag!$D$6)^(B102-1) -> 4686.637524 | E102: 4686.637524 | F102: 503225.7358 | G102: =F102*Endbetrag!$F$7 -> 1444.71012 | H102: 504670.446 | I102: 98
A103: 99 | B103: 9 | C103: 504670.446 | D103: =Endbetrag!$D$5*(1+Endbetrag!$D$6)^(B103-1) -> 4686.637524 | E103: 4686.637524 | F103: 499983.8084 | G103: =F103*Endbetrag!$F$7 -> 1435.402875 | H103: 501419.2113 | I103: 99
A104: 100 | B104: 9 | C104: 501419.2113 | D104: =Endbetrag!$D$5*(1+Endbetrag!$D$6)^(B104-1) -> 4686.637524 | E104: 4686.637524 | F104: 496732.5738 | G104: =F104*Endbetrag!$F$7 -> 1426.06891 | H104: 498158.6427 | I104: 100
A105: 101 | B105: 9 | C105: 498158.6427 | D105: =Endbetrag!$D$5*(1+Endbetrag!$D$6)^(B105-1) -> 4686.637524 | E105: 4686.637524 | F105: 493472.0052 | G105: =F105*Endbetrag!$F$7 -> 1416.708148 | H105: 494888.7133 | I105: 101
A106: 102 | B106: 9 | C106: 494888.7133 | D106: =Endbetrag!$D$5*(1+Endbetrag!$D$6)^(B106-1) -> 4686.637524 | E106: 4686.637524 | F106: 490202.0758 | G106: =F106*Endbetrag!$F$7 -> 1407.320512 | H106: 491609.3963 | I106: 102
A107: 103 | B107: 9 | C107: 491609.3963 | D107: =Endbetrag!$D$5*(1+Endbetrag!$D$6)^(B107-1) -> 4686.637524 | E107: 4686.637524 | F107: 486922.7588 | G107: =F107*Endbetrag!$F$7 -> 1397.905924 | H107: 488320.6647 | I107: 103
A108: 104 | B108: 9 | C108: 488320.6647 | D108: =Endbetrag!$D$5*(1+Endbetrag!$D$6)^(B108-1) -> 4686.637524 | E108: 4686.637524 | F108: 483634.0272 | G108: =F108*Endbetrag!$F$7 -> 1388.464309 | H108: 485022.4915 | I108: 104
A109: 105 | B109: 9 | C109: 485022.4915 | D109: =Endbetrag!$D$5*(1+Endbetrag!$D$6)^(B109-1) -> 4686.637524 | E109: 4686.637524 | F109: 480335.854 | G109: =F109*Endbetrag!$F$7 -> 1378.995588 | H109: 481714.8496 | I109: 105
A110: 106 | B110: 9 | C110: 481714.8496 | D110: =Endbetrag!$D$5*(1+Endbetrag!$D$6)^(B110-1) -> 4686.637524 | E110: 4686.637524 | F110: 477028.212 | G110: =F110*Endbetrag!$F$7 -> 1369.499683 | H110: 478397.7117 | I110: 106
A111: 107 | B111: 9 | C111: 478397.7117 | D111: =Endbetrag!$D$5*(1+Endbetrag!$D$6)^(B111-1) -> 4686.637524 | E111: 4686.637524 | F111: 473711.0742 | G111: =F111*Endbetrag!$F$7 -> 1359.976516 | H111: 475071.0507 | I111: 107
A112: 108 | B112: 10 | C112: 475071.0507 | D112: =Endbetrag!$D$5*(1+Endbetrag!$D$6)^(B112-1) -> 4780.370274 | E112: 4780.370274 | F112: 470290.6804 | G112: =F112*Endbetrag!$F$7 -> 1350.156912 | H112: 471640.8374 | I112: 108
A113: 109 | B113: 10 | C113: 471640.8374 | D113: =Endbetrag!$D$5*(1+Endbetrag!$D$6)^(B113-1) -> 4780.370274 | E113: 4780.370274 | F113: 466860.4671 | G113: =F113*Endbetrag!$F$7 -> 1340.309117 | H113: 468200.7762 | I113: 109
A114: 110 | B114: 10 | C114: 468200.7762 | D114: =Endbetrag!$D$5*(1+Endbetrag!$D$6)^(B114-1) -> 4780.370274 | E114: 4780.370274 | F114: 463420.4059 | G114: =F114*Endbetrag!$F$7 -> 1330.43305 | H114: 464750.839 | I114: 110
A115: 111 | B115: 10 | C115: 464750.839 | D115: =Endbetrag!$D$5*(1+Endbetrag!$D$6)^(B115-1) -> 4780.370274 | E115: 4780.370274 | F115: 459970.4687 | G115: =F115*Endbetrag!$F$7 -> 1320.528629 | H115: 461290.9973 | I115: 111
A116: 112 | B116: 10 | C116: 461290.9973 | D116: =Endbetrag!$D$5*(1+Endbetrag!$D$6)^(B116-1) -> 4780.370274 | E116: 4780.370274 | F116: 456510.627 | G116: =F116*Endbetrag!$F$7 -> 1310.595774 | H116: 457821.2228 | I116: 112
A117: 113 | B117: 10 | C117: 457821.2228 | D117: =Endbetrag!$D$5*(1+Endbetrag!$D$6)^(B117-1) -> 4780.370274 | E117: 4780.370274 | F117: 453040.8525 | G117: =F117*Endbetrag!$F$7 -> 1300.634403 | H117: 454341.487 | I117: 113
A118: 114 | B118: 10 | C118: 454341.487 | D118: =Endbetrag!$D$5*(1+Endbetrag!$D$6)^(B118-1) -> 4780.370274 | E118: 4780.370274 | F118: 449561.1167 | G118: =F118*Endbetrag!$F$7 -> 1290.644434 | H118: 450851.7611 | I118: 114
A119: 115 | B119: 10 | C119: 450851.7611 | D119: =Endbetrag!$D$5*(1+Endbetrag!$D$6)^(B119-1) -> 4780.370274 | E119: 4780.370274 | F119: 446071.3908 | G119: =F119*Endbetrag!$F$7 -> 1280.625785 | H119: 447352.0166 | I119: 115
A120: 116 | B120: 10 | C120: 447352.0166 | D120: =Endbetrag!$D$5*(1+Endbetrag!$D$6)^(B120-1) -> 4780.370274 | E120: 4780.370274 | F120: 442571.6463 | G120: =F120*Endbetrag!$F$7 -> 1270.578373 | H120: 443842.2247 | I120: 116
A121: 117 | B121: 10 | C121: 443842.2247 | D121: =Endbetrag!$D$5*(1+Endbetrag!$D$6)^(B121-1) -> 4780.370274 | E121: 4780.370274 | F121: 439061.8544 | G121: =F121*Endbetrag!$F$7 -> 1260.502116 | H121: 440322.3566 | I121: 117
A122: 118 | B122: 10 | C122: 440322.3566 | D122: =Endbetrag!$D$5*(1+Endbetrag!$D$6)^(B122-1) -> 4780.370274 | E122: 4780.370274 | F122: 435541.9863 | G122: =F122*Endbetrag!$F$7 -> 1250.396931 | H122: 436792.3832 | I122: 118
A123: 119 | B123: 10 | C123: 436792.3832 | D123: =Endbetrag!$D$5*(1+Endbetrag!$D$6)^(B123-1) -> 4780.370274 | E123: 4780.370274 | F123: 432012.0129 | G123: =F123*Endbetrag!$F$7 -> 1240.262735 | H123: 433252.2757 | I123: 119
A124: 120 | B124: 11 | C124: 433252.2757 | D124: =Endbetrag!$D$5*(1+Endbetrag!$D$6)^(B124-1) -> 4875.97768 | E124: 4875.97768 | F124: 428376.298 | G124: =F124*Endbetrag!$F$7 -> 1229.824965 | H124: 429606.123 | I124: 120
A125: 121 | B125: 11 | C125: 429606.123 | D125: =Endbetrag!$D$5*(1+Endbetrag!$D$6)^(B125-1) -> 4875.97768 | E125: 4875.97768 | F125: 424730.1453 | G125: =F125*Endbetrag!$F$7 -> 1219.35723 | H125: 425949.5025 | I125: 121
A126: 122 | B126: 11 | C126: 425949.5025 | D126: =Endbetrag!$D$5*(1+Endbetrag!$D$6)^(B126-1) -> 4875.97768 | E126: 4875.97768 | F126: 421073.5248 | G126: =F126*Endbetrag!$F$7 -> 1208.859443 | H126: 422282.3843 | I126: 122
A127: 123 | B127: 11 | C127: 422282.3843 | D127: =Endbetrag!$D$5*(1+Endbetrag!$D$6)^(B127-1) -> 4875.97768 | E127: 4875.97768 | F127: 417406.4066 | G127: =F127*Endbetrag!$F$7 -> 1198.331518 | H127: 418604.7381 | I127: 123
A128: 124 | B128: 11 | C128: 418604.7381 | D128: =Endbetrag!$D$5*(1+Endbetrag!$D$6)^(B128-1) -> 4875.97768 | E128: 4875.97768 | F128: 413728.7604 | G128: =F128*Endbetrag!$F$7 -> 1187.773368 | H128: 414916.5338 | I128: 124
A129: 125 | B129: 11 | C129: 414916.5338 | D129: =Endbetrag!$D$5*(1+Endbetrag!$D$6)^(B129-1) -> 4875.97768 | E129: 4875.97768 | F129: 410040.5561 | G129: =F129*Endbetrag!$F$7 -> 1177.184907 | H129: 411217.741 | I129: 125
A130: 126 | B130: 11 | C130: 411217.741 | D130: =Endbetrag!$D$5*(1+Endbetrag!$D$6)^(B130-1) -> 4875.97768 | E130: 4875.97768 | F130: 406341.7633 | G130: =F130*Endbetrag!$F$7 -> 1166.566048 | H130: 407508.3294 | I130: 126
A131: 127 | B131: 11 | C131: 407508.3294 | D131: =Endbetrag!$D$5*(1+Endbetrag!$D$6)^(B131-1) -> 4875.97768 | E131: 4875.97768 | F131: 402632.3517 | G131: =F131*Endbetrag!$F$7 -> 1155.916703 | H131: 403788.2684 | I131: 127
A132: 128 | B132: =INT(A132/12)+1 -> 11 | C132: 403788.2684 | D132: =Endbetrag!$D$5*(1+Endbetrag!$D$6)^(B132-1) -> 4875.97768 | E132: =MIN(D132,C132) -> 4875.97768 | F132: =C132-E132 -> 398912.2907 | G132: =F132*Endbetrag!$F$7 -> 1145.236785 | H132: =MAX(0,F132+G132) -> 400057.5275 | I132: =IF(H132>0,A132,"") -> 128
A133: 129 | B133: 11 | C133: =H132 -> 400057.5275 | D133: =Endbetrag!$D$5*(1+Endbetrag!$D$6)^(B133-1) -> 4875.97768 | E133: 4875.97768 | F133: 395181.5498 | G133: =F133*Endbetrag!$F$7 -> 1134.526205 | H133: 396316.0761 | I133: 129
A134: 130 | B134: 11 | C134: 396316.0761 | D134: =Endbetrag!$D$5*(1+Endbetrag!$D$6)^(B134-1) -> 4875.97768 | E134: 4875.97768 | F134: 391440.0984 | G134: =F134*Endbetrag!$F$7 -> 1123.784877 | H134: 392563.8832 | I134: 130
A135: 131 | B135: 11 | C135: 392563.8832 | D135: =Endbetrag!$D$5*(1+Endbetrag!$D$6)^(B135-1) -> 4875.97768 | E135: 4875.97768 | F135: 387687.9056 | G135: =F135*Endbetrag!$F$7 -> 1113.012711 | H135: 388800.9183 | I135: 131
A136: 132 | B136: 12 | C136: 388800.9183 | D136: =Endbetrag!$D$5*(1+Endbetrag!$D$6)^(B136-1) -> 4973.497234 | E136: 4973.497234 | F136: 383827.421 | G136: =F136*Endbetrag!$F$7 -> 1101.929651 | H136: 384929.3507 | I136: 132
A137: 133 | B137: 12 | C137: 384929.3507 | D137: =Endbetrag!$D$5*(1+Endbetrag!$D$6)^(B137-1) -> 4973.497234 | E137: 4973.497234 | F137: 379955.8535 | G137: =F137*Endbetrag!$F$7 -> 1090.814773 | H137: 381046.6682 | I137: 133
A138: 134 | B138: 12 | C138: 381046.6682 | D138: =Endbetrag!$D$5*(1+Endbetrag!$D$6)^(B138-1) -> 4973.497234 | E138: 4973.497234 | F138: 376073.171 | G138: =F138*Endbetrag!$F$7 -> 1079.667985 | H138: 377152.839 | I138: 134
A139: 135 | B139: 12 | C139: 377152.839 | D139: =Endbetrag!$D$5*(1+Endbetrag!$D$6)^(B139-1) -> 4973.497234 | E139: 4973.497234 | F139: 372179.3418 | G139: =F139*Endbetrag!$F$7 -> 1068.489196 | H139: 373247.8309 | I139: 135
A140: 136 | B140: 12 | C140: 373247.8309 | D140: =Endbetrag!$D$5*(1+Endbetrag!$D$6)^(B140-1) -> 4973.497234 | E140: 4973.497234 | F140: 368274.3337 | G140: =F140*Endbetrag!$F$7 -> 1057.278313 | H140: 369331.612 | I140: 136
A141: 137 | B141: 12 | C141: 369331.612 | D141: =Endbetrag!$D$5*(1+Endbetrag!$D$6)^(B141-1) -> 4973.497234 | E141: 4973.497234 | F141: 364358.1148 | G141: =F141*Endbetrag!$F$7 -> 1046.035245 | H141: 365404.15 | I141: 137
A142: 138 | B142: 12 | C142: 365404.15 | D142: =Endbetrag!$D$5*(1+Endbetrag!$D$6)^(B142-1) -> 4973.497234 | E142: 4973.497234 | F142: 360430.6528 | G142: =F142*Endbetrag!$F$7 -> 1034.759899 | H142: 361465.4127 | I142: 138
A143: 139 | B143: 12 | C143: 361465.4127 | D143: =Endbetrag!$D$5*(1+Endbetrag!$D$6)^(B143-1) -> 4973.497234 | E143: 4973.497234 | F143: 356491.9155 | G143: =F143*Endbetrag!$F$7 -> 1023.452183 | H143: 357515.3677 | I143: 139
A144: 140 | B144: 12 | C144: 357515.3677 | D144: =Endbetrag!$D$5*(1+Endbetrag!$D$6)^(B144-1) -> 4973.497234 | E144: 4973.497234 | F144: 352541.8704 | G144: =F144*Endbetrag!$F$7 -> 1012.112004 | H144: 353553.9824 | I144: 140
A145: 141 | B145: 12 | C145: 353553.9824 | D145: =Endbetrag!$D$5*(1+Endbetrag!$D$6)^(B145-1) -> 4973.497234 | E145: 4973.497234 | F145: 348580.4852 | G145: =F145*Endbetrag!$F$7 -> 1000.739268 | H145: 349581.2245 | I145: 141
A146: 142 | B146: 12 | C146: 349581.2245 | D146: =Endbetrag!$D$5*(1+Endbetrag!$D$6)^(B146-1) -> 4973.497234 | E146: 4973.497234 | F146: 344607.7272 | G146: =F146*Endbetrag!$F$7 -> 989.3338827 | H146: 345597.0611 | I146: 142
A147: 143 | B147: 12 | C147: 345597.0611 | D147: =Endbetrag!$D$5*(1+Endbetrag!$D$6)^(B147-1) -> 4973.497234 | E147: 4973.497234 | F147: 340623.5639 | G147: =F147*Endbetrag!$F$7 -> 977.8957532 | H147: 341601.4596 | I147: 143
A148: 144 | B148: 13 | C148: 341601.4596 | D148: =Endbetrag!$D$5*(1+Endbetrag!$D$6)^(B148-1) -> 5072.967178 | E148: 5072.967178 | F148: 336528.4925 | G148: =F148*Endbetrag!$F$7 -> 966.1392179 | H148: 337494.6317 | I148: 144
A149: 145 | B149: 13 | C149: 337494.6317 | D149: =Endbetrag!$D$5*(1+Endbetrag!$D$6)^(B149-1) -> 5072.967178 | E149: 5072.967178 | F149: 332421.6645 | G149: =F149*Endbetrag!$F$7 -> 954.3489308 | H149: 333376.0134 | I149: 145
A150: 146 | B150: 13 | C150: 333376.0134 | D150: =Endbetrag!$D$5*(1+Endbetrag!$D$6)^(B150-1) -> 5072.967178 | E150: 5072.967178 | F150: 328303.0462 | G150: =F150*Endbetrag!$F$7 -> 942.5247949 | H150: 329245.571 | I150: 146
A151: 147 | B151: 13 | C151: 329245.571 | D151: =Endbetrag!$D$5*(1+Endbetrag!$D$6)^(B151-1) -> 5072.967178 | E151: 5072.967178 | F151: 324172.6039 | G151: =F151*Endbetrag!$F$7 -> 930.6667132 | H151: 325103.2706 | I151: 147
A152: 148 | B152: 13 | C152: 325103.2706 | D152: =Endbetrag!$D$5*(1+Endbetrag!$D$6)^(B152-1) -> 5072.967178 | E152: 5072.967178 | F152: 320030.3034 | G152: =F152*Endbetrag!$F$7 -> 918.7745881 | H152: 320949.078 | I152: 148
A153: 149 | B153: 13 | C153: 320949.078 | D153: =Endbetrag!$D$5*(1+Endbetrag!$D$6)^(B153-1) -> 5072.967178 | E153: 5072.967178 | F153: 315876.1108 | G153: =F153*Endbetrag!$F$7 -> 906.8483219 | H153: 316782.9591 | I153: 149
A154: 150 | B154: 13 | C154: 316782.9591 | D154: =Endbetrag!$D$5*(1+Endbetrag!$D$6)^(B154-1) -> 5072.967178 | E154: 5072.967178 | F154: 311709.9919 | G154: =F154*Endbetrag!$F$7 -> 894.8878166 | H154: 312604.8798 | I154: 150
A155: 151 | B155: 13 | C155: 312604.8798 | D155: =Endbetrag!$D$5*(1+Endbetrag!$D$6)^(B155-1) -> 5072.967178 | E155: 5072.967178 | F155: 307531.9126 | G155: =F155*Endbetrag!$F$7 -> 882.8929739 | H155: 308414.8056 | I155: 151
A156: 152 | B156: 13 | C156: 308414.8056 | D156: =Endbetrag!$D$5*(1+Endbetrag!$D$6)^(B156-1) -> 5072.967178 | E156: 5072.967178 | F156: 303341.8384 | G156: =F156*Endbetrag!$F$7 -> 870.8636953 | H156: 304212.7021 | I156: 152
A157: 153 | B157: 13 | C157: 304212.7021 | D157: =Endbetrag!$D$5*(1+Endbetrag!$D$6)^(B157-1) -> 5072.967178 | E157: 5072.967178 | F157: 299139.7349 | G157: =F157*Endbetrag!$F$7 -> 858.7998817 | H157: 299998.5348 | I157: 153
A158: 154 | B158: 13 | C158: 299998.5348 | D158: =Endbetrag!$D$5*(1+Endbetrag!$D$6)^(B158-1) -> 5072.967178 | E158: 5072.967178 | F158: 294925.5676 | G158: =F158*Endbetrag!$F$7 -> 846.7014343 | H158: 295772.269 | I158: 154
A159: 155 | B159: 13 | C159: 295772.269 | D159: =Endbetrag!$D$5*(1+Endbetrag!$D$6)^(B159-1) -> 5072.967178 | E159: 5072.967178 | F159: 290699.3019 | G159: =F159*Endbetrag!$F$7 -> 834.5682533 | H159: 291533.8701 | I159: 155
A160: 156 | B160: 14 | C160: 291533.8701 | D160: =Endbetrag!$D$5*(1+Endbetrag!$D$6)^(B160-1) -> 5174.426522 | E160: 5174.426522 | F160: 286359.4436 | G160: =F160*Endbetrag!$F$7 -> 822.1089598 | H160: 287181.5526 | I160: 156
A161: 157 | B161: 14 | C161: 287181.5526 | D161: =Endbetrag!$D$5*(1+Endbetrag!$D$6)^(B161-1) -> 5174.426522 | E161: 5174.426522 | F161: 282007.126 | G161: =F161*Endbetrag!$F$7 -> 809.6138969 | H161: 282816.7399 | I161: 157
A162: 158 | B162: 14 | C162: 282816.7399 | D162: =Endbetrag!$D$5*(1+Endbetrag!$D$6)^(B162-1) -> 5174.426522 | E162: 5174.426522 | F162: 277642.3134 | G162: =F162*Endbetrag!$F$7 -> 797.0829619 | H162: 278439.3964 | I162: 158
A163: 159 | B163: 14 | C163: 278439.3964 | D163: =Endbetrag!$D$5*(1+Endbetrag!$D$6)^(B163-1) -> 5174.426522 | E163: 5174.426522 | F163: 273264.9698 | G163: =F163*Endbetrag!$F$7 -> 784.5160519 | H163: 274049.4859 | I163: 159
A164: 160 | B164: 14 | C164: 274049.4859 | D164: =Endbetrag!$D$5*(1+Endbetrag!$D$6)^(B164-1) -> 5174.426522 | E164: 5174.426522 | F164: 268875.0594 | G164: =F164*Endbetrag!$F$7 -> 771.9130635 | H164: 269646.9724 | I164: 160
A165: 161 | B165: 14 | C165: 269646.9724 | D165: =Endbetrag!$D$5*(1+Endbetrag!$D$6)^(B165-1) -> 5174.426522 | E165: 5174.426522 | F165: 264472.5459 | G165: =F165*Endbetrag!$F$7 -> 759.2738933 | H165: 265231.8198 | I165: 161
A166: 162 | B166: 14 | C166: 265231.8198 | D166: =Endbetrag!$D$5*(1+Endbetrag!$D$6)^(B166-1) -> 5174.426522 | E166: 5174.426522 | F166: 260057.3933 | G166: =F166*Endbetrag!$F$7 -> 746.5984373 | H166: 260803.9917 | I166: 162
A167: 163 | B167: 14 | C167: 260803.9917 | D167: =Endbetrag!$D$5*(1+Endbetrag!$D$6)^(B167-1) -> 5174.426522 | E167: 5174.426522 | F167: 255629.5652 | G167: =F167*Endbetrag!$F$7 -> 733.8865913 | H167: 256363.4518 | I167: 163
A168: 164 | B168: 14 | C168: 256363.4518 | D168: =Endbetrag!$D$5*(1+Endbetrag!$D$6)^(B168-1) -> 5174.426522 | E168: 5174.426522 | F168: 251189.0253 | G168: =F168*Endbetrag!$F$7 -> 721.1382509 | H168: 251910.1635 | I168: 164
A169: 165 | B169: 14 | C169: 251910.1635 | D169: =Endbetrag!$D$5*(1+Endbetrag!$D$6)^(B169-1) -> 5174.426522 | E169: 5174.426522 | F169: 246735.737 | G169: =F169*Endbetrag!$F$7 -> 708.3533113 | H169: 247444.0903 | I169: 165
A170: 166 | B170: 14 | C170: 247444.0903 | D170: =Endbetrag!$D$5*(1+Endbetrag!$D$6)^(B170-1) -> 5174.426522 | E170: 5174.426522 | F170: 242269.6638 | G170: =F170*Endbetrag!$F$7 -> 695.5316674 | H170: 242965.1955 | I170: 166
A171: 167 | B171: 14 | C171: 242965.1955 | D171: =Endbetrag!$D$5*(1+Endbetrag!$D$6)^(B171-1) -> 5174.426522 | E171: 5174.426522 | F171: 237790.7689 | G171: =F171*Endbetrag!$F$7 -> 682.6732139 | H171: 238473.4422 | I171: 167
A172: 168 | B172: 15 | C172: 238473.4422 | D172: =Endbetrag!$D$5*(1+Endbetrag!$D$6)^(B172-1) -> 5277.915052 | E172: 5277.915052 | F172: 233195.5271 | G172: =F172*Endbetrag!$F$7 -> 669.48074 | H172: 233865.0078 | I172: 168
A173: 169 | B173: 15 | C173: 233865.0078 | D173: =Endbetrag!$D$5*(1+Endbetrag!$D$6)^(B173-1) -> 5277.915052 | E173: 5277.915052 | F173: 228587.0928 | G173: =F173*Endbetrag!$F$7 -> 656.2503919 | H173: 229243.3432 | I173: 169
A174: 170 | B174: 15 | C174: 229243.3432 | D174: =Endbetrag!$D$5*(1+Endbetrag!$D$6)^(B174-1) -> 5277.915052 | E174: 5277.915052 | F174: 223965.4281 | G174: =F174*Endbetrag!$F$7 -> 642.9820607 | H174: 224608.4102 | I174: 170
A175: 171 | B175: 15 | C175: 224608.4102 | D175: =Endbetrag!$D$5*(1+Endbetrag!$D$6)^(B175-1) -> 5277.915052 | E175: 5277.915052 | F175: 219330.4951 | G175: =F175*Endbetrag!$F$7 -> 629.6756375 | H175: 219960.1708 | I175: 171
A176: 172 | B176: 15 | C176: 219960.1708 | D176: =Endbetrag!$D$5*(1+Endbetrag!$D$6)^(B176-1) -> 5277.915052 | E176: 5277.915052 | F176: 214682.2557 | G176: =F176*Endbetrag!$F$7 -> 616.331013 | H176: 215298.5867 | I176: 172
A177: 173 | B177: 15 | C177: 215298.5867 | D177: =Endbetrag!$D$5*(1+Endbetrag!$D$6)^(B177-1) -> 5277.915052 | E177: 5277.915052 | F177: 210020.6717 | G177: =F177*Endbetrag!$F$7 -> 602.9480773 | H177: 210623.6198 | I177: 173
A178: 174 | B178: 15 | C178: 210623.6198 | D178: =Endbetrag!$D$5*(1+Endbetrag!$D$6)^(B178-1) -> 5277.915052 | E178: 5277.915052 | F178: 205345.7047 | G178: =F178*Endbetrag!$F$7 -> 589.5267206 | H178: 205935.2314 | I178: 174
A179: 175 | B179: 15 | C179: 205935.2314 | D179: =Endbetrag!$D$5*(1+Endbetrag!$D$6)^(B179-1) -> 5277.915052 | E179: 5277.915052 | F179: 200657.3164 | G179: =F179*Endbetrag!$F$7 -> 576.0668326 | H179: 201233.3832 | I179: 175
A180: 176 | B180: 15 | C180: 201233.3832 | D180: =Endbetrag!$D$5*(1+Endbetrag!$D$6)^(B180-1) -> 5277.915052 | E180: 5277.915052 | F180: 195955.4682 | G180: =F180*Endbetrag!$F$7 -> 562.5683025 | H180: 196518.0365 | I180: 176
A181: 177 | B181: 15 | C181: 196518.0365 | D181: =Endbetrag!$D$5*(1+Endbetrag!$D$6)^(B181-1) -> 5277.915052 | E181: 5277.915052 | F181: 191240.1214 | G181: =F181*Endbetrag!$F$7 -> 549.0310196 | H181: 191789.1524 | I181: 177
A182: 178 | B182: 15 | C182: 191789.1524 | D182: =Endbetrag!$D$5*(1+Endbetrag!$D$6)^(B182-1) -> 5277.915052 | E182: 5277.915052 | F182: 186511.2374 | G182: =F182*Endbetrag!$F$7 -> 535.4548725 | H182: 187046.6922 | I182: 178
A183: 179 | B183: 15 | C183: 187046.6922 | D183: =Endbetrag!$D$5*(1+Endbetrag!$D$6)^(B183-1) -> 5277.915052 | E183: 5277.915052 | F183: 181768.7772 | G183: =F183*Endbetrag!$F$7 -> 521.8397496 | H183: 182290.6169 | I183: 179
A184: 180 | B184: 16 | C184: 182290.6169 | D184: =Endbetrag!$D$5*(1+Endbetrag!$D$6)^(B184-1) -> 5383.473353 | E184: 5383.473353 | F184: 176907.1436 | G184: =F184*Endbetrag!$F$7 -> 507.8824919 | H184: 177415.0261 | I184: 180
A185: 181 | B185: 16 | C185: 177415.0261 | D185: =Endbetrag!$D$5*(1+Endbetrag!$D$6)^(B185-1) -> 5383.473353 | E185: 5383.473353 | F185: 172031.5527 | G185: =F185*Endbetrag!$F$7 -> 493.8851644 | H185: 172525.4379 | I185: 181
A186: 182 | B186: 16 | C186: 172525.4379 | D186: =Endbetrag!$D$5*(1+Endbetrag!$D$6)^(B186-1) -> 5383.473353 | E186: 5383.473353 | F186: 167141.9645 | G186: =F186*Endbetrag!$F$7 -> 479.8476519 | H186: 167621.8122 | I186: 182
A187: 183 | B187: 16 | C187: 167621.8122 | D187: =Endbetrag!$D$5*(1+Endbetrag!$D$6)^(B187-1) -> 5383.473353 | E187: 5383.473353 | F187: 162238.3388 | G187: =F187*Endbetrag!$F$7 -> 465.7698392 | H187: 162704.1087 | I187: 183
A188: 184 | B188: 16 | C188: 162704.1087 | D188: =Endbetrag!$D$5*(1+Endbetrag!$D$6)^(B188-1) -> 5383.473353 | E188: 5383.473353 | F188: 157320.6353 | G188: =F188*Endbetrag!$F$7 -> 451.6516104 | H188: 157772.2869 | I188: 184
A189: 185 | B189: 16 | C189: 157772.2869 | D189: =Endbetrag!$D$5*(1+Endbetrag!$D$6)^(B189-1) -> 5383.473353 | E189: 5383.473353 | F189: 152388.8136 | G189: =F189*Endbetrag!$F$7 -> 437.4928497 | H189: 152826.3064 | I189: 185
A190: 186 | B190: 16 | C190: 152826.3064 | D190: =Endbetrag!$D$5*(1+Endbetrag!$D$6)^(B190-1) -> 5383.473353 | E190: 5383.473353 | F190: 147442.8331 | G190: =F190*Endbetrag!$F$7 -> 423.2934406 | H190: 147866.1265 | I190: 186
A191: 187 | B191: 16 | C191: 147866.1265 | D191: =Endbetrag!$D$5*(1+Endbetrag!$D$6)^(B191-1) -> 5383.473353 | E191: 5383.473353 | F191: 142482.6532 | G191: =F191*Endbetrag!$F$7 -> 409.0532665 | H191: 142891.7064 | I191: 187
A192: 188 | B192: 16 | C192: 142891.7064 | D192: =Endbetrag!$D$5*(1+Endbetrag!$D$6)^(B192-1) -> 5383.473353 | E192: 5383.473353 | F192: 137508.2331 | G192: =F192*Endbetrag!$F$7 -> 394.7722102 | H192: 137903.0053 | I192: 188
A193: 189 | B193: 16 | C193: 137903.0053 | D193: =Endbetrag!$D$5*(1+Endbetrag!$D$6)^(B193-1) -> 5383.473353 | E193: 5383.473353 | F193: 132519.5319 | G193: =F193*Endbetrag!$F$7 -> 380.4501545 | H193: 132899.9821 | I193: 189
A194: 190 | B194: 16 | C194: 132899.9821 | D194: =Endbetrag!$D$5*(1+Endbetrag!$D$6)^(B194-1) -> 5383.473353 | E194: 5383.473353 | F194: 127516.5087 | G194: =F194*Endbetrag!$F$7 -> 366.0869816 | H194: 127882.5957 | I194: 190
A195: 191 | B195: 16 | C195: 127882.5957 | D195: =Endbetrag!$D$5*(1+Endbetrag!$D$6)^(B195-1) -> 5383.473353 | E195: 5383.473353 | F195: 122499.1224 | G195: =F195*Endbetrag!$F$7 -> 351.6825735 | H195: 122850.8049 | I195: 191
A196: 192 | B196: =INT(A196/12)+1 -> 17 | C196: 122850.8049 | D196: =Endbetrag!$D$5*(1+Endbetrag!$D$6)^(B196-1) -> 5491.14282 | E196: =MIN(D196,C196) -> 5491.14282 | F196: =C196-E196 -> 117359.6621 | G196: =F196*Endbetrag!$F$7 -> 336.9277036 | H196: =MAX(0,F196+G196) -> 117696.5898 | I196: =IF(H196>0,A196,"") -> 192
A197: 193 | B197: 17 | C197: =H196 -> 117696.5898 | D197: =Endbetrag!$D$5*(1+Endbetrag!$D$6)^(B197-1) -> 5491.14282 | E197: 5491.14282 | F197: 112205.447 | G197: =F197*Endbetrag!$F$7 -> 322.1304741 | H197: 112527.5775 | I197: 193
A198: 194 | B198: 17 | C198: 112527.5775 | D198: =Endbetrag!$D$5*(1+Endbetrag!$D$6)^(B198-1) -> 5491.14282 | E198: 5491.14282 | F198: 107036.4347 | G198: =F198*Endbetrag!$F$7 -> 307.2907631 | H198: 107343.7254 | I198: 194
A199: 195 | B199: 17 | C199: 107343.7254 | D199: =Endbetrag!$D$5*(1+Endbetrag!$D$6)^(B199-1) -> 5491.14282 | E199: 5491.14282 | F199: 101852.5826 | G199: =F199*Endbetrag!$F$7 -> 292.4084489 | H199: 102144.991 | I199: 195
A200: 196 | B200: 17 | C200: 102144.991 | D200: =Endbetrag!$D$5*(1+Endbetrag!$D$6)^(B200-1) -> 5491.14282 | E200: 5491.14282 | F200: 96653.84822 | G200: =F200*Endbetrag!$F$7 -> 277.4834091 | H200: 96931.33163 | I200: 196
A201: 197 | B201: 17 | C201: 96931.33163 | D201: =Endbetrag!$D$5*(1+Endbetrag!$D$6)^(B201-1) -> 5491.14282 | E201: 5491.14282 | F201: 91440.18881 | G201: =F201*Endbetrag!$F$7 -> 262.5155209 | H201: 91702.70433 | I201: 197
... 1003 more rows

Sheet EB-Jahre (hidden)
A1: Endwert: Jahreswerte (aus Monatssimulation abgeleitet) | L1: Dynamische Rohdaten für Grafik
A3: ="Nach dem " &EB_Zeitr &" jährigen Auszahlungszeitraum bleiben noch " &TEXT(EB_E_Kap,"#.##0") &" EUR" -> Nach dem 15 jährigen Auszahlungszeitraum bleiben noch 182.291 EUR | L3: Jahr | M3: Kap. rel. | N3: Endwert
A4: Jahr | B4: Kapital Jahresende | C4: Kapital relativ (Start=1) | D4: Jahresentnahme (nominal, infl.) | E4: Beschr. | K4: Namen => | L4: EB_Jahre | M4: EB_Kap_rel | N4: EB_Wert
A5: 0 | B5: =Endbetrag!$D$4 -> 750000 | C5: =IF(Endbetrag!$D$4=0,0,B5/Endbetrag!$D$4) -> 1 | D5: =12*Endbetrag!$D$5 -> 48000 | E5: =IF(A5=1,$B$5,IF(A5=EB_Zeitr,B5,0)) -> 0 | L5: =_xlfn.SEQUENCE(EB_Zeitr) -> 1 | M5: =_xlfn._xlws.FILTER($C$6:$C$105,NOT(ISERROR($C$6:$C$105))) -> 0.9697930435 | N5: =_xlfn._xlws.FILTER($E$6:$E$105,NOT(ISERROR($C$6:$C$105))) -> 750000
A6: 1 | B6: =IF(A6>EB_Zeitr,0,IFERROR(INDEX('EB-Monate'!$H$4:$H$1203, A6*12),0)) -> 727344.7827 | C6: =IF(A6>EB_Zeitr,NA(),IF(Endbetrag!$D$4=0,0,B6/Endbetrag!$D$4)) -> 0.9697930435 | D6: =IF(A6>EB_Zeitr,0,12*Endbetrag!$D$5*(1+Endbetrag!$D$6)^(A6-1)) -> 48000 | E6: 750000 | L6: 2 | M6: 0.9372247045 | N6: 0
A7: 2 | B7: =IF(A7>EB_Zeitr,0,IFERROR(INDEX('EB-Monate'!$H$4:$H$1203, A7*12),0)) -> 702918.5284 | C7: =IF(A7>EB_Zeitr,NA(),IF(Endbetrag!$D$4=0,0,B7/Endbetrag!$D$4)) -> 0.9372247045 | D7: =IF(A7>EB_Zeitr,0,12*Endbetrag!$D$5*(1+Endbetrag!$D$6)^(A7-1)) -> 48960 | E7: 0 | L7: 3 | M7: 0.9021862516 | N7: 0
A8: 3 | B8: =IF(A8>EB_Zeitr,0,IFERROR(INDEX('EB-Monate'!$H$4:$H$1203, A8*12),0)) -> 676639.6887 | C8: =IF(A8>EB_Zeitr,NA(),IF(Endbetrag!$D$4=0,0,B8/Endbetrag!$D$4)) -> 0.9021862516 | D8: =IF(A8>EB_Zeitr,0,12*Endbetrag!$D$5*(1+Endbetrag!$D$6)^(A8-1)) -> 49939.2 | E8: 0 | L8: 4 | M8: 0.8645646266 | N8: 0
A9: 4 | B9: =IF(A9>EB_Zeitr,0,IFERROR(INDEX('EB-Monate'!$H$4:$H$1203, A9*12),0)) -> 648423.47 | C9: =IF(A9>EB_Zeitr,NA(),IF(Endbetrag!$D$4=0,0,B9/Endbetrag!$D$4)) -> 0.8645646266 | D9: =IF(A9>EB_Zeitr,0,12*Endbetrag!$D$5*(1+Endbetrag!$D$6)^(A9-1)) -> 50937.984 | E9: 0 | L9: 5 | M9: 0.8242422818 | N9: 0
A10: 5 | B10: =IF(A10>EB_Zeitr,0,IFERROR(INDEX('EB-Monate'!$H$4:$H$1203, A10*12),0)) -> 618181.7114 | C10: =IF(A10>EB_Zeitr,NA(),IF(Endbetrag!$D$4=0,0,B10/Endbetrag!$D$4)) -> 0.8242422818 | D10: =IF(A10>EB_Zeitr,0,12*Endbetrag!$D$5*(1+Endbetrag!$D$6)^(A10-1)) -> 51956.74368 | E10: 0 | L10: 6 | M10: 0.7810970128 | N10: 0
A11: 6 | B11: =IF(A11>EB_Zeitr,0,IFERROR(INDEX('EB-Monate'!$H$4:$H$1203, A11*12),0)) -> 585822.7596 | C11: =IF(A11>EB_Zeitr,NA(),IF(Endbetrag!$D$4=0,0,B11/Endbetrag!$D$4)) -> 0.7810970128 | D11: =IF(A11>EB_Zeitr,0,12*Endbetrag!$D$5*(1+Endbetrag!$D$6)^(A11-1)) -> 52995.87855 | E11: 0 | L11: 7 | M11: 0.7350017844 | N11: 0
A12: 7 | B12: =IF(A12>EB_Zeitr,0,IFERROR(INDEX('EB-Monate'!$H$4:$H$1203, A12*12),0)) -> 551251.3383 | C12: =IF(A12>EB_Zeitr,NA(),IF(Endbetrag!$D$4=0,0,B12/Endbetrag!$D$4)) -> 0.7350017844 | D12: =IF(A12>EB_Zeitr,0,12*Endbetrag!$D$5*(1+Endbetrag!$D$6)^(A12-1)) -> 54055.79612 | E12: 0 | L12: 8 | M12: 0.6858245506 | N12: 0
A13: 8 | B13: =IF(A13>EB_Zeitr,0,IFERROR(INDEX('EB-Monate'!$H$4:$H$1203, A13*12),0)) -> 514368.4129 | C13: =IF(A13>EB_Zeitr,NA(),IF(Endbetrag!$D$4=0,0,B13/Endbetrag!$D$4)) -> 0.6858245506 | D13: =IF(A13>EB_Zeitr,0,12*Endbetrag!$D$5*(1+Endbetrag!$D$6)^(A13-1)) -> 55136.91205 | E13: 0 | L13: 9 | M13: 0.6334280676 | N13: 0
A14: 9 | B14: =IF(A14>EB_Zeitr,0,IFERROR(INDEX('EB-Monate'!$H$4:$H$1203, A14*12),0)) -> 475071.0507 | C14: =IF(A14>EB_Zeitr,NA(),IF(Endbetrag!$D$4=0,0,B14/Endbetrag!$D$4)) -> 0.6334280676 | D14: =IF(A14>EB_Zeitr,0,12*Endbetrag!$D$5*(1+Endbetrag!$D$6)^(A14-1)) -> 56239.65029 | E14: 0 | L14: 10 | M14: 0.5776697009 | N14: 0
A15: 10 | B15: =IF(A15>EB_Zeitr,0,IFERROR(INDEX('EB-Monate'!$H$4:$H$1203, A15*12),0)) -> 433252.2757 | C15: =IF(A15>EB_Zeitr,NA(),IF(Endbetrag!$D$4=0,0,B15/Endbetrag!$D$4)) -> 0.5776697009 | D15: =IF(A15>EB_Zeitr,0,12*Endbetrag!$D$5*(1+Endbetrag!$D$6)^(A15-1)) -> 57364.44329 | E15: 0 | L15: 11 | M15: 0.5184012244 | N15: 0
A16: 11 | B16: =IF(A16>EB_Zeitr,0,IFERROR(INDEX('EB-Monate'!$H$4:$H$1203, A16*12),0)) -> 388800.9183 | C16: =IF(A16>EB_Zeitr,NA(),IF(Endbetrag!$D$4=0,0,B16/Endbetrag!$D$4)) -> 0.5184012244 | D16: =IF(A16>EB_Zeitr,0,12*Endbetrag!$D$5*(1+Endbetrag!$D$6)^(A16-1)) -> 58511.73216 | E16: 0 | L16: 12 | M16: 0.4554686128 | N16: 0
A17: 12 | B17: =IF(A17>EB_Zeitr,0,IFERROR(INDEX('EB-Monate'!$H$4:$H$1203, A17*12),0)) -> 341601.4596 | C17: =IF(A17>EB_Zeitr,NA(),IF(Endbetrag!$D$4=0,0,B17/Endbetrag!$D$4)) -> 0.4554686128 | D17: =IF(A17>EB_Zeitr,0,12*Endbetrag!$D$5*(1+Endbetrag!$D$6)^(A17-1)) -> 59681.9668 | E17: 0 | L17: 13 | M17: 0.3887118268 | N17: 0
A18: 13 | B18: =IF(A18>EB_Zeitr,0,IFERROR(INDEX('EB-Monate'!$H$4:$H$1203, A18*12),0)) -> 291533.8701 | C18: =IF(A18>EB_Zeitr,NA(),IF(Endbetrag!$D$4=0,0,B18/Endbetrag!$D$4)) -> 0.3887118268 | D18: =IF(A18>EB_Zeitr,0,12*Endbetrag!$D$5*(1+Endbetrag!$D$6)^(A18-1)) -> 60875.60614 | E18: 0 | L18: 14 | M18: 0.3179645895 | N18: 0
A19: 14 | B19: =IF(A19>EB_Zeitr,0,IFERROR(INDEX('EB-Monate'!$H$4:$H$1203, A19*12),0)) -> 238473.4422 | C19: =IF(A19>EB_Zeitr,NA(),IF(Endbetrag!$D$4=0,0,B19/Endbetrag!$D$4)) -> 0.3179645895 | D19: =IF(A19>EB_Zeitr,0,12*Endbetrag!$D$5*(1+Endbetrag!$D$6)^(A19-1)) -> 62093.11826 | E19: 0 | L19: 15 | M19: 0.2430541559 | N19: 182290.6169
A20: 15 | B20: =IF(A20>EB_Zeitr,0,IFERROR(INDEX('EB-Monate'!$H$4:$H$1203, A20*12),0)) -> 182290.6169 | C20: =IF(A20>EB_Zeitr,NA(),IF(Endbetrag!$D$4=0,0,B20/Endbetrag!$D$4)) -> 0.2430541559 | D20: =IF(A20>EB_Zeitr,0,12*Endbetrag!$D$5*(1+Endbetrag!$D$6)^(A20-1)) -> 63334.98063 | E20: 182290.6169
A21: 16 | B21: =IF(A21>EB_Zeitr,0,IFERROR(INDEX('EB-Monate'!$H$4:$H$1203, A21*12),0)) -> 0 | C21: =IF(A21>EB_Zeitr,NA(),IF(Endbetrag!$D$4=0,0,B21/Endbetrag!$D$4)) ->  | D21: =IF(A21>EB_Zeitr,0,12*Endbetrag!$D$5*(1+Endbetrag!$D$6)^(A21-1)) -> 0 | E21: 0
A22: 17 | B22: =IF(A22>EB_Zeitr,0,IFERROR(INDEX('EB-Monate'!$H$4:$H$1203, A22*12),0)) -> 0 | C22: =IF(A22>EB_Zeitr,NA(),IF(Endbetrag!$D$4=0,0,B22/Endbetrag!$D$4)) ->  | D22: =IF(A22>EB_Zeitr,0,12*Endbetrag!$D$5*(1+Endbetrag!$D$6)^(A22-1)) -> 0 | E22: 0
A23: 18 | B23: =IF(A23>EB_Zeitr,0,IFERROR(INDEX('EB-Monate'!$H$4:$H$1203, A23*12),0)) -> 0 | C23: =IF(A23>EB_Zeitr,NA(),IF(Endbetrag!$D$4=0,0,B23/Endbetrag!$D$4)) ->  | D23: =IF(A23>EB_Zeitr,0,12*Endbetrag!$D$5*(1+Endbetrag!$D$6)^(A23-1)) -> 0 | E23: 0
A24: 19 | B24: =IF(A24>EB_Zeitr,0,IFERROR(INDEX('EB-Monate'!$H$4:$H$1203, A24*12),0)) -> 0 | C24: =IF(A24>EB_Zeitr,NA(),IF(Endbetrag!$D$4=0,0,B24/Endbetrag!$D$4)) ->  | D24: =IF(A24>EB_Zeitr,0,12*Endbetrag!$D$5*(1+Endbetrag!$D$6)^(A24-1)) -> 0 | E24: 0
A25: 20 | B25: =IF(A25>EB_Zeitr,0,IFERROR(INDEX('EB-Monate'!$H$4:$H$1203, A25*12),0)) -> 0 | C25: =IF(A25>EB_Zeitr,NA(),IF(Endbetrag!$D$4=0,0,B25/Endbetrag!$D$4)) ->  | D25: =IF(A25>EB_Zeitr,0,12*Endbetrag!$D$5*(1+Endbetrag!$D$6)^(A25-1)) -> 0 | E25: 0
A26: 21 | B26: =IF(A26>EB_Zeitr,0,IFERROR(INDEX('EB-Monate'!$H$4:$H$1203, A26*12),0)) -> 0 | C26: =IF(A26>EB_Zeitr,NA(),IF(Endbetrag!$D$4=0,0,B26/Endbetrag!$D$4)) ->  | D26: =IF(A26>EB_Zeitr,0,12*Endbetrag!$D$5*(1+Endbetrag!$D$6)^(A26-1)) -> 0 | E26: 0
A27: 22 | B27: =IF(A27>EB_Zeitr,0,IFERROR(INDEX('EB-Monate'!$H$4:$H$1203, A27*12),0)) -> 0 | C27: =IF(A27>EB_Zeitr,NA(),IF(Endbetrag!$D$4=0,0,B27/Endbetrag!$D$4)) ->  | D27: =IF(A27>EB_Zeitr,0,12*Endbetrag!$D$5*(1+Endbetrag!$D$6)^(A27-1)) -> 0 | E27: 0
A28: 23 | B28: =IF(A28>EB_Zeitr,0,IFERROR(INDEX('EB-Monate'!$H$4:$H$1203, A28*12),0)) -> 0 | C28: =IF(A28>EB_Zeitr,NA(),IF(Endbetrag!$D$4=0,0,B28/Endbetrag!$D$4)) ->  | D28: =IF(A28>EB_Zeitr,0,12*Endbetrag!$D$5*(1+Endbetrag!$D$6)^(A28-1)) -> 0 | E28: 0
A29: 24 | B29: =IF(A29>EB_Zeitr,0,IFERROR(INDEX('EB-Monate'!$H$4:$H$1203, A29*12),0)) -> 0 | C29: =IF(A29>EB_Zeitr,NA(),IF(Endbetrag!$D$4=0,0,B29/Endbetrag!$D$4)) ->  | D29: =IF(A29>EB_Zeitr,0,12*Endbetrag!$D$5*(1+Endbetrag!$D$6)^(A29-1)) -> 0 | E29: 0
A30: 25 | B30: =IF(A30>EB_Zeitr,0,IFERROR(INDEX('EB-Monate'!$H$4:$H$1203, A30*12),0)) -> 0 | C30: =IF(A30>EB_Zeitr,NA(),IF(Endbetrag!$D$4=0,0,B30/Endbetrag!$D$4)) ->  | D30: =IF(A30>EB_Zeitr,0,12*Endbetrag!$D$5*(1+Endbetrag!$D$6)^(A30-1)) -> 0 | E30: 0
A31: 26 | B31: =IF(A31>EB_Zeitr,0,IFERROR(INDEX('EB-Monate'!$H$4:$H$1203, A31*12),0)) -> 0 | C31: =IF(A31>EB_Zeitr,NA(),IF(Endbetrag!$D$4=0,0,B31/Endbetrag!$D$4)) ->  | D31: =IF(A31>EB_Zeitr,0,12*Endbetrag!$D$5*(1+Endbetrag!$D$6)^(A31-1)) -> 0 | E31: 0
A32: 27 | B32: =IF(A32>EB_Zeitr,0,IFERROR(INDEX('EB-Monate'!$H$4:$H$1203, A32*12),0)) -> 0 | C32: =IF(A32>EB_Zeitr,NA(),IF(Endbetrag!$D$4=0,0,B32/Endbetrag!$D$4)) ->  | D32: =IF(A32>EB_Zeitr,0,12*Endbetrag!$D$5*(1+Endbetrag!$D$6)^(A32-1)) -> 0 | E32: 0
A33: 28 | B33: =IF(A33>EB_Zeitr,0,IFERROR(INDEX('EB-Monate'!$H$4:$H$1203, A33*12),0)) -> 0 | C33: =IF(A33>EB_Zeitr,NA(),IF(Endbetrag!$D$4=0,0,B33/Endbetrag!$D$4)) ->  | D33: =IF(A33>EB_Zeitr,0,12*Endbetrag!$D$5*(1+Endbetrag!$D$6)^(A33-1)) -> 0 | E33: 0
A34: 29 | B34: =IF(A34>EB_Zeitr,0,IFERROR(INDEX('EB-Monate'!$H$4:$H$1203, A34*12),0)) -> 0 | C34: =IF(A34>EB_Zeitr,NA(),IF(Endbetrag!$D$4=0,0,B34/Endbetrag!$D$4)) ->  | D34: =IF(A34>EB_Zeitr,0,12*Endbetrag!$D$5*(1+Endbetrag!$D$6)^(A34-1)) -> 0 | E34: 0
A35: 30 | B35: =IF(A35>EB_Zeitr,0,IFERROR(INDEX('EB-Monate'!$H$4:$H$1203, A35*12),0)) -> 0 | C35: =IF(A35>EB_Zeitr,NA(),IF(Endbetrag!$D$4=0,0,B35/Endbetrag!$D$4)) ->  | D35: =IF(A35>EB_Zeitr,0,12*Endbetrag!$D$5*(1+Endbetrag!$D$6)^(A35-1)) -> 0 | E35: 0
A36: 31 | B36: =IF(A36>EB_Zeitr,0,IFERROR(INDEX('EB-Monate'!$H$4:$H$1203, A36*12),0)) -> 0 | C36: =IF(A36>EB_Zeitr,NA(),IF(Endbetrag!$D$4=0,0,B36/Endbetrag!$D$4)) ->  | D36: =IF(A36>EB_Zeitr,0,12*Endbetrag!$D$5*(1+Endbetrag!$D$6)^(A36-1)) -> 0 | E36: 0
A37: 32 | B37: =IF(A37>EB_Zeitr,0,IFERROR(INDEX('EB-Monate'!$H$4:$H$1203, A37*12),0)) -> 0 | C37: =IF(A37>EB_Zeitr,NA(),IF(Endbetrag!$D$4=0,0,B37/Endbetrag!$D$4)) ->  | D37: =IF(A37>EB_Zeitr,0,12*Endbetrag!$D$5*(1+Endbetrag!$D$6)^(A37-1)) -> 0 | E37: 0
A38: 33 | B38: =IF(A38>EB_Zeitr,0,IFERROR(INDEX('EB-Monate'!$H$4:$H$1203, A38*12),0)) -> 0 | C38: =IF(A38>EB_Zeitr,NA(),IF(Endbetrag!$D$4=0,0,B38/Endbetrag!$D$4)) ->  | D38: =IF(A38>EB_Zeitr,0,12*Endbetrag!$D$5*(1+Endbetrag!$D$6)^(A38-1)) -> 0 | E38: =IF(A38=1,$B$5,IF(A38=EB_Zeitr,B38,0)) -> 0
A39: 34 | B39: =IF(A39>EB_Zeitr,0,IFERROR(INDEX('EB-Monate'!$H$4:$H$1203, A39*12),0)) -> 0 | C39: =IF(A39>EB_Zeitr,NA(),IF(Endbetrag!$D$4=0,0,B39/Endbetrag!$D$4)) ->  | D39: =IF(A39>EB_Zeitr,0,12*Endbetrag!$D$5*(1+Endbetrag!$D$6)^(A39-1)) -> 0 | E39: 0
A40: 35 | B40: =IF(A40>EB_Zeitr,0,IFERROR(INDEX('EB-Monate'!$H$4:$H$1203, A40*12),0)) -> 0 | C40: =IF(A40>EB_Zeitr,NA(),IF(Endbetrag!$D$4=0,0,B40/Endbetrag!$D$4)) ->  | D40: =IF(A40>EB_Zeitr,0,12*Endbetrag!$D$5*(1+Endbetrag!$D$6)^(A40-1)) -> 0 | E40: 0
A41: 36 | B41: =IF(A41>EB_Zeitr,0,IFERROR(INDEX('EB-Monate'!$H$4:$H$1203, A41*12),0)) -> 0 | C41: =IF(A41>EB_Zeitr,NA(),IF(Endbetrag!$D$4=0,0,B41/Endbetrag!$D$4)) ->  | D41: =IF(A41>EB_Zeitr,0,12*Endbetrag!$D$5*(1+Endbetrag!$D$6)^(A41-1)) -> 0 | E41: 0
A42: 37 | B42: =IF(A42>EB_Zeitr,0,IFERROR(INDEX('EB-Monate'!$H$4:$H$1203, A42*12),0)) -> 0 | C42: =IF(A42>EB_Zeitr,NA(),IF(Endbetrag!$D$4=0,0,B42/Endbetrag!$D$4)) ->  | D42: =IF(A42>EB_Zeitr,0,12*Endbetrag!$D$5*(1+Endbetrag!$D$6)^(A42-1)) -> 0 | E42: 0
A43: 38 | B43: =IF(A43>EB_Zeitr,0,IFERROR(INDEX('EB-Monate'!$H$4:$H$1203, A43*12),0)) -> 0 | C43: =IF(A43>EB_Zeitr,NA(),IF(Endbetrag!$D$4=0,0,B43/Endbetrag!$D$4)) ->  | D43: =IF(A43>EB_Zeitr,0,12*Endbetrag!$D$5*(1+Endbetrag!$D$6)^(A43-1)) -> 0 | E43: 0
A44: 39 | B44: =IF(A44>EB_Zeitr,0,IFERROR(INDEX('EB-Monate'!$H$4:$H$1203, A44*12),0)) -> 0 | C44: =IF(A44>EB_Zeitr,NA(),IF(Endbetrag!$D$4=0,0,B44/Endbetrag!$D$4)) ->  | D44: =IF(A44>EB_Zeitr,0,12*Endbetrag!$D$5*(1+Endbetrag!$D$6)^(A44-1)) -> 0 | E44: 0
A45: 40 | B45: =IF(A45>EB_Zeitr,0,IFERROR(INDEX('EB-Monate'!$H$4:$H$1203, A45*12),0)) -> 0 | C45: =IF(A45>EB_Zeitr,NA(),IF(Endbetrag!$D$4=0,0,B45/Endbetrag!$D$4)) ->  | D45: =IF(A45>EB_Zeitr,0,12*Endbetrag!$D$5*(1+Endbetrag!$D$6)^(A45-1)) -> 0 | E45: 0
A46: 41 | B46: =IF(A46>EB_Zeitr,0,IFERROR(INDEX('EB-Monate'!$H$4:$H$1203, A46*12),0)) -> 0 | C46: =IF(A46>EB_Zeitr,NA(),IF(Endbetrag!$D$4=0,0,B46/Endbetrag!$D$4)) ->  | D46: =IF(A46>EB_Zeitr,0,12*Endbetrag!$D$5*(1+Endbetrag!$D$6)^(A46-1)) -> 0 | E46: 0
A47: 42 | B47: =IF(A47>EB_Zeitr,0,IFERROR(INDEX('EB-Monate'!$H$4:$H$1203, A47*12),0)) -> 0 | C47: =IF(A47>EB_Zeitr,NA(),IF(Endbetrag!$D$4=0,0,B47/Endbetrag!$D$4)) ->  | D47: =IF(A47>EB_Zeitr,0,12*Endbetrag!$D$5*(1+Endbetrag!$D$6)^(A47-1)) -> 0 | E47: 0
A48: 43 | B48: =IF(A48>EB_Zeitr,0,IFERROR(INDEX('EB-Monate'!$H$4:$H$1203, A48*12),0)) -> 0 | C48: =IF(A48>EB_Zeitr,NA(),IF(Endbetrag!$D$4=0,0,B48/Endbetrag!$D$4)) ->  | D48: =IF(A48>EB_Zeitr,0,12*Endbetrag!$D$5*(1+Endbetrag!$D$6)^(A48-1)) -> 0 | E48: 0
A49: 44 | B49: =IF(A49>EB_Zeitr,0,IFERROR(INDEX('EB-Monate'!$H$4:$H$1203, A49*12),0)) -> 0 | C49: =IF(A49>EB_Zeitr,NA(),IF(Endbetrag!$D$4=0,0,B49/Endbetrag!$D$4)) ->  | D49: =IF(A49>EB_Zeitr,0,12*Endbetrag!$D$5*(1+Endbetrag!$D$6)^(A49-1)) -> 0 | E49: 0
A50: 45 | B50: =IF(A50>EB_Zeitr,0,IFERROR(INDEX('EB-Monate'!$H$4:$H$1203, A50*12),0)) -> 0 | C50: =IF(A50>EB_Zeitr,NA(),IF(Endbetrag!$D$4=0,0,B50/Endbetrag!$D$4)) ->  | D50: =IF(A50>EB_Zeitr,0,12*Endbetrag!$D$5*(1+Endbetrag!$D$6)^(A50-1)) -> 0 | E50: 0
A51: 46 | B51: =IF(A51>EB_Zeitr,0,IFERROR(INDEX('EB-Monate'!$H$4:$H$1203, A51*12),0)) -> 0 | C51: =IF(A51>EB_Zeitr,NA(),IF(Endbetrag!$D$4=0,0,B51/Endbetrag!$D$4)) ->  | D51: =IF(A51>EB_Zeitr,0,12*Endbetrag!$D$5*(1+Endbetrag!$D$6)^(A51-1)) -> 0 | E51: 0
A52: 47 | B52: =IF(A52>EB_Zeitr,0,IFERROR(INDEX('EB-Monate'!$H$4:$H$1203, A52*12),0)) -> 0 | C52: =IF(A52>EB_Zeitr,NA(),IF(Endbetrag!$D$4=0,0,B52/Endbetrag!$D$4)) ->  | D52: =IF(A52>EB_Zeitr,0,12*Endbetrag!$D$5*(1+Endbetrag!$D$6)^(A52-1)) -> 0 | E52: 0
A53: 48 | B53: =IF(A53>EB_Zeitr,0,IFERROR(INDEX('EB-Monate'!$H$4:$H$1203, A53*12),0)) -> 0 | C53: =IF(A53>EB_Zeitr,NA(),IF(Endbetrag!$D$4=0,0,B53/Endbetrag!$D$4)) ->  | D53: =IF(A53>EB_Zeitr,0,12*Endbetrag!$D$5*(1+Endbetrag!$D$6)^(A53-1)) -> 0 | E53: 0
A54: 49 | B54: =IF(A54>EB_Zeitr,0,IFERROR(INDEX('EB-Monate'!$H$4:$H$1203, A54*12),0)) -> 0 | C54: =IF(A54>EB_Zeitr,NA(),IF(Endbetrag!$D$4=0,0,B54/Endbetrag!$D$4)) ->  | D54: =IF(A54>EB_Zeitr,0,12*Endbetrag!$D$5*(1+Endbetrag!$D$6)^(A54-1)) -> 0 | E54: 0
A55: 50 | B55: =IF(A55>EB_Zeitr,0,IFERROR(INDEX('EB-Monate'!$H$4:$H$1203, A55*12),0)) -> 0 | C55: =IF(A55>EB_Zeitr,NA(),IF(Endbetrag!$D$4=0,0,B55/Endbetrag!$D$4)) ->  | D55: =IF(A55>EB_Zeitr,0,12*Endbetrag!$D$5*(1+Endbetrag!$D$6)^(A55-1)) -> 0 | E55: 0
A56: 51 | B56: =IF(A56>EB_Zeitr,0,IFERROR(INDEX('EB-Monate'!$H$4:$H$1203, A56*12),0)) -> 0 | C56: =IF(A56>EB_Zeitr,NA(),IF(Endbetrag!$D$4=0,0,B56/Endbetrag!$D$4)) ->  | D56: =IF(A56>EB_Zeitr,0,12*Endbetrag!$D$5*(1+Endbetrag!$D$6)^(A56-1)) -> 0 | E56: 0
A57: 52 | B57: =IF(A57>EB_Zeitr,0,IFERROR(INDEX('EB-Monate'!$H$4:$H$1203, A57*12),0)) -> 0 | C57: =IF(A57>EB_Zeitr,NA(),IF(Endbetrag!$D$4=0,0,B57/Endbetrag!$D$4)) ->  | D57: =IF(A57>EB_Zeitr,0,12*Endbetrag!$D$5*(1+Endbetrag!$D$6)^(A57-1)) -> 0 | E57: 0
A58: 53 | B58: =IF(A58>EB_Zeitr,0,IFERROR(INDEX('EB-Monate'!$H$4:$H$1203, A58*12),0)) -> 0 | C58: =IF(A58>EB_Zeitr,NA(),IF(Endbetrag!$D$4=0,0,B58/Endbetrag!$D$4)) ->  | D58: =IF(A58>EB_Zeitr,0,12*Endbetrag!$D$5*(1+Endbetrag!$D$6)^(A58-1)) -> 0 | E58: 0
A59: 54 | B59: =IF(A59>EB_Zeitr,0,IFERROR(INDEX('EB-Monate'!$H$4:$H$1203, A59*12),0)) -> 0 | C59: =IF(A59>EB_Zeitr,NA(),IF(Endbetrag!$D$4=0,0,B59/Endbetrag!$D$4)) ->  | D59: =IF(A59>EB_Zeitr,0,12*Endbetrag!$D$5*(1+Endbetrag!$D$6)^(A59-1)) -> 0 | E59: 0
A60: 55 | B60: =IF(A60>EB_Zeitr,0,IFERROR(INDEX('EB-Monate'!$H$4:$H$1203, A60*12),0)) -> 0 | C60: =IF(A60>EB_Zeitr,NA(),IF(Endbetrag!$D$4=0,0,B60/Endbetrag!$D$4)) ->  | D60: =IF(A60>EB_Zeitr,0,12*Endbetrag!$D$5*(1+Endbetrag!$D$6)^(A60-1)) -> 0 | E60: 0
A61: 56 | B61: =IF(A61>EB_Zeitr,0,IFERROR(INDEX('EB-Monate'!$H$4:$H$1203, A61*12),0)) -> 0 | C61: =IF(A61>EB_Zeitr,NA(),IF(Endbetrag!$D$4=0,0,B61/Endbetrag!$D$4)) ->  | D61: =IF(A61>EB_Zeitr,0,12*Endbetrag!$D$5*(1+Endbetrag!$D$6)^(A61-1)) -> 0 | E61: 0
A62: 57 | B62: =IF(A62>EB_Zeitr,0,IFERROR(INDEX('EB-Monate'!$H$4:$H$1203, A62*12),0)) -> 0 | C62: =IF(A62>EB_Zeitr,NA(),IF(Endbetrag!$D$4=0,0,B62/Endbetrag!$D$4)) ->  | D62: =IF(A62>EB_Zeitr,0,12*Endbetrag!$D$5*(1+Endbetrag!$D$6)^(A62-1)) -> 0 | E62: 0
A63: 58 | B63: =IF(A63>EB_Zeitr,0,IFERROR(INDEX('EB-Monate'!$H$4:$H$1203, A63*12),0)) -> 0 | C63: =IF(A63>EB_Zeitr,NA(),IF(Endbetrag!$D$4=0,0,B63/Endbetrag!$D$4)) ->  | D63: =IF(A63>EB_Zeitr,0,12*Endbetrag!$D$5*(1+Endbetrag!$D$6)^(A63-1)) -> 0 | E63: 0
A64: 59 | B64: =IF(A64>EB_Zeitr,0,IFERROR(INDEX('EB-Monate'!$H$4:$H$1203, A64*12),0)) -> 0 | C64: =IF(A64>EB_Zeitr,NA(),IF(Endbetrag!$D$4=0,0,B64/Endbetrag!$D$4)) ->  | D64: =IF(A64>EB_Zeitr,0,12*Endbetrag!$D$5*(1+Endbetrag!$D$6)^(A64-1)) -> 0 | E64: 0
A65: 60 | B65: =IF(A65>EB_Zeitr,0,IFERROR(INDEX('EB-Monate'!$H$4:$H$1203, A65*12),0)) -> 0 | C65: =IF(A65>EB_Zeitr,NA(),IF(Endbetrag!$D$4=0,0,B65/Endbetrag!$D$4)) ->  | D65: =IF(A65>EB_Zeitr,0,12*Endbetrag!$D$5*(1+Endbetrag!$D$6)^(A65-1)) -> 0 | E65: 0
A66: 61 | B66: =IF(A66>EB_Zeitr,0,IFERROR(INDEX('EB-Monate'!$H$4:$H$1203, A66*12),0)) -> 0 | C66: =IF(A66>EB_Zeitr,NA(),IF(Endbetrag!$D$4=0,0,B66/Endbetrag!$D$4)) ->  | D66: =IF(A66>EB_Zeitr,0,12*Endbetrag!$D$5*(1+Endbetrag!$D$6)^(A66-1)) -> 0 | E66: 0
A67: 62 | B67: =IF(A67>EB_Zeitr,0,IFERROR(INDEX('EB-Monate'!$H$4:$H$1203, A67*12),0)) -> 0 | C67: =IF(A67>EB_Zeitr,NA(),IF(Endbetrag!$D$4=0,0,B67/Endbetrag!$D$4)) ->  | D67: =IF(A67>EB_Zeitr,0,12*Endbetrag!$D$5*(1+Endbetrag!$D$6)^(A67-1)) -> 0 | E67: 0
A68: 63 | B68: =IF(A68>EB_Zeitr,0,IFERROR(INDEX('EB-Monate'!$H$4:$H$1203, A68*12),0)) -> 0 | C68: =IF(A68>EB_Zeitr,NA(),IF(Endbetrag!$D$4=0,0,B68/Endbetrag!$D$4)) ->  | D68: =IF(A68>EB_Zeitr,0,12*Endbetrag!$D$5*(1+Endbetrag!$D$6)^(A68-1)) -> 0 | E68: 0
A69: 64 | B69: =IF(A69>EB_Zeitr,0,IFERROR(INDEX('EB-Monate'!$H$4:$H$1203, A69*12),0)) -> 0 | C69: =IF(A69>EB_Zeitr,NA(),IF(Endbetrag!$D$4=0,0,B69/Endbetrag!$D$4)) ->  | D69: =IF(A69>EB_Zeitr,0,12*Endbetrag!$D$5*(1+Endbetrag!$D$6)^(A69-1)) -> 0 | E69: 0
A70: 65 | B70: =IF(A70>EB_Zeitr,0,IFERROR(INDEX('EB-Monate'!$H$4:$H$1203, A70*12),0)) -> 0 | C70: =IF(A70>EB_Zeitr,NA(),IF(Endbetrag!$D$4=0,0,B70/Endbetrag!$D$4)) ->  | D70: =IF(A70>EB_Zeitr,0,12*Endbetrag!$D$5*(1+Endbetrag!$D$6)^(A70-1)) -> 0 | E70: =IF(A70=1,$B$5,IF(A70=EB_Zeitr,B70,0)) -> 0
A71: 66 | B71: =IF(A71>EB_Zeitr,0,IFERROR(INDEX('EB-Monate'!$H$4:$H$1203, A71*12),0)) -> 0 | C71: =IF(A71>EB_Zeitr,NA(),IF(Endbetrag!$D$4=0,0,B71/Endbetrag!$D$4)) ->  | D71: =IF(A71>EB_Zeitr,0,12*Endbetrag!$D$5*(1+Endbetrag!$D$6)^(A71-1)) -> 0 | E71: 0
A72: 67 | B72: =IF(A72>EB_Zeitr,0,IFERROR(INDEX('EB-Monate'!$H$4:$H$1203, A72*12),0)) -> 0 | C72: =IF(A72>EB_Zeitr,NA(),IF(Endbetrag!$D$4=0,0,B72/Endbetrag!$D$4)) ->  | D72: =IF(A72>EB_Zeitr,0,12*Endbetrag!$D$5*(1+Endbetrag!$D$6)^(A72-1)) -> 0 | E72: 0
A73: 68 | B73: =IF(A73>EB_Zeitr,0,IFERROR(INDEX('EB-Monate'!$H$4:$H$1203, A73*12),0)) -> 0 | C73: =IF(A73>EB_Zeitr,NA(),IF(Endbetrag!$D$4=0,0,B73/Endbetrag!$D$4)) ->  | D73: =IF(A73>EB_Zeitr,0,12*Endbetrag!$D$5*(1+Endbetrag!$D$6)^(A73-1)) -> 0 | E73: 0
A74: 69 | B74: =IF(A74>EB_Zeitr,0,IFERROR(INDEX('EB-Monate'!$H$4:$H$1203, A74*12),0)) -> 0 | C74: =IF(A74>EB_Zeitr,NA(),IF(Endbetrag!$D$4=0,0,B74/Endbetrag!$D$4)) ->  | D74: =IF(A74>EB_Zeitr,0,12*Endbetrag!$D$5*(1+Endbetrag!$D$6)^(A74-1)) -> 0 | E74: 0
A75: 70 | B75: =IF(A75>EB_Zeitr,0,IFERROR(INDEX('EB-Monate'!$H$4:$H$1203, A75*12),0)) -> 0 | C75: =IF(A75>EB_Zeitr,NA(),IF(Endbetrag!$D$4=0,0,B75/Endbetrag!$D$4)) ->  | D75: =IF(A75>EB_Zeitr,0,12*Endbetrag!$D$5*(1+Endbetrag!$D$6)^(A75-1)) -> 0 | E75: 0
A76: 71 | B76: =IF(A76>EB_Zeitr,0,IFERROR(INDEX('EB-Monate'!$H$4:$H$1203, A76*12),0)) -> 0 | C76: =IF(A76>EB_Zeitr,NA(),IF(Endbetrag!$D$4=0,0,B76/Endbetrag!$D$4)) ->  | D76: =IF(A76>EB_Zeitr,0,12*Endbetrag!$D$5*(1+Endbetrag!$D$6)^(A76-1)) -> 0 | E76: 0
A77: 72 | B77: =IF(A77>EB_Zeitr,0,IFERROR(INDEX('EB-Monate'!$H$4:$H$1203, A77*12),0)) -> 0 | C77: =IF(A77>EB_Zeitr,NA(),IF(Endbetrag!$D$4=0,0,B77/Endbetrag!$D$4)) ->  | D77: =IF(A77>EB_Zeitr,0,12*Endbetrag!$D$5*(1+Endbetrag!$D$6)^(A77-1)) -> 0 | E77: 0
A78: 73 | B78: =IF(A78>EB_Zeitr,0,IFERROR(INDEX('EB-Monate'!$H$4:$H$1203, A78*12),0)) -> 0 | C78: =IF(A78>EB_Zeitr,NA(),IF(Endbetrag!$D$4=0,0,B78/Endbetrag!$D$4)) ->  | D78: =IF(A78>EB_Zeitr,0,12*Endbetrag!$D$5*(1+Endbetrag!$D$6)^(A78-1)) -> 0 | E78: 0
A79: 74 | B79: =IF(A79>EB_Zeitr,0,IFERROR(INDEX('EB-Monate'!$H$4:$H$1203, A79*12),0)) -> 0 | C79: =IF(A79>EB_Zeitr,NA(),IF(Endbetrag!$D$4=0,0,B79/Endbetrag!$D$4)) ->  | D79: =IF(A79>EB_Zeitr,0,12*Endbetrag!$D$5*(1+Endbetrag!$D$6)^(A79-1)) -> 0 | E79: 0
A80: 75 | B80: =IF(A80>EB_Zeitr,0,IFERROR(INDEX('EB-Monate'!$H$4:$H$1203, A80*12),0)) -> 0 | C80: =IF(A80>EB_Zeitr,NA(),IF(Endbetrag!$D$4=0,0,B80/Endbetrag!$D$4)) ->  | D80: =IF(A80>EB_Zeitr,0,12*Endbetrag!$D$5*(1+Endbetrag!$D$6)^(A80-1)) -> 0 | E80: 0
A81: 76 | B81: =IF(A81>EB_Zeitr,0,IFERROR(INDEX('EB-Monate'!$H$4:$H$1203, A81*12),0)) -> 0 | C81: =IF(A81>EB_Zeitr,NA(),IF(Endbetrag!$D$4=0,0,B81/Endbetrag!$D$4)) ->  | D81: =IF(A81>EB_Zeitr,0,12*Endbetrag!$D$5*(1+Endbetrag!$D$6)^(A81-1)) -> 0 | E81: 0
A82: 77 | B82: =IF(A82>EB_Zeitr,0,IFERROR(INDEX('EB-Monate'!$H$4:$H$1203, A82*12),0)) -> 0 | C82: =IF(A82>EB_Zeitr,NA(),IF(Endbetrag!$D$4=0,0,B82/Endbetrag!$D$4)) ->  | D82: =IF(A82>EB_Zeitr,0,12*Endbetrag!$D$5*(1+Endbetrag!$D$6)^(A82-1)) -> 0 | E82: 0
A83: 78 | B83: =IF(A83>EB_Zeitr,0,IFERROR(INDEX('EB-Monate'!$H$4:$H$1203, A83*12),0)) -> 0 | C83: =IF(A83>EB_Zeitr,NA(),IF(Endbetrag!$D$4=0,0,B83/Endbetrag!$D$4)) ->  | D83: =IF(A83>EB_Zeitr,0,12*Endbetrag!$D$5*(1+Endbetrag!$D$6)^(A83-1)) -> 0 | E83: 0
A84: 79 | B84: =IF(A84>EB_Zeitr,0,IFERROR(INDEX('EB-Monate'!$H$4:$H$1203, A84*12),0)) -> 0 | C84: =IF(A84>EB_Zeitr,NA(),IF(Endbetrag!$D$4=0,0,B84/Endbetrag!$D$4)) ->  | D84: =IF(A84>EB_Zeitr,0,12*Endbetrag!$D$5*(1+Endbetrag!$D$6)^(A84-1)) -> 0 | E84: 0
A85: 80 | B85: =IF(A85>EB_Zeitr,0,IFERROR(INDEX('EB-Monate'!$H$4:$H$1203, A85*12),0)) -> 0 | C85: =IF(A85>EB_Zeitr,NA(),IF(Endbetrag!$D$4=0,0,B85/Endbetrag!$D$4)) ->  | D85: =IF(A85>EB_Zeitr,0,12*Endbetrag!$D$5*(1+Endbetrag!$D$6)^(A85-1)) -> 0 | E85: 0
A86: 81 | B86: =IF(A86>EB_Zeitr,0,IFERROR(INDEX('EB-Monate'!$H$4:$H$1203, A86*12),0)) -> 0 | C86: =IF(A86>EB_Zeitr,NA(),IF(Endbetrag!$D$4=0,0,B86/Endbetrag!$D$4)) ->  | D86: =IF(A86>EB_Zeitr,0,12*Endbetrag!$D$5*(1+Endbetrag!$D$6)^(A86-1)) -> 0 | E86: 0
A87: 82 | B87: =IF(A87>EB_Zeitr,0,IFERROR(INDEX('EB-Monate'!$H$4:$H$1203, A87*12),0)) -> 0 | C87: =IF(A87>EB_Zeitr,NA(),IF(Endbetrag!$D$4=0,0,B87/Endbetrag!$D$4)) ->  | D87: =IF(A87>EB_Zeitr,0,12*Endbetrag!$D$5*(1+Endbetrag!$D$6)^(A87-1)) -> 0 | E87: 0
A88: 83 | B88: =IF(A88>EB_Zeitr,0,IFERROR(INDEX('EB-Monate'!$H$4:$H$1203, A88*12),0)) -> 0 | C88: =IF(A88>EB_Zeitr,NA(),IF(Endbetrag!$D$4=0,0,B88/Endbetrag!$D$4)) ->  | D88: =IF(A88>EB_Zeitr,0,12*Endbetrag!$D$5*(1+Endbetrag!$D$6)^(A88-1)) -> 0 | E88: 0
A89: 84 | B89: =IF(A89>EB_Zeitr,0,IFERROR(INDEX('EB-Monate'!$H$4:$H$1203, A89*12),0)) -> 0 | C89: =IF(A89>EB_Zeitr,NA(),IF(Endbetrag!$D$4=0,0,B89/Endbetrag!$D$4)) ->  | D89: =IF(A89>EB_Zeitr,0,12*Endbetrag!$D$5*(1+Endbetrag!$D$6)^(A89-1)) -> 0 | E89: 0
A90: 85 | B90: =IF(A90>EB_Zeitr,0,IFERROR(INDEX('EB-Monate'!$H$4:$H$1203, A90*12),0)) -> 0 | C90: =IF(A90>EB_Zeitr,NA(),IF(Endbetrag!$D$4=0,0,B90/Endbetrag!$D$4)) ->  | D90: =IF(A90>EB_Zeitr,0,12*Endbetrag!$D$5*(1+Endbetrag!$D$6)^(A90-1)) -> 0 | E90: 0
A91: 86 | B91: =IF(A91>EB_Zeitr,0,IFERROR(INDEX('EB-Monate'!$H$4:$H$1203, A91*12),0)) -> 0 | C91: =IF(A91>EB_Zeitr,NA(),IF(Endbetrag!$D$4=0,0,B91/Endbetrag!$D$4)) ->  | D91: =IF(A91>EB_Zeitr,0,12*Endbetrag!$D$5*(1+Endbetrag!$D$6)^(A91-1)) -> 0 | E91: 0
A92: 87 | B92: =IF(A92>EB_Zeitr,0,IFERROR(INDEX('EB-Monate'!$H$4:$H$1203, A92*12),0)) -> 0 | C92: =IF(A92>EB_Zeitr,NA(),IF(Endbetrag!$D$4=0,0,B92/Endbetrag!$D$4)) ->  | D92: =IF(A92>EB_Zeitr,0,12*Endbetrag!$D$5*(1+Endbetrag!$D$6)^(A92-1)) -> 0 | E92: 0
A93: 88 | B93: =IF(A93>EB_Zeitr,0,IFERROR(INDEX('EB-Monate'!$H$4:$H$1203, A93*12),0)) -> 0 | C93: =IF(A93>EB_Zeitr,NA(),IF(Endbetrag!$D$4=0,0,B93/Endbetrag!$D$4)) ->  | D93: =IF(A93>EB_Zeitr,0,12*Endbetrag!$D$5*(1+Endbetrag!$D$6)^(A93-1)) -> 0 | E93: 0
A94: 89 | B94: =IF(A94>EB_Zeitr,0,IFERROR(INDEX('EB-Monate'!$H$4:$H$1203, A94*12),0)) -> 0 | C94: =IF(A94>EB_Zeitr,NA(),IF(Endbetrag!$D$4=0,0,B94/Endbetrag!$D$4)) ->  | D94: =IF(A94>EB_Zeitr,0,12*Endbetrag!$D$5*(1+Endbetrag!$D$6)^(A94-1)) -> 0 | E94: 0
A95: 90 | B95: =IF(A95>EB_Zeitr,0,IFERROR(INDEX('EB-Monate'!$H$4:$H$1203, A95*12),0)) -> 0 | C95: =IF(A95>EB_Zeitr,NA(),IF(Endbetrag!$D$4=0,0,B95/Endbetrag!$D$4)) ->  | D95: =IF(A95>EB_Zeitr,0,12*Endbetrag!$D$5*(1+Endbetrag!$D$6)^(A95-1)) -> 0 | E95: 0
A96: 91 | B96: =IF(A96>EB_Zeitr,0,IFERROR(INDEX('EB-Monate'!$H$4:$H$1203, A96*12),0)) -> 0 | C96: =IF(A96>EB_Zeitr,NA(),IF(Endbetrag!$D$4=0,0,B96/Endbetrag!$D$4)) ->  | D96: =IF(A96>EB_Zeitr,0,12*Endbetrag!$D$5*(1+Endbetrag!$D$6)^(A96-1)) -> 0 | E96: 0
A97: 92 | B97: =IF(A97>EB_Zeitr,0,IFERROR(INDEX('EB-Monate'!$H$4:$H$1203, A97*12),0)) -> 0 | C97: =IF(A97>EB_Zeitr,NA(),IF(Endbetrag!$D$4=0,0,B97/Endbetrag!$D$4)) ->  | D97: =IF(A97>EB_Zeitr,0,12*Endbetrag!$D$5*(1+Endbetrag!$D$6)^(A97-1)) -> 0 | E97: 0
A98: 93 | B98: =IF(A98>EB_Zeitr,0,IFERROR(INDEX('EB-Monate'!$H$4:$H$1203, A98*12),0)) -> 0 | C98: =IF(A98>EB_Zeitr,NA(),IF(Endbetrag!$D$4=0,0,B98/Endbetrag!$D$4)) ->  | D98: =IF(A98>EB_Zeitr,0,12*Endbetrag!$D$5*(1+Endbetrag!$D$6)^(A98-1)) -> 0 | E98: 0
A99: 94 | B99: =IF(A99>EB_Zeitr,0,IFERROR(INDEX('EB-Monate'!$H$4:$H$1203, A99*12),0)) -> 0 | C99: =IF(A99>EB_Zeitr,NA(),IF(Endbetrag!$D$4=0,0,B99/Endbetrag!$D$4)) ->  | D99: =IF(A99>EB_Zeitr,0,12*Endbetrag!$D$5*(1+Endbetrag!$D$6)^(A99-1)) -> 0 | E99: 0
A100: 95 | B100: =IF(A100>EB_Zeitr,0,IFERROR(INDEX('EB-Monate'!$H$4:$H$1203, A100*12),0)) -> 0 | C100: =IF(A100>EB_Zeitr,NA(),IF(Endbetrag!$D$4=0,0,B100/Endbetrag!$D$4)) ->  | D100: =IF(A100>EB_Zeitr,0,12*Endbetrag!$D$5*(1+Endbetrag!$D$6)^(A100-1)) -> 0 | E100: 0
A101: 96 | B101: =IF(A101>EB_Zeitr,0,IFERROR(INDEX('EB-Monate'!$H$4:$H$1203, A101*12),0)) -> 0 | C101: =IF(A101>EB_Zeitr,NA(),IF(Endbetrag!$D$4=0,0,B101/Endbetrag!$D$4)) ->  | D101: =IF(A101>EB_Zeitr,0,12*Endbetrag!$D$5*(1+Endbetrag!$D$6)^(A101-1)) -> 0 | E101: 0
A102: 97 | B102: =IF(A102>EB_Zeitr,0,IFERROR(INDEX('EB-Monate'!$H$4:$H$1203, A102*12),0)) -> 0 | C102: =IF(A102>EB_Zeitr,NA(),IF(Endbetrag!$D$4=0,0,B102/Endbetrag!$D$4)) ->  | D102: =IF(A102>EB_Zeitr,0,12*Endbetrag!$D$5*(1+Endbetrag!$D$6)^(A102-1)) -> 0 | E102: 0
A103: 98 | B103: =IF(A103>EB_Zeitr,0,IFERROR(INDEX('EB-Monate'!$H$4:$H$1203, A103*12),0)) -> 0 | C103: =IF(A103>EB_Zeitr,NA(),IF(Endbetrag!$D$4=0,0,B103/Endbetrag!$D$4)) ->  | D103: =IF(A103>EB_Zeitr,0,12*Endbetrag!$D$5*(1+Endbetrag!$D$6)^(A103-1)) -> 0 | E103: 0
A104: 99 | B104: =IF(A104>EB_Zeitr,0,IFERROR(INDEX('EB-Monate'!$H$4:$H$1203, A104*12),0)) -> 0 | C104: =IF(A104>EB_Zeitr,NA(),IF(Endbetrag!$D$4=0,0,B104/Endbetrag!$D$4)) ->  | D104: =IF(A104>EB_Zeitr,0,12*Endbetrag!$D$5*(1+Endbetrag!$D$6)^(A104-1)) -> 0 | E104: 0
A105: 100 | B105: =IF(A105>EB_Zeitr,0,IFERROR(INDEX('EB-Monate'!$H$4:$H$1203, A105*12),0)) -> 0 | C105: =IF(A105>EB_Zeitr,NA(),IF(Endbetrag!$D$4=0,0,B105/Endbetrag!$D$4)) ->  | D105: =IF(A105>EB_Zeitr,0,12*Endbetrag!$D$5*(1+Endbetrag!$D$6)^(A105-1)) -> 0 | E105: 0

Sheet Finanz- & Vermögensplang
A1: 4ed294Df7db6e2e517029c2F3f0c3bA3
B7: Private Finanz- & Vermögensplanung
B9: Planung und Analyse
B10: aller privaten u. betrieblichen
B11: Einkommens-, Steuer-, Liquiditäts-
B12: und Vermögensbereiche
B20: Mehr Informationen auf unserer Webseite !

Sheet ETF Rechner
A1: 4ed294Df7db6e2e517029c2F3f0c3bA3
B7: ETF Steuer- & Sparplanrechner
B9: Für ausschüttenden u. thesaurierenden
B10: ETFs unter Berücksichtigung
B11: Investmentsteuergesetz (InvStG)
B20: Mehr Informationen auf unserer Webseite !

Sheet Formate (hidden)
B1: Formatierungen, Konstanten & Symbole
B3: Individuelle Zellformatierungen | F3: Zum Inhaltsverzeichnis
B4: Tabellen_Ueb | D4: Tabellen Überschrift
F5: wg. Kopie Gültigkeit:
B6: Annahme | D6: 100 | F6: 20 | G6: nur positive Werte zulässig | J6: Farbwert (R:G:B)
B7: Referenz_InSheet | D7: 100 | F7: -20 | G7: nur negative Werte zulässig | J7: 255:255:230
B8: Referenz_OffSheet | D8: 100
B9: Bezeichnung_Eingabe | D9: Bezeichnung
B10: Technische_Eingabe | D10: 100
B11: Leere_Zelle
B12: Externer_Link | D12: 100
B13: Flag (Standard) | D13: 1
D14: 1 | E14: mit bedingter Formatierung => Kopie erforderlich
D15: 1 | E15: mit bedingter Formatierung => Kopie erforderlich
D16: 1 | E16: mit bedingter Formatierung => Kopie erforderlich
D17: 1 | E17: mit bedingter Formatierung => Kopie erforderlich
B19: Kontrollen, Schalter & Sonstiges
B20: Hyperlink-Text | D20: Hyperlink
B22: Kontr_DEU | D22: 0 | E22: mit bedingter Formatierung => Kopie erforderlich
B23: Kontr_ENG | D23: 1 | E23: mit bedingter Formatierung => Kopie erforderlich
B25: Hinw_DEU | D25: 0 | E25: mit bedingter Formatierung => Kopie erforderlich
B26: Hinw_ENG | D26: 1 | E26: mit bedingter Formatierung => Kopie erforderlich
B28: Schalter_DEU | D28: 1 | E28: mit bedingter Formatierung => Kopie erforderlich
B29: Schalter_ENG | D29: 1 | E29: mit bedingter Formatierung => Kopie erforderlich
D31: Aktiv
B32: Schalter_JA-NEIN (keine Zellformatvorlage) | D32: 1 | E32: 1=Ja , 0=Nein | F32: mit Datenüberprüfung/Gültigkeit => Kopie erforderlich
B33: Schalter_YES-NO (keine Zellformatvorlage) | D33: 1 | E33: 1=Yes , 0=No | F33: mit Datenüberprüfung/Gültigkeit => Kopie erforderlich
B35: Schalter aktiv/inaktiv (keine Zellformatvorlage) | D35: 1 | E35: mit bedingter Formatierung => Kopie erforderlich
B37: Status_In_Arbeit | D37: In Arbeit
B38: Status_In_Ordnung | D38: In Ordnung
B39: Status_Pruefen | D39: Prüfen
B40: Kommentar | D40: Kommentarfeld
B42: Quotient | D42: 1
B43: Datum | D43: 2020-01-01 | F43: i.d.R. anschließend mit weiterer Zellformatvorlage wie Annahme, InSheet, OffSheet etc.
D45: Positiv | E45: Null | F45: Negativ
B46: Zahl_Standard (Basisformatierung) | D46: 1500 | E46: 0 | F46: -1500 | H46: i.d.R. anschließend mit weiterer Zellformatvorlage wie Annahme, InSheet, OffSheet etc.
B47: Zahl_Prozent (Basisformatierung) | D47: 0.25 | E47: 0 | F47: -0.25 | H47: i.d.R. anschließend mit weiterer Zellformatvorlage wie Annahme, InSheet, OffSheet etc.
B49: Zellformatvorlagen
B50: Zeilen Formatierungen | H50: Blattüberschriften
B52: Einheit | D52: EUR | H52: Blatt_1 | J52: Blattüberschrift 1
H53: Blatt_2 | J53: Blattüberschrift 2
B54: Zeile_Spalten-Summe | D54: 100 | H54: Blatt_3 | J54: Blattüberschrift 3
B56: Zeile_Abgrenzung | D56: 100
B58: Zeile_Zwischensumme | D58: 100 | H58: Abschnittsüberschriften / Gliederung
B60: Zeile_Summe | D60: 100 | H60: Ueb1 | J60: Überschrift 1
B62: Zeile_Schlussbilanz | D62: 100 | H62: Ueb2 | J62: Überschrift 2
H63: Ueb3 | J63: Überschrift 3
H64: Ueb4 | J64: Überschrift 4
B66: Konstanten, Symbole & Auswahltabellen
B67: Konstanten | E67: Name | H67: Auswahltabellen
B68: Tage im Jahr | D68: 365 | E68: Tage_Jahr | J68: Monate | K68: Schalter | L68: Name
B69: Monate pro Jahr | D69: 12 | E69: Monate_Jahr | J69: Jan | K69: 1 | L69: Monate
B70: Quartale pro Jahr | D70: 4 | E70: Quartale_Jahr | J70: Feb | K70: 2
B71: Monate pro Quartal | D71: 3 | E71: Monate_Quartal | J71: Mrz | K71: 3
J72: Apr | K72: 4
B73: Rundungstoleranz | D73: 1e-05 | E73: Rund_Tol | J73: Mai | K73: 5
B74: Tausend | D74: 1000 | E74: Tausend | J74: Jun | K74: 6
B75: Million | D75: 1000000 | E75: Million | J75: Jul | K75: 7
B76: Milliarde | D76: 1000000000 | E76: Milliarde | J76: Aug | K76: 8
B77: Ganz kleine Zahl | D77: 1e-07 | E77: GanzkleineZahl | J77: Sep | K77: 9
J78: Okt | K78: 10
J79: Nov | K79: 11
J80: Dez | K80: 12
B81: Symbole
B82: Pfeil nach unten aktiviert | D82: ▼ | E82: Pf_unt_ja | J82: Periodizität | K82: Schalter | L82: Name
B83: Pfeil nach unten nicht aktiviert | D83: × | E83: Pf_unt_nein | J83: monatlich | K83: 1 | L83: Periodizität
B84: Pfeil nach links | D84: ◄ | E84: Pf_li | J84: quartalsweise | K84: 3
B85: Pfeil nach rechts | D85: ► | E85: Pf_re | J85: halbjährlich | K85: 6
B86: Pfeile horizontal aktiviert | D86: tu | E86: Pf_hor_ja | J86: jährlich | K86: 12
B87: Pfeile horizontal nicht aktiviert | D87: vw | E87: Pf_hor_nein
J88: Status | K88: Schalter | L88: Name
D89: 1 | J89: Aus | K89: 0 | L89: status
B90: Bsp. Pfeil nach unten (aktiviert, falls Zelle darüber =1) | D90: =IF(D89=1,Pf_unt_ja,Pf_unt_nein) -> ▼ | E90: mit bedingter Formatierung => Kopie erforderlich | J90: An | K90: 1
B91: (aktiviert, falls Zelle darüber =1)
B93: Rückzahlungsmethoden | E93: Name | J93: Darlehensart | K93: Name
D94: Annuität (kompl.) | E94: Rückzahlungsmethode | J94: Personaldarlehen | K94: Darl_Art
D95: Annuität (%-Satz) | J95: Gesichertes Personaldarlehen
D96: Tilgungsdarlehen (%-Satz) | J96: Realdarlehen
D97: Tilgungsdarlehen (kompl.)
D98: Endfällig
G101: Nr. | H101: Degr. AfA-Variante
G102: 1 | H102: Degressive AfA (§ 7 Abs. 5a EStG) mit Wechsel zu linearer AfA mit Sonderabschreibung
G103: 2 | H103: Degressive AfA (§ 7 Abs. 5a EStG) ohne Wechsel zu linearer AfA mit Sonderabschreibung
G104: 3 | H104: Degressive AfA (§ 7 Abs. 5a EStG) mit Wechsel zu linearer AfA ohne Sonderabschreibung
G105: 4 | H105: Degressive AfA (§ 7 Abs. 5a EStG) ohne Wechsel zu linearer AfA ohne Sonderabschreibung
